{"text_format":"1","workbook":"xlsx","n_sheets":38,"sheets":["Instructions","PDF instructions","ApplicantInfo","ProjectOversight","AdminForms","Activities","Cash Reserve","Service Area-HRA","Matching Funds-HRA","Service Area-HRA PWD","Matching Funds-HRA PWD","Service Area-HRA DR","Matching Funds-HRA DR","Service Area-TBRA","Matching Funds-TBRA","Service Area-TBRA PWD","Matching Funds-TBRA PWD","Service Area-TBRA DR","Matching Funds-TBRA DR","Service Area-CFD","Matching Funds-CFD","Service Area-HANC","Matching Funds-HANC","Past Participation","Marketing Plan","Resolution","Mrtg Prod Hsng Cnslng","Self-Sufficiency Plan","Applicant Certification","Application Checklist","Lists","applicationlvldata","MatchData","AreaSrvd","Extras","ApplicantStaff","ActivityList","Reference Materials"],"not_rendered":{"charts":0,"images":5,"macros":1,"external_links":1,"defined_names":71,"comments":0,"pivot_tables":0},"unopened":[],"bounds":{"document_bytes":16777216,"sheet_cells":100000,"rows_first":2000,"rows_last":500,"rows_between":2000,"halvings":0,"cell_chars":16384,"cell_head_chars":4096},"cells_cut":0,"cells_raw":0,"read":"whole","date_system":"1900"}

{"sheet":"Instructions","index":0,"n_rows":41,"n_cols":1,"rows_kept":41,"cut":false,"hidden":false,"merged":[[0,0,0,8],[1,0,1,8],[2,0,2,8],[3,0,3,8],[4,0,4,8],[20,0,20,8],[35,0,35,8],[33,0,33,8],[30,0,30,8],[25,0,25,8],[21,0,21,8],[22,0,22,8],[23,0,23,8],[24,0,24,8],[65,0,65,8],[26,0,26,8],[34,0,34,8],[37,0,37,8],[38,0,38,8],[31,0,31,8],[32,0,32,8],[39,0,39,8],[28,0,28,8],[29,0,29,8],[27,0,27,8],[36,0,36,8],[40,0,40,8],[18,0,18,8],[19,0,19,8],[15,0,15,8],[10,0,10,8],[11,0,11,8],[12,0,12,16383],[13,0,13,16383],[14,0,14,16383],[6,0,6,8],[7,0,7,8],[16,0,16,8],[17,0,17,8],[8,0,9,8]]}
["HOME PROGRAM DIVISION"]
["Single Family Activities"]
["Reservation System Participant Application"]
["221 East 11th Street, Austin, Texas 78701-2410"]
["P.O. BOX 13941, Austin, TX 78711-3941 "]
[]
["HOME PROGRAM SINGLE FAMILY ACTIVITIES"]
["RESERVATION SYSTEM PARTICIPANT APPLICATION"]
["IMPORTANT!  This document uses macros.  Enable the macros by:"]
[]
["1. Click the  \"Options\" button by the Security Warning."]
["2. A Window will pop up."]
["3. Select \"Enable this content\""]
["4. Click OK"]
["NOTE: Enable the macros each time the application is open."]
["The application is an EXCEL Workbook, and consists of a series of tabs.  Please fill out each tab to the best of your ability. Depending on your answers to certain questions, additional tabs may be activated.  A message will appear when this happens.  Please use the drop-down menu when prompted, to answer questions."]
["After you complete the application, save it as an excel document using the following naming format:  "]
["APPLICANT_NAME_RSP_Application.xls"]
["Eligible Applicants are Units of General Local Government, Nonprofit Organizations, Public Housing Authorities, and Councils of Government."]
["Application Threshold Requirements. "]
["Threshold Criteria. Threshold criteria in 10 TAC Chapter 21 concerning Single Family Programs Umbrella Rule and Chapter 23 concerning Single Family HOME Program are mandatory requirements at the time of application submission, unless specifically indicated otherwise. The State HOME Rule is available at:  http://www.tdhca.state.tx.us/rules.htm  Click on TDHCA Rules."]
["Application Submission."]
["a)    Applications to participate in the Reservation System will be accepted by the Department on an on-going basis."]
["b)    All applications must be submitted and documentation provided as described in 10 TAC §23 and the application instructions.   The following paperclip symbol              will ALERT you when you need to submit additional documentation."]
["c)   All Application materials including the Notice of Funding Availability (NOFA), Regional Allocation Formula Tables, and all applicable HOME rules, will be available on the Department’s website at: www.tdhca.state.tx.us.  Applications will be required to adhere to the HOME Rule and threshold requirements in effect at the time of Application submission. Applications must be on forms provided by the Department, cannot be altered or modified, and must be in final form before submitting them to the Department."]
["d)   Applicants are required to remit a non-refundable Application fee payable to the Texas Department of Housing and Community Affairs in the amount of $30 per Application. Payment must be in the form of a check, cashier’s check, or money order. Do not send cash. The Application fee is not an allowable or reimbursable cost under the HOME Program. An Applicant that is a Nonprofit Organization may request a fee waiver in accordance with Texas Government Code, §2306.147(b). The Department shall waive grant application fees for nonprofit organizations that offer expanded services such as child care, nutrition programs, job training assistance, health services, or human services. The request to waive the Application fee and type of expanded services being provided, must be stated in the Resolution submitted with the Application."]
["Unless the Application fee is waived, an acknowledgment of receipt will not be emailed until the application fee is received by TDHCA."]
["e)   Application fee may be sent via U.S. Postal Service to:"]
["Texas Department of Housing and Community Affairs-HOME Division"]
["P. O. Box 13941"]
["Austin, Texas  78711"]
["Or via overnight delivery to:"]
["Texas Department of Housing and Community Affairs-HOME Division"]
["221 East 11th Street"]
["Austin, Texas  78701"]
["f)    This Application does not include text of the various applicable regulatory provisions pertinent to the HOME Program. For proper completion of the application, the Department strongly encourages potential applicants to review the State and Federal regulations, and contact the HOME Division for guidance and assistance."]
["g)   One copy of the Application in EXCEL format, and one copy of the Application including all attachments in PDF format must be submitted electronically using TDHCA's FTP server.  To submit via the FTP server, go to the following website and use the username and password below"]
["https://sf-files.tdhca.state.tx.us/"]
["User Name : HOMEApp"]
["Password:  H44QXyxF"]
["Upload your application by using the \"upload\" button in the lower left-hand corner of your screen."]

{"sheet":"PDF instructions","index":1,"n_rows":28,"n_cols":1,"rows_kept":28,"cut":false,"hidden":false,"merged":[[5,0,5,8],[6,0,6,8],[7,0,7,8],[8,0,8,8],[9,0,9,8],[0,0,0,8],[1,0,1,8],[2,0,2,8],[3,0,3,8],[4,0,4,8],[10,0,10,8],[12,0,12,8],[13,0,13,8],[14,0,14,8],[15,0,15,8],[16,0,16,8],[11,0,11,16383],[17,0,17,8],[18,0,18,8],[19,0,19,8],[20,0,20,8],[21,0,21,8],[22,0,22,8],[23,0,23,8],[24,0,24,8],[28,0,28,8],[29,0,29,8],[30,0,30,8],[27,0,27,8],[25,0,25,8],[26,0,26,8],[37,0,37,8],[31,0,31,8],[32,0,32,8],[33,0,33,8],[34,0,34,8],[35,0,35,8],[36,0,36,8]]}
["HOW TO CONVERT TO PDF"]
[]
["1. Click the Microsoft Office Button "]
["2. Point to the arrow next to Save As, and then click PDF or XPS."]
["3. In the File Name list, type or select a name for the workbook using the following naming  format:"]
["APPLICANT_NAME_RSP_Application.pdf"]
["4. In the Save as type list, click PDF."]
[]
["If you want to open the file immediately after saving it, select the Open file after publishing check box. This check box is available only if you have a PDF reader installed on your computer."]
["5. Under Optimize for, click Standard (publishing online and printing)."]
["6. Click Options. "]
["7. Under Publish What: select Entire Workbook then click OK."]
["8. Click Publish."]
[]
["Remember that there are tabs that require support documentation and/or signatures. Once you have executed all required documents and forms, scan them and insert the scanned documents and forms into the PDF application file,  behind the respective tab. The Application must be the electronic PDF file  created from the Excel file, not a scanned copy of the Excel or PDF file. Scanned copies of the Application are difficult to read, and slow down the process for staff and applicants and make it more difficult for applicants to review for completeness of the application prior to submission."]
[]
["Creating Bookmarks"]
["After the Excel file has been converted to PDF and all executed forms have been re-inserted into their appropriate location within the file, you will need to create Bookmarks.. To correctly set the Bookmark locations you must have the PDF file open in Adobe Acrobat. Click on the Bookmark icon located on the left-hand side of the Adobe Acrobat screen, or go to the task bar and select these options in the following order: View → Navigation Panels → Bookmarks."]
["If a Bookmark has already been created for each tab within the Excel file, simply re-set the bookmarks to the correct locations. To re-set the location for the Bookmarks, go to the first page of each separately labeled form/exhibit. You will then right-click on the corresponding Bookmark for the form/exhibit you are currently viewing. Select Set Destination and a pop-up box will appear asking you the following: \"Are you sure you want to set the destination of the selected bookmark to the current location?\" Select Yes."]
["If Bookmarks were not already created within the Excel file, then you will need to create these Bookmarks. Go to Document → Add Bookmark. Right-click on the first Bookmark and re-name it for the appropriate form or exhibit. You will then need to set the location of the Bookmark by going to the first page of each form or exhibit, right click on the corresponding Bookmark and select Set Destination. A pop-up box will appear asking you the following: \"Are you sure you want to set the destination of the selected bookmark to the current location?\" Select Yes."]
["If after conversion of the Excel file to PDF you have extra blank pages of any exhibit, you can delete those pages in order to limit the size of the file. To delete any extra, unnecessary pages identify the page number(s) you want deleted. On the Adobe Acrobat Task Bar click on Document and select Delete Pages from the drop down list. A box will appear prompting you to select which page(s) you would like to delete. Enter the page numbers to be deleted and hit OK."]
[]
["The PDF formatted file must be checked for the following prior to submission:"]
["Each tab must be correctly bookmarked"]
["Files should average less than 100 kilobytes per page"]
["Files must be readable with free PDF file viewers including Adobe Reader and be compatible with Adobe Reader 5.0 and above"]
["Files should be saved so that “Fast Web View” (or page at a time downloading) is enabled"]
["Text within the PDF file should be searchable using the “Find” command in the PDF viewer"]

{"sheet":"ApplicantInfo","index":2,"n_rows":44,"n_cols":2,"rows_kept":44,"cut":false,"hidden":false,"merged":[[7,3,7,8],[6,3,6,8],[5,3,5,8],[36,0,36,2],[35,0,35,2],[14,3,14,8],[9,3,9,8],[10,3,10,8],[32,3,32,8],[31,3,31,8],[17,0,17,2],[16,0,16,2],[24,0,24,2],[13,0,13,2],[12,0,12,2],[20,0,20,2],[4,0,4,2],[15,0,15,2],[7,0,7,2],[6,0,6,2],[5,0,5,2],[9,0,9,2],[11,0,11,2],[8,0,8,2],[14,0,14,2],[32,0,32,2],[31,0,31,2],[30,0,30,2],[18,0,18,2],[28,0,28,2],[39,0,39,8],[38,3,38,8],[37,3,37,8],[36,3,36,8],[35,3,35,8],[38,0,38,2],[37,0,37,2],[3,0,3,8],[34,3,34,8],[33,3,33,8],[24,3,24,8],[23,3,23,8],[13,3,13,8],[10,0,10,2],[11,3,11,8],[17,3,17,8],[4,3,4,8],[15,3,15,8],[8,3,8,8],[23,0,23,2],[16,3,16,8],[22,0,22,2],[12,3,12,8],[43,1,43,8],[41,0,41,8],[1,0,1,8],[21,0,21,2],[21,3,21,8],[30,3,30,8],[28,3,28,8],[27,3,27,8],[18,3,18,8],[22,3,22,8],[20,3,20,8],[27,0,27,2],[33,0,33,2],[42,0,42,7],[34,0,34,2],[2,0,2,8]]}
[]
["TAB 1. APPLICANT INFORMATION"]
["Provide the contact information for the Applicant's staff person who is responsible for application and contract administration. This contact will not be the consultant or the service provider."]
["A. CONTACT INFORMATION"]
["Applicant Legal Name"]
["Applicant Contact First Name"]
["Applicant Contact Last Name"]
["Contact Title"]
["Contact Phone"]
["Contact Email"]
["Mailing Address"]
["City "]
["State"]
["Zip"]
["Physical Address"]
["City "]
["State"]
["Zip"]
["Applicant Website"]
["SIGNATURE AUTHORITY (must match Resolution)"]
["Signature Authority First Name"]
["Signature Authority Last Name"]
["Signature Authority Title"]
["Phone"]
["Email"]
[]
["B. LEGAL DESCRIPTION"]
["Legal Form of Applicant (select from the drop menu)"]
["Federal Taxpayer Identification Number (TIN# or EIN#)"]
["Other Designations (select YES or NO from the drop menu):"]
["HUB"]
["CHDO"]
["COG"]
["Tax Exempt"]
["FY end Month"]
["FY End Day"]
["DUNS Number"]
["Registered with System for Award Mgmt (SAM)"]
["SAM Expiration Date"]
["(Information and registration for a DUNS number can be accessed at www.dnb.com. Information and registration for SAM can be accessed at www.sam.gov)"]
[]
["HOME funds may be used to pay indirect costs in accordance with 2 CFR Part §200.414.  Indirect costs may be applied individually to eligible costs as part of a Department approved cost allocation plan, applied as a set amount using the de minimus rate elected in accordance with 2 CFR Part 200, or an indirect cost rate approved by the applicant’s Federal cognizant agency.  Administrators that elect to charge an indirect cost rate must notify the department by checking this box so that the Department can obtain additional information for inclusion in the contract, if awarded."]
["Does Administrator elect to charge an indirect cost rate?    (Yes or No) "]
[null,"If Yes, submit a Department approved cost allocation plan, or the de minimus rate in accordance with 2 CFR 200 or letter of approval of negotiated indirect cost rate from the Federal cognizant agency."]

{"sheet":"ProjectOversight","index":3,"n_rows":53,"n_cols":7,"rows_kept":53,"cut":false,"hidden":false,"merged":[[14,3,14,8],[17,3,17,8],[15,0,15,7],[16,0,16,7],[12,0,12,2],[13,0,13,2],[14,0,14,2],[17,0,17,2],[10,0,10,2],[11,0,11,2],[11,3,11,8],[12,3,12,8],[13,3,13,8],[10,3,10,8],[3,0,3,7],[6,0,6,2],[7,0,7,2],[8,0,8,2],[9,0,9,2],[4,3,4,8],[5,3,5,8],[6,3,6,8],[7,3,7,8],[8,3,8,8],[9,3,9,8],[4,0,4,2],[5,0,5,2],[27,6,27,8],[36,0,36,8],[37,0,37,8],[32,4,32,5],[29,0,29,7],[30,0,30,8],[32,6,32,8],[31,6,31,8],[28,6,28,8],[27,4,27,5],[28,4,28,5],[24,4,24,5],[25,4,25,5],[26,4,26,5],[23,6,23,8],[24,6,24,8],[25,6,25,8],[26,6,26,8],[23,4,23,5],[1,0,1,8],[46,7,46,8],[47,0,47,6],[48,0,48,8],[49,0,49,7],[38,0,38,1],[38,2,38,8],[39,0,39,1],[39,2,39,8],[40,0,40,1],[40,2,40,8],[22,6,22,8],[33,0,33,7],[21,0,21,8],[20,0,20,7],[19,0,19,7],[50,0,50,8],[51,0,51,8],[41,0,41,1],[41,2,41,8],[42,0,42,8],[43,0,43,8],[44,0,44,8],[45,0,45,8]]}
[]
["TAB 2. PROJECT OVERSIGHT"]
["A. CONSULTANT OR SERVICE PROVIDER"]
["Has the Applicant acquired the use of a Consultant or service provider to assist in completing this Application?"]
["Consultant or Service Provider Name"]
["Contact Name"]
["Mailing Address"]
["City"]
["State"]
["Zip"]
["Federal Taxpayer ID"]
["Phone "]
["Fax"]
["Email"]
["Proposed Fee for this application"]
["Does the Consultant or service provider qualify as a HUB?"]
["Is there a direct or indirect financial, guarantor or other interest with Applicant"]
["Describe relationship"]
[]
["Will Applicant self administer the HOME Program Activity(ies) in this Application?"]
["How many staff members will be involved in administering the Program? "]
[" Provide name, title, phone number, e-mail address, and description of responsibilities of the staff that will be responsible for administering the proposed HOME Activity in this application:"]
[null,"Name","Job Title ","Phone #","Email Address",null,"Job Responsibilities and experience: "]
[1]
[2]
[3]
[4]
[5]
[6]
["If Not self-administering the program, will applicant procure a housing consultant?  (select YES or NO from the drop menu.)"]
["Provide name, title, phone number, and e-mail address of staff person that will be providing the daily oversight of the consultant or service provider:"]
[null,"Name","Job Title ","Phone #","Email Address",null,"Job Responsibilities and experience: "]
[1]
["Has Applicant attended TDHCA’s First Thursday Income Eligibility Training within the previous 12 months?  "]
["Information on Training - https://www.tdhca.state.tx.us/pmcomp/COMPtrain.html"]
[]
["B.  CONSTRUCTION OVERSIGHT (Not Applicable to TBRA)"]
["If Applicant is approved as a Reservation System Participant, Applicant will be responsible for the direct oversight of construction activities for the assisted units regardless if Applicant procures a housing consultant to administer the program.  Provide the name, title, email and phone number of the person that will be providing the construction oversight. The assigned person cannot be the consultant."]
["Name:"]
["Title:"]
["Phone Number:"]
["Email:"]
["Detail how the Applicant will conduct construction oversight?"]
[]
["Detail how the Applicant will document the construction oversight?"]
[]
["Does the Applicant have a qualified construction inspector on staff?"]
["Detail this person’s experience:"]
[]
["Will the staff construction inspector be responsible for the construction oversight?"]
["Please list person who will be responsible for the construction oversight.  (This person cannot be the housing consultant.)"]
[]
["List of Links"]

{"sheet":"AdminForms","index":4,"n_rows":22,"n_cols":3,"rows_kept":22,"cut":false,"hidden":false,"merged":[[0,0,0,9]]}
["TAB 3. ADMINISTRATIVE FORMS"]
[null,"Submit the following completed documents behind this tab:"]
[]
["A. Payee ID form (Application for Texas Identification Number), found at: "]
[null,"http://www.tdhca.state.tx.us/home-division/applications.htm"]
[]
["B. Direct Deposit Form, found at: "]
[null,"http://www.tdhca.state.tx.us/home-division/applications.htm"]
[]
["C. Administrative Environmental Clearance Forms, found at: "]
[null,"http://www.tdhca.state.tx.us/home-division/applications.htm"]
[null,"The two forms to be competed are found under \"Administrative Environmental Forms\":"]
[null,"·"," Exemption Determination"]
[null,"·"," Compliance Documentation"]
[]
["D. Documentation of the 9-digit Federal Tax Identification Number from the IRS (IRS Letter); and"]
[]
["E.  Evidence of current registration in the System for Award Management (SAM).  "]
[null,"The SAM website can be accessed at: "]
[null,"https://www.sam.gov/portal/public/SAM/"]
[null,"Evidence may be in the form of a printed page from the SAM website "]
[null,"which states both the name and DUNS number of the Applicant. "]

{"sheet":"Activities","index":5,"n_rows":15,"n_cols":4,"rows_kept":15,"cut":false,"hidden":false,"merged":[[4,1,4,3],[1,0,1,3],[14,0,14,2],[3,0,3,3],[12,0,12,2],[13,0,13,2],[11,0,11,3]]}
["Use Arrow keys to fill out form."]
["TAB 4. PROGRAM ACTIVITIES"]
["A. RESERVATION SYSTEM PARTICIPATION"]
["Select the Program Activity or Activities the Applicant plans to administer as an RSP. Check all that apply. Select YES or NO from the drop down menu.  Additional tabs will be activated upon each selection."]
[null,"SET ASIDE"]
["TDHCA HOME Program Activities for which the requested funds will be used:","General","Persons With Disabilities","Disaster Relief"]
["Homeowner Reconstruction Assistance (HRA)"]
["Tenant Based Rental Assistance (TBRA)"]
["Contract for Deed Conversion (CFDC)"]
["Homebuyer Assistance New Construction (HANC)"]
[]
["Administrative funds for TBRA have two options. Select one of the following:"]
["Option 1: Funds for Administrative costs are limited to 4% of the total Direct Project Costs, exclusive of Match funds, and Activity soft costs are limited to $1,200 per Household assisted. However, an additional 1% in Administrative funds may be requested if Match provided meets or exceeds 5% of Direct Project Costs, or "]
["Option 2: Funds for Administrative costs are limited to 8 percent of Direct Activity Costs, excluding Match funds, and Administrator may not be reimbursed for Activity soft costs "]
["Any other Federal Funds being leveraged for this Project such as CDBG, USDA-Rural Development, HUD Housing Counseling, etc. (Yes or No-dropdown)"]

{"sheet":"Cash Reserve","index":6,"n_rows":20,"n_cols":7,"rows_kept":20,"cut":false,"hidden":false,"merged":[[13,1,13,2],[14,1,14,2],[15,1,15,6],[1,0,1,8],[3,0,3,8],[4,0,4,8],[6,2,6,8],[7,2,7,8],[9,2,9,8],[11,0,11,6]]}
["HOME Program Application Local Cash Reserve- Skip to Navigation Menu"]
["TAB 5. LOCAL CASH RESERVE "]
[]
["A.     DOCUMENTATION OF FINANCIAL CAPACITY"]
["One of the following must be submitted in order to meet the Application threshold requirements. Select only one of the following and include the required documentation in the PDF file of the application, behind Tab 4. Also note that the amount of the committed cash reserves must be included and stated in the Applicant's Resolution."]
[]
[1,null,"A) Entity’s accounting financial statements indicating adequate local unrestricted cash or cash equivalents to utilize as cash reserves, and"]
[null,null,"B) A letter from the Applicant's bank(s) or financial institution(s) indicating that current account balances are sufficient."]
[]
[2,null,"A) Evidence of an available line of credit or equivalent in an amount equal to or exceeding the cash reserve requirement."]
[]
["B.     AMOUNT OF CASH RESERVE"]
["The following chart indicates the amount of the cash reserve that is required based on the activities requested."]
[null,"Reservation Activity",null,"HRA","HANC","CFDC","TBRA"]
[null,"Required Cash Reserve ",null,40000,40000,40000,15000]
[null,"The amount of cash reserve required is limited to the highest cash reserve required for one activity. For example, if the Applicant is requesting to participate in the Reservation System for HRA and TBRA, the total cash reserve required is $40,000."]
["List of Links"]
["Local Cash Reserve Instructions"]
["Amount of Cash Reserves Instructions"]
["Start Fillable Form"]

{"sheet":"Service Area-HRA","index":7,"n_rows":8,"n_cols":8,"rows_kept":8,"cut":false,"hidden":true,"merged":[[26,0,26,1],[26,2,26,4],[26,5,26,6],[26,7,26,8],[27,0,27,1],[27,2,27,4],[27,5,27,6],[27,7,27,8],[24,0,24,1],[24,2,24,4],[24,5,24,6],[24,7,24,8],[25,0,25,1],[25,2,25,4],[25,5,25,6],[25,7,25,8],[23,0,23,1],[23,2,23,4],[23,5,23,6],[23,7,23,8],[20,0,20,1],[20,2,20,4],[20,5,20,6],[20,7,20,8],[21,0,21,1],[21,2,21,4],[21,5,21,6],[21,7,21,8],[10,0,10,1],[10,2,10,4],[10,5,10,6],[10,7,10,8],[11,0,11,1],[11,2,11,4],[11,5,11,6],[11,7,11,8],[12,0,12,1],[12,2,12,4],[12,5,12,6],[12,7,12,8],[1,0,1,8],[8,0,8,1],[8,2,8,4],[8,5,8,6],[8,7,8,8],[9,0,9,1],[9,2,9,4],[9,5,9,6],[9,7,9,8],[7,0,7,1],[7,2,7,4],[7,5,7,6],[7,7,7,8],[3,0,3,8],[4,0,4,8],[5,0,5,8],[13,0,13,1],[13,2,13,4],[13,5,13,6],[13,7,13,8],[14,0,14,1],[14,2,14,4],[14,5,14,6],[14,7,14,8],[15,0,15,1],[15,2,15,4],[15,5,15,6],[15,7,15,8],[16,0,16,1],[16,2,16,4],[16,5,16,6],[16,7,16,8],[17,0,17,1],[17,2,17,4],[17,5,17,6],[17,7,17,8],[28,0,28,1],[28,2,28,4],[28,5,28,6],[28,7,28,8],[18,0,18,1],[18,2,18,4],[18,5,18,6],[18,7,18,8],[19,0,19,1],[19,2,19,4],[19,5,19,6],[19,7,19,8],[22,0,22,1],[22,2,22,4],[22,5,22,6],[22,7,22,8],[29,0,29,1],[29,2,29,4],[29,5,29,6],[29,7,29,8],[30,0,30,1],[30,2,30,4],[30,5,30,6],[30,7,30,8],[31,0,31,1],[31,2,31,4],[31,5,31,6],[31,7,31,8],[32,0,32,1],[32,2,32,4],[32,5,32,6],[32,7,32,8],[33,0,33,1],[33,2,33,4],[33,5,33,6],[33,7,33,8],[37,5,37,6],[37,7,37,8],[34,0,34,1],[34,2,34,4],[34,5,34,6],[34,7,34,8],[35,0,35,1],[35,2,35,4],[35,5,35,6],[35,7,35,8],[38,0,38,1],[38,2,38,4],[38,5,38,6],[38,7,38,8],[36,0,36,1],[36,2,36,4],[36,5,36,6],[36,7,36,8],[37,0,37,1],[37,2,37,4]]}
["HOME Application Service Area HRA - Skip to Navigation Menu"]
["TAB 6-a. APPLICANT’S SERVICE AREA "]
["ACTIVITY - HRA"]
["Select each county from the dropdown menu below.  List the targeted city(s) or colonia(s).  "]
["Households located within a Participating Jurisdiction (PJ) are not eligible for assistance. To verify if targeted city or county is located in a PJ copy and paste the following link into your browser: "]
["https://www.tdhca.state.tx.us/home-division/docs/HUD_PJs_Full_List.pdf"]
["Enter each County in Service Area"]
["County ",null,"List specific cities or colonias to be served if not serving the entire county.",null,null,"Is County or City in a PJ or part of a Consortium?  ",null,"If “YES” list PJ or Consortium  "]

{"sheet":"Matching Funds-HRA","index":8,"n_rows":24,"n_cols":8,"rows_kept":24,"cut":false,"hidden":true,"merged":[[25,7,25,8],[26,7,26,8],[3,0,3,8],[9,0,9,7],[11,0,11,8],[4,0,4,8],[20,0,20,3],[20,5,20,6],[15,7,15,8],[12,7,12,8],[19,0,19,3],[19,5,19,6],[16,5,16,6],[17,5,17,6],[22,7,22,8],[1,0,1,8],[2,0,2,8],[10,0,10,8],[14,5,14,6],[15,5,15,6],[14,7,14,8],[13,7,13,8],[12,0,12,3],[12,5,12,6],[13,0,13,3],[14,0,14,3],[15,0,15,3],[13,5,13,6],[5,0,5,8],[6,0,6,8],[8,0,8,8],[7,0,7,8],[23,0,23,3],[21,7,21,8],[17,0,17,3],[18,0,18,3],[21,0,21,3],[21,5,21,6],[22,5,22,6],[18,5,18,6],[20,7,20,8],[16,0,16,3],[16,7,16,8],[17,7,17,8],[18,7,18,8],[19,7,19,8],[22,0,22,3]]}
["HOME Program Matching Funds HRA - Skip to Navigation Menu"]
["TAB 7-a. MATCHING FUNDS "]
["HRA"]
["A. Required Match Contribution Percentage"]
["(1) 0% of Direct Activity Costs (Hard Costs), exclusive of Match, is required as Match: \n    (A) when the Service Area includes the entire unincorporated area of a county and where the population of Administrator's Service Area is less than or equal to 20,000 persons (ACS 5-year estimate); or \n    (B) when the Service Area does not include the entire unincorporated area of a county and the population of the Administrator's Service Area is less than or equal to 3,000 persons (ACD 5-year estimate). \n  (2) 1% of Direct Activity Costs (Hard Costs), exclusive of Match, is required as Match for every 1,000 in population to a maximum of 15 percent."]
["Include a copy of the most recent American Community Survey report with your application."]
["https://www.census.gov/acs/www/data/data-tables-and-tools/data-profiles/"]
["1. Under the Geography Type section, select County for County and Place for City"]
["2. Select Demographic Characteristics"]
["Based on the Activity and Service Area proposed in the Application, what is Applicant's Match percentage requirement?"]
[]
["B. Match Itemization.  Place required Match support documentation behind this tab.  "]
["TYPE OF MATCH PLEDGED",null,null,null,"Pledged Amount","Funds provided by:",null,"If not provided by Applicant, name Provider."]
["Cash / cash equivalents from non-federal sources"]
["Value of waived taxes, fees or charges associated with HOME projects (ex: debris removal and container fees, tap fees, electrical hook up, building permits)",null,null,null,null,null,null,"     "]
["Value of donated labor (includes volunteer labor)",null,null,null,null,null,null,"     "]
["Value of donated professional services",null,null,null,null,null,null,"     "]
["Donated Site Preparation (limit $1,500/unit)",null,null,null,null,null,null,"     "]
["Donated Demolition Services (limit $4,000/unit)",null,null,null,null,null,null,"     "]
["Cost of infrastructure improvements associated with HOME projects",null,null,null,null,null,null,"     "]
["Value of donated use of site preparation or construction equipment and materials",null,null,null,null,null,null,"     "]
["Donated Real Property",null,null,null,null,null,null,"     "]
["Direct Cost of Housing Counseling",null,null,null,null,null,null,"     "]
["Total Value of Match Pledged:",null,null,null,{"$f":"SUM(E14:E23)","v":0}]

{"sheet":"Service Area-HRA PWD","index":9,"n_rows":6,"n_cols":8,"rows_kept":6,"cut":false,"hidden":true,"merged":[[25,0,25,1],[25,2,25,4],[25,5,25,6],[25,7,25,8],[22,0,22,1],[22,2,22,4],[22,5,22,6],[22,7,22,8],[23,0,23,1],[23,2,23,4],[23,5,23,6],[23,7,23,8],[24,0,24,1],[24,2,24,4],[24,5,24,6],[24,7,24,8],[19,0,19,1],[19,2,19,4],[19,5,19,6],[19,7,19,8],[20,0,20,1],[20,2,20,4],[20,5,20,6],[20,7,20,8],[21,0,21,1],[21,2,21,4],[21,5,21,6],[21,7,21,8],[16,0,16,1],[16,2,16,4],[16,5,16,6],[16,7,16,8],[17,0,17,1],[17,2,17,4],[17,5,17,6],[17,7,17,8],[18,0,18,1],[18,2,18,4],[18,5,18,6],[18,7,18,8],[13,0,13,1],[13,2,13,4],[13,5,13,6],[13,7,13,8],[14,0,14,1],[14,2,14,4],[14,5,14,6],[14,7,14,8],[15,0,15,1],[15,2,15,4],[15,5,15,6],[15,7,15,8],[10,0,10,1],[10,2,10,4],[10,5,10,6],[10,7,10,8],[11,0,11,1],[11,2,11,4],[11,5,11,6],[11,7,11,8],[12,0,12,1],[12,2,12,4],[12,5,12,6],[12,7,12,8],[7,0,7,1],[7,2,7,4],[7,5,7,6],[7,7,7,8],[8,0,8,1],[8,2,8,4],[8,5,8,6],[8,7,8,8],[9,0,9,1],[9,2,9,4],[9,5,9,6],[9,7,9,8],[5,0,5,1],[5,2,5,4],[5,5,5,6],[5,7,5,8],[1,0,1,8],[3,0,3,8],[6,0,6,1],[6,2,6,4],[6,5,6,6],[6,7,6,8],[28,0,28,1],[28,2,28,4],[28,5,28,6],[28,7,28,8],[29,0,29,1],[29,2,29,4],[29,5,29,6],[29,7,29,8],[26,0,26,1],[26,2,26,4],[26,5,26,6],[26,7,26,8],[27,0,27,1],[27,2,27,4],[27,5,27,6],[27,7,27,8],[32,0,32,1],[32,2,32,4],[32,5,32,6],[32,7,32,8],[33,0,33,1],[33,2,33,4],[33,5,33,6],[33,7,33,8],[30,0,30,1],[30,2,30,4],[30,5,30,6],[30,7,30,8],[31,0,31,1],[31,2,31,4],[31,5,31,6],[31,7,31,8],[36,0,36,1],[36,2,36,4],[36,5,36,6],[36,7,36,8],[34,0,34,1],[34,2,34,4],[34,5,34,6],[34,7,34,8],[35,0,35,1],[35,2,35,4],[35,5,35,6],[35,7,35,8]]}
["HOME Application Service Area HRA PWD- Skip to Navigation Menu"]
["TAB 6-b. APPLICANT’S SERVICE AREA "]
["ACTIVITY - HRA PWD"]
["Select each county from the dropdown menu below.  List the targeted city(s) or colonia(s).  "]
["Enter each County in Service Area"]
["County ",null,"List specific cities or colonias to be served if not serving the entire county.",null,null,"Is County or City in a PJ or part of a Consortium?  ",null,"If “YES” list PJ or Consortium  "]

{"sheet":"Matching Funds-HRA PWD","index":10,"n_rows":18,"n_cols":8,"rows_kept":18,"cut":false,"hidden":true,"merged":[[16,5,16,6],[13,7,13,8],[9,5,9,6],[10,5,10,6],[15,7,15,8],[14,7,14,8],[14,5,14,6],[16,7,16,8],[15,0,15,3],[13,0,13,3],[12,7,12,8],[15,5,15,6],[1,0,1,8],[2,0,2,8],[4,0,4,8],[3,0,3,7],[6,0,6,3],[6,5,6,6],[6,7,6,8],[5,0,5,8],[8,0,8,3],[7,0,7,3],[8,5,8,6],[16,0,16,3],[7,7,7,8],[7,5,7,6],[17,0,17,3],[8,7,8,8],[9,7,9,8],[11,5,11,6],[12,5,12,6],[13,5,13,6],[9,0,9,3],[11,7,11,8],[10,7,10,8],[10,0,10,3],[11,0,11,3],[12,0,12,3],[14,0,14,3]]}
["HOME Program Matching Funds HRA PWD- Skip to Navigation Menu"]
["TAB 7-b. MATCHING FUNDS "]
["HRA - PWD  (No Match Required)"]
["If applicant is providing match, what is Applicant's Match pledge percentage?"]
[]
["B. Match Itemization.  Place required Match support documentation behind this tab.  "]
["TYPE OF MATCH PLEDGED",null,null,null,"Pledged Amount","Funds provided by:",null,"If not provided by Applicant, name Provider."]
["Cash / cash equivalents from non-federal sources"]
["Value of waived taxes, fees or charges associated with HOME projects (ex: debris removal and container fees, tap fees, electrical hook up, building permits)",null,null,null,null,null,null,"     "]
["Value of donated labor (includes volunteer labor)",null,null,null,null,null,null,"     "]
["Value of donated professional services",null,null,null,null,null,null,"     "]
["Donated Site Preparation (limit $1,500/unit)",null,null,null,null,null,null,"     "]
["Donated Demolition Services (limit $4,000/unit)",null,null,null,null,null,null,"     "]
["Cost of infrastructure improvements associated with HOME projects",null,null,null,null,null,null,"     "]
["Value of donated use of site preparation or construction equipment and materials",null,null,null,null,null,null,"     "]
["Donated Real Property",null,null,null,null,null,null,"     "]
["Direct Cost of Housing Counseling",null,null,null,null,null,null,"     "]
["Total Value of Match Pledged:",null,null,null,{"$f":"SUM(E8:E17)","v":0}]

{"sheet":"Service Area-HRA DR","index":11,"n_rows":8,"n_cols":8,"rows_kept":8,"cut":false,"hidden":true,"merged":[[27,0,27,1],[27,2,27,4],[27,5,27,6],[27,7,27,8],[24,0,24,1],[24,2,24,4],[24,5,24,6],[24,7,24,8],[25,0,25,1],[25,2,25,4],[25,5,25,6],[25,7,25,8],[26,0,26,1],[26,2,26,4],[26,5,26,6],[26,7,26,8],[21,0,21,1],[21,2,21,4],[21,5,21,6],[21,7,21,8],[22,0,22,1],[22,2,22,4],[22,5,22,6],[22,7,22,8],[23,0,23,1],[23,2,23,4],[23,5,23,6],[23,7,23,8],[18,0,18,1],[18,2,18,4],[18,5,18,6],[18,7,18,8],[19,0,19,1],[19,2,19,4],[19,5,19,6],[19,7,19,8],[20,0,20,1],[20,2,20,4],[20,5,20,6],[20,7,20,8],[15,0,15,1],[15,2,15,4],[15,5,15,6],[15,7,15,8],[16,0,16,1],[16,2,16,4],[16,5,16,6],[16,7,16,8],[17,0,17,1],[17,2,17,4],[17,5,17,6],[17,7,17,8],[12,0,12,1],[12,2,12,4],[12,5,12,6],[12,7,12,8],[13,0,13,1],[13,2,13,4],[13,5,13,6],[13,7,13,8],[14,0,14,1],[14,2,14,4],[14,5,14,6],[14,7,14,8],[9,0,9,1],[9,2,9,4],[9,5,9,6],[9,7,9,8],[10,0,10,1],[10,2,10,4],[10,5,10,6],[10,7,10,8],[11,0,11,1],[11,2,11,4],[11,5,11,6],[11,7,11,8],[7,0,7,1],[7,2,7,4],[7,5,7,6],[7,7,7,8],[1,0,1,8],[3,0,3,8],[8,0,8,1],[8,2,8,4],[8,5,8,6],[8,7,8,8],[4,0,4,8],[5,0,5,8],[30,0,30,1],[30,2,30,4],[30,5,30,6],[30,7,30,8],[31,0,31,1],[31,2,31,4],[31,5,31,6],[31,7,31,8],[28,0,28,1],[28,2,28,4],[28,5,28,6],[28,7,28,8],[29,0,29,1],[29,2,29,4],[29,5,29,6],[29,7,29,8],[34,0,34,1],[34,2,34,4],[34,5,34,6],[34,7,34,8],[35,0,35,1],[35,2,35,4],[35,5,35,6],[35,7,35,8],[32,0,32,1],[32,2,32,4],[32,5,32,6],[32,7,32,8],[33,0,33,1],[33,2,33,4],[33,5,33,6],[33,7,33,8],[38,0,38,1],[38,2,38,4],[38,5,38,6],[38,7,38,8],[36,0,36,1],[36,2,36,4],[36,5,36,6],[36,7,36,8],[37,0,37,1],[37,2,37,4],[37,5,37,6],[37,7,37,8]]}
["HOME Application Service Area HRA - Skip to Navigation Menu"]
["TAB 6-c. APPLICANT’S SERVICE AREA "]
["ACTIVITY - HRA Disaster Relief"]
["Select each county from the dropdown menu below.  List the targeted city(s) or colonia(s).  "]
["Households located within a Participating Jurisdiction (PJ) are not eligible for assistance. To verify if targeted city or county is located in a PJ copy and paste the following link into your browser: "]
["https://www.tdhca.state.tx.us/home-division/docs/HUD_PJs_Full_List.pdf"]
["Enter each County in Service Area"]
["County ",null,"List specific cities or colonias to be served if not serving the entire county.",null,null,"Is County or City in a PJ or part of a Consortium?  ",null,"If “YES” list PJ or Consortium  "]

{"sheet":"Matching Funds-HRA DR","index":12,"n_rows":18,"n_cols":8,"rows_kept":18,"cut":false,"hidden":true,"merged":[[3,0,3,7],[6,0,6,3],[6,5,6,6],[6,7,6,8],[7,0,7,3],[19,7,19,8],[10,0,10,3],[11,0,11,3],[12,0,12,3],[13,0,13,3],[14,0,14,3],[15,0,15,3],[16,7,16,8],[14,7,14,8],[15,7,15,8],[11,5,11,6],[12,5,12,6],[13,7,13,8],[12,7,12,8],[10,7,10,8],[8,0,8,3],[7,7,7,8],[8,7,8,8],[7,5,7,6],[17,0,17,3],[9,0,9,3],[1,0,1,8],[2,0,2,8],[4,0,4,8],[5,0,5,8],[8,5,8,6],[9,5,9,6],[9,7,9,8],[16,0,16,3],[13,5,13,6],[14,5,14,6],[15,5,15,6],[16,5,16,6],[11,7,11,8],[10,5,10,6]]}
["HOME Program Matching Funds HRA Disaster Relief- Skip to Navigation Menu"]
["TAB 7-c. MATCHING FUNDS "]
["HRA - Disaster Relief (No Match Requirement)"]
["If applicant is providing match, what is Applicant's Match pledge percentage?"]
[]
["B. Match Itemization.  Place required Match support documentation behind this tab.  "]
["TYPE OF MATCH PLEDGED",null,null,null,"Pledged Amount","Funds provided by:",null,"If not provided by Applicant, name Provider."]
["Cash / cash equivalents from non-federal sources"]
["Value of waived taxes, fees or charges associated with HOME projects (ex: debris removal and container fees, tap fees, electrical hook up, building permits)",null,null,null,null,null,null,"     "]
["Value of donated labor (includes volunteer labor)",null,null,null,null,null,null,"     "]
["Value of donated professional services",null,null,null,null,null,null,"     "]
["Donated Site Preparation (limit $1,500/unit)",null,null,null,null,null,null,"     "]
["Donated Demolition Services (limit $4,000/unit)",null,null,null,null,null,null,"     "]
["Cost of infrastructure improvements associated with HOME projects",null,null,null,null,null,null,"     "]
["Value of donated use of site preparation or construction equipment and materials",null,null,null,null,null,null,"     "]
["Donated Real Property",null,null,null,null,null,null,"     "]
["Direct Cost of Housing Counseling",null,null,null,null,null,null,"     "]
["Total Value of Match Pledged:",null,null,null,{"$f":"SUM(E8:E17)","v":0}]

{"sheet":"Service Area-TBRA","index":13,"n_rows":8,"n_cols":8,"rows_kept":8,"cut":false,"hidden":true,"merged":[[26,0,26,1],[26,2,26,4],[26,5,26,6],[26,7,26,8],[27,0,27,1],[27,2,27,4],[27,5,27,6],[27,7,27,8],[24,0,24,1],[24,2,24,4],[24,5,24,6],[24,7,24,8],[25,0,25,1],[25,2,25,4],[25,5,25,6],[25,7,25,8],[23,0,23,1],[23,2,23,4],[23,5,23,6],[23,7,23,8],[20,0,20,1],[20,2,20,4],[20,5,20,6],[20,7,20,8],[21,0,21,1],[21,2,21,4],[21,5,21,6],[21,7,21,8],[10,0,10,1],[10,2,10,4],[10,5,10,6],[10,7,10,8],[11,0,11,1],[11,2,11,4],[11,5,11,6],[11,7,11,8],[12,0,12,1],[12,2,12,4],[12,5,12,6],[12,7,12,8],[1,0,1,8],[3,0,3,8],[7,5,7,6],[8,0,8,1],[8,2,8,4],[8,5,8,6],[8,7,8,8],[9,0,9,1],[9,2,9,4],[9,5,9,6],[9,7,9,8],[7,0,7,1],[7,2,7,4],[7,7,7,8],[4,0,4,8],[5,0,5,8],[13,2,13,4],[13,5,13,6],[13,7,13,8],[14,0,14,1],[14,2,14,4],[14,5,14,6],[14,7,14,8],[15,0,15,1],[15,2,15,4],[15,5,15,6],[15,7,15,8],[13,0,13,1],[16,0,16,1],[16,2,16,4],[16,5,16,6],[16,7,16,8],[17,0,17,1],[17,2,17,4],[17,5,17,6],[17,7,17,8],[28,0,28,1],[28,2,28,4],[28,5,28,6],[28,7,28,8],[18,0,18,1],[18,2,18,4],[18,5,18,6],[18,7,18,8],[19,0,19,1],[19,2,19,4],[19,5,19,6],[19,7,19,8],[22,0,22,1],[22,2,22,4],[22,5,22,6],[22,7,22,8],[29,0,29,1],[29,2,29,4],[29,5,29,6],[29,7,29,8],[30,0,30,1],[30,2,30,4],[30,5,30,6],[30,7,30,8],[31,0,31,1],[31,2,31,4],[31,5,31,6],[31,7,31,8],[35,0,35,1],[35,2,35,4],[35,5,35,6],[35,7,35,8],[32,0,32,1],[32,2,32,4],[32,5,32,6],[32,7,32,8],[33,0,33,1],[33,2,33,4],[33,5,33,6],[33,7,33,8],[34,0,34,1],[34,2,34,4],[34,5,34,6],[34,7,34,8],[36,0,36,1],[36,2,36,4],[36,5,36,6],[36,7,36,8],[37,0,37,1],[37,2,37,4],[37,5,37,6],[37,7,37,8],[38,0,38,1],[38,2,38,4],[38,5,38,6],[38,7,38,8]]}
["HOME Application Service Area TBRA - Skip to Navigation Menu"]
["TAB 6-g. APPLICANT’S SERVICE AREA "]
["ACTIVITY - TBRA"]
["Select each county from the dropdown menu below.  List the targeted city(s) or colonia(s).  "]
["Households located within a Participating Jurisdiction (PJ) are not eligible for assistance. To verify if targeted city or county is located in a PJ copy and paste the following link into your browser: "]
["https://www.tdhca.state.tx.us/home-division/docs/HUD_PJs_Full_List.pdf"]
["Enter each County in Service Area"]
["County ",null,"Please select if serving the entire county, the entire urban, or the entire rural areas of the county",null,null,"List specific cities to be served if not included in the entire county or urban/rural subregion area designated.",null,"If County or City is located within a PJ or part of a Consortium, please list PJ or Consortium  "]

{"sheet":"Matching Funds-TBRA","index":14,"n_rows":15,"n_cols":8,"rows_kept":15,"cut":false,"hidden":true,"merged":[[9,5,9,6],[11,0,11,3],[6,0,6,7],[9,7,9,8],[10,5,10,6],[9,0,9,3],[10,0,10,3],[8,0,8,8],[1,0,1,8],[2,0,2,8],[3,0,3,8],[4,0,4,6],[5,0,5,8],[12,0,12,3],[14,0,14,3],[12,5,12,6],[13,5,13,6],[10,7,10,8],[13,7,13,8],[12,7,12,8],[13,0,13,3],[11,7,11,8],[11,5,11,6]]}
["HOME Program Matching Funds TBRA- Skip to Navigation Menu"]
["TAB 7-g. MATCHING FUNDS "]
["TBRA"]
["A.      TENANT-BASED RENTAL ASSISTANCE (TBRA) – NO MATCH REQUIREMENT"]
["TBRA under Disaster Relief Set-Aside – NO MATCH REQUIREMENT"]
["TBRA under the Persons with Disabilities Set Aside – NO MATCH REQUIREMENT"]
["If applicant is providing match, what is Applicant's Match pledge percentage?"]
[]
["B. Match Itemization. Place required Match support documentation behind this tab.  "]
["TYPE OF MATCH PLEDGED",null,null,null,"Pledged Amount","Funds provided by:",null,"If not provided by Applicant, name Provider."]
["Cash / cash equivalents from non-federal sources"]
["Value of donated professional services",null,null,null,null,null,null,"     "]
["Direct Cost of Housing Counseling",null,null,null,null,null,null,"     "]
["Direct Costs of Supportive Services for TBRA",null,null,null,null,null,null,"     "]
["Total Value of Match Pledged:",null,null,null,{"$f":"SUM(E11:E14)","v":0}]

{"sheet":"Service Area-TBRA PWD","index":15,"n_rows":6,"n_cols":8,"rows_kept":6,"cut":false,"hidden":true,"merged":[[24,0,24,1],[24,2,24,4],[24,5,24,6],[24,7,24,8],[25,0,25,1],[25,2,25,4],[25,5,25,6],[25,7,25,8],[22,2,22,4],[22,5,22,6],[22,7,22,8],[23,0,23,1],[23,2,23,4],[23,5,23,6],[23,7,23,8],[22,0,22,1],[20,0,20,1],[20,2,20,4],[20,5,20,6],[20,7,20,8],[21,0,21,1],[21,2,21,4],[21,5,21,6],[21,7,21,8],[18,0,18,1],[18,2,18,4],[18,5,18,6],[18,7,18,8],[19,0,19,1],[19,2,19,4],[19,5,19,6],[19,7,19,8],[16,0,16,1],[16,2,16,4],[16,5,16,6],[16,7,16,8],[17,0,17,1],[17,2,17,4],[17,5,17,6],[17,7,17,8],[14,0,14,1],[14,2,14,4],[14,5,14,6],[14,7,14,8],[15,0,15,1],[15,2,15,4],[15,5,15,6],[15,7,15,8],[12,0,12,1],[12,2,12,4],[12,5,12,6],[12,7,12,8],[13,0,13,1],[13,2,13,4],[13,5,13,6],[13,7,13,8],[10,0,10,1],[10,2,10,4],[10,5,10,6],[10,7,10,8],[11,0,11,1],[11,2,11,4],[11,5,11,6],[11,7,11,8],[9,0,9,1],[9,2,9,4],[9,5,9,6],[9,7,9,8],[6,0,6,1],[6,2,6,4],[6,5,6,6],[6,7,6,8],[7,0,7,1],[7,2,7,4],[7,5,7,6],[7,7,7,8],[5,0,5,1],[5,2,5,4],[5,5,5,6],[5,7,5,8],[1,0,1,8],[3,0,3,8],[8,0,8,1],[8,2,8,4],[8,5,8,6],[8,7,8,8],[26,0,26,1],[26,2,26,4],[26,5,26,6],[26,7,26,8],[27,0,27,1],[27,2,27,4],[27,5,27,6],[27,7,27,8],[28,0,28,1],[28,2,28,4],[28,5,28,6],[28,7,28,8],[32,0,32,1],[32,2,32,4],[32,5,32,6],[32,7,32,8],[33,0,33,1],[33,2,33,4],[33,5,33,6],[33,7,33,8],[29,0,29,1],[29,2,29,4],[29,5,29,6],[29,7,29,8],[30,0,30,1],[30,2,30,4],[30,5,30,6],[30,7,30,8],[31,0,31,1],[31,2,31,4],[31,5,31,6],[31,7,31,8],[34,0,34,1],[34,2,34,4],[34,5,34,6],[34,7,34,8],[35,0,35,1],[35,2,35,4],[35,5,35,6],[35,7,35,8],[36,0,36,1],[36,2,36,4],[36,5,36,6],[36,7,36,8]]}
["HOME Application Service Area TBRA - Skip to Navigation Menu"]
["TAB 6-h. APPLICANT’S SERVICE AREA "]
["ACTIVITY - TBRA PWD"]
["Select each county from the dropdown menu below.  List the targeted city(s) or colonia(s).  "]
["Enter each County in Service Area"]
["County ",null,"Please select if serving the entire county, the entire urban, or the entire rural areas of the county",null,null,"List specific cities to be served if not included in the entire county or urban/rural subregion area designated.",null,"If County or City is located within a PJ or part of a Consortium, please list PJ or Consortium  "]

{"sheet":"Matching Funds-TBRA PWD","index":16,"n_rows":15,"n_cols":8,"rows_kept":15,"cut":false,"hidden":true,"merged":[[14,0,14,3],[13,7,13,8],[13,0,13,3],[5,0,5,8],[11,5,11,6],[11,7,11,8],[10,5,10,6],[10,7,10,8],[12,7,12,8],[13,5,13,6],[12,5,12,6],[12,0,12,3],[1,0,1,8],[2,0,2,8],[11,0,11,3],[3,0,3,8],[4,0,4,6],[6,0,6,7],[8,0,8,8],[9,0,9,3],[9,5,9,6],[9,7,9,8],[10,0,10,3]]}
["HOME Program Matching Funds TBRA- Skip to Navigation Menu"]
["TAB 7-h. MATCHING FUNDS "]
["TBRA PWD"]
["A.      TENANT-BASED RENTAL ASSISTANCE (TBRA) – NO MATCH REQUIREMENT"]
["TBRA under Disaster Relief Set-Aside – NO MATCH REQUIREMENT"]
["TBRA under the Persons with Disabilities Set Aside – NO MATCH REQUIREMENT"]
["If applicant is providing match, what is Applicant's Match pledge percentage?"]
[]
["B. Match Itemization. Place required Match support documentation behind this tab.  "]
["TYPE OF MATCH PLEDGED",null,null,null,"Pledged Amount","Funds provided by:",null,"If not provided by Applicant, name Provider."]
["Cash / cash equivalents from non-federal sources"]
["Value of donated professional services",null,null,null,null,null,null,"     "]
["Direct Cost of Housing Counseling",null,null,null,null,null,null,"     "]
["Direct Costs of Supportive Services for TBRA",null,null,null,null,null,null,"     "]
["Total Value of Match Pledged:",null,null,null,{"$f":"SUM(E11:E14)","v":0}]

{"sheet":"Service Area-TBRA DR","index":17,"n_rows":8,"n_cols":8,"rows_kept":8,"cut":false,"hidden":true,"merged":[[0,0,0,8],[1,0,1,8],[3,0,3,8],[22,0,22,1],[23,0,23,1],[23,2,23,4],[23,5,23,6],[23,7,23,8],[21,0,21,1],[21,2,21,4],[21,5,21,6],[21,7,21,8],[22,2,22,4],[22,5,22,6],[22,7,22,8],[19,0,19,1],[19,2,19,4],[19,5,19,6],[19,7,19,8],[20,0,20,1],[20,2,20,4],[20,5,20,6],[20,7,20,8],[17,0,17,1],[24,0,24,1],[24,2,24,4],[24,5,24,6],[24,7,24,8],[26,0,26,1],[26,2,26,4],[26,5,26,6],[26,7,26,8],[25,5,25,6],[25,7,25,8],[25,0,25,1],[25,2,25,4],[10,0,10,1],[10,2,10,4],[10,5,10,6],[10,7,10,8],[15,0,15,1],[15,2,15,4],[15,5,15,6],[15,7,15,8],[16,0,16,1],[16,2,16,4],[16,5,16,6],[16,7,16,8],[13,0,13,1],[13,2,13,4],[13,5,13,6],[13,7,13,8],[14,0,14,1],[7,0,7,1],[7,2,7,4],[7,5,7,6],[7,7,7,8],[8,0,8,1],[8,2,8,4],[8,5,8,6],[8,7,8,8],[9,0,9,1],[9,2,9,4],[9,5,9,6],[9,7,9,8],[28,5,28,6],[28,7,28,8],[11,0,11,1],[11,2,11,4],[11,5,11,6],[11,7,11,8],[12,0,12,1],[12,2,12,4],[12,5,12,6],[12,7,12,8],[14,2,14,4],[14,5,14,6],[14,7,14,8],[17,2,17,4],[17,5,17,6],[17,7,17,8],[18,0,18,1],[18,2,18,4],[18,5,18,6],[18,7,18,8],[27,0,27,1],[27,2,27,4],[27,5,27,6],[27,7,27,8],[38,0,38,1],[38,2,38,4],[38,5,38,6],[38,7,38,8],[35,0,35,1],[35,2,35,4],[35,5,35,6],[35,7,35,8],[32,0,32,1],[32,2,32,4],[32,5,32,6],[32,7,32,8],[33,0,33,1],[33,2,33,4],[33,5,33,6],[33,7,33,8],[34,0,34,1],[34,2,34,4],[34,5,34,6],[34,7,34,8],[4,0,4,8],[5,0,5,8],[36,0,36,1],[36,2,36,4],[36,5,36,6],[36,7,36,8],[37,0,37,1],[37,2,37,4],[37,5,37,6],[37,7,37,8],[29,0,29,1],[29,2,29,4],[29,5,29,6],[29,7,29,8],[30,0,30,1],[30,2,30,4],[30,5,30,6],[30,7,30,8],[31,0,31,1],[31,2,31,4],[31,5,31,6],[31,7,31,8],[28,0,28,1],[28,2,28,4]]}
["HOME Application Service Area TBRA - Skip to Navigation Menu"]
["TAB 6-i. APPLICANT’S SERVICE AREA "]
["ACTIVITY - TBRA Disaster Relief"]
["Select each county from the dropdown menu below.  List the targeted city(s) or colonia(s).  "]
["Households located within a Participating Jurisdiction (PJ) are not eligible for assistance. To verify if targeted city or county is located in a PJ copy and paste the following link into your browser: "]
["https://www.tdhca.state.tx.us/home-division/docs/HUD_PJs_Full_List.pdf"]
["Enter each County in Service Area"]
["County ",null,"Please select if serving the entire county, the entire urban, or the entire rural areas of the county",null,null,"List specific cities to be served if not included in the entire county or urban/rural subregion area designated.",null,"If County or City is located within a PJ or part of a Consortium, please list PJ or Consortium  "]

{"sheet":"Matching Funds-TBRA DR","index":18,"n_rows":15,"n_cols":8,"rows_kept":15,"cut":false,"hidden":true,"merged":[[14,0,14,3],[13,7,13,8],[13,0,13,3],[5,0,5,8],[11,5,11,6],[11,7,11,8],[10,5,10,6],[10,7,10,8],[12,7,12,8],[13,5,13,6],[12,5,12,6],[12,0,12,3],[1,0,1,8],[2,0,2,8],[11,0,11,3],[3,0,3,8],[4,0,4,6],[6,0,6,7],[8,0,8,8],[9,0,9,3],[9,5,9,6],[9,7,9,8],[10,0,10,3]]}
["HOME Program Matching Funds TBRA- Skip to Navigation Menu"]
["TAB 7-i. MATCHING FUNDS "]
["TBRA Disaster Relief"]
["A.      TENANT-BASED RENTAL ASSISTANCE (TBRA) – NO MATCH REQUIREMENT"]
["TBRA under Disaster Relief Set-Aside – NO MATCH REQUIREMENT"]
["TBRA under the Persons with Disabilities Set Aside – NO MATCH REQUIREMENT"]
["If applicant is providing match, what is Applicant's Match pledge percentage?"]
[]
["B. Match Itemization. Place required Match support documentation behind this tab.  "]
["TYPE OF MATCH PLEDGED",null,null,null,"Pledged Amount","Funds provided by:",null,"If not provided by Applicant, name Provider."]
["Cash / cash equivalents from non-federal sources"]
["Value of donated professional services",null,null,null,null,null,null,"     "]
["Direct Cost of Housing Counseling",null,null,null,null,null,null,"     "]
["Direct Costs of Supportive Services for TBRA",null,null,null,null,null,null,"     "]
["Total Value of Match Pledged:",null,null,null,{"$f":"SUM(E11:E14)","v":0}]

{"sheet":"Service Area-CFD","index":19,"n_rows":8,"n_cols":8,"rows_kept":8,"cut":false,"hidden":true,"merged":[[26,0,26,1],[26,2,26,4],[26,5,26,6],[26,7,26,8],[27,0,27,1],[27,2,27,4],[27,5,27,6],[27,7,27,8],[24,0,24,1],[24,2,24,4],[24,5,24,6],[24,7,24,8],[25,0,25,1],[25,2,25,4],[25,5,25,6],[25,7,25,8],[23,0,23,1],[23,2,23,4],[23,5,23,6],[23,7,23,8],[20,0,20,1],[20,2,20,4],[20,5,20,6],[20,7,20,8],[21,0,21,1],[21,2,21,4],[21,5,21,6],[21,7,21,8],[10,0,10,1],[10,2,10,4],[10,5,10,6],[10,7,10,8],[11,0,11,1],[11,2,11,4],[11,5,11,6],[11,7,11,8],[12,0,12,1],[12,2,12,4],[12,5,12,6],[12,7,12,8],[1,0,1,8],[3,0,3,8],[8,0,8,1],[8,2,8,4],[8,5,8,6],[8,7,8,8],[9,0,9,1],[9,2,9,4],[9,5,9,6],[9,7,9,8],[7,0,7,1],[7,2,7,4],[7,5,7,6],[7,7,7,8],[4,0,4,8],[5,0,5,8],[13,0,13,1],[13,2,13,4],[13,5,13,6],[13,7,13,8],[14,0,14,1],[14,2,14,4],[14,5,14,6],[14,7,14,8],[15,0,15,1],[15,2,15,4],[15,5,15,6],[15,7,15,8],[16,0,16,1],[16,2,16,4],[16,5,16,6],[16,7,16,8],[17,0,17,1],[17,2,17,4],[17,5,17,6],[17,7,17,8],[28,0,28,1],[28,2,28,4],[28,5,28,6],[28,7,28,8],[18,0,18,1],[18,2,18,4],[18,5,18,6],[18,7,18,8],[19,0,19,1],[19,2,19,4],[19,5,19,6],[19,7,19,8],[22,0,22,1],[22,2,22,4],[22,5,22,6],[22,7,22,8],[29,0,29,1],[29,2,29,4],[29,5,29,6],[29,7,29,8],[30,0,30,1],[30,2,30,4],[30,5,30,6],[30,7,30,8],[31,0,31,1],[31,2,31,4],[31,5,31,6],[31,7,31,8],[32,0,32,1],[32,2,32,4],[32,5,32,6],[32,7,32,8],[33,0,33,1],[33,2,33,4],[33,5,33,6],[33,7,33,8],[34,0,34,1],[34,2,34,4],[34,5,34,6],[34,7,34,8],[38,0,38,1],[38,2,38,4],[38,5,38,6],[38,7,38,8],[35,0,35,1],[35,2,35,4],[35,5,35,6],[35,7,35,8],[36,0,36,1],[36,2,36,4],[36,5,36,6],[36,7,36,8],[37,0,37,1],[37,2,37,4],[37,5,37,6],[37,7,37,8]]}
["HOME Application Service Area CFD - Skip to Navigation Menu"]
["TAB 6-j. APPLICANT’S SERVICE AREA "]
["ACTIVITY - CFD"]
["Select each county from the dropdown menu below.  List the targeted city(s) or colonia(s).  "]
["Households located within a Participating Jurisdiction (PJ) are not eligible for assistance. To verify if targeted city or county is located in a PJ copy and paste the following link into your browser: "]
["https://www.tdhca.state.tx.us/home-division/docs/HUD_PJs_Full_List.pdf"]
["Enter each County in Service Area"]
["County ",null,"List specific colonias to be served",null,null,"Is County or City located within a PJ or part of a Consortium?  ",null,"If “YES” list PJ or Consortium  "]

{"sheet":"Matching Funds-CFD","index":20,"n_rows":19,"n_cols":8,"rows_kept":19,"cut":false,"hidden":true,"merged":[[1,0,1,8],[2,0,2,8],[13,7,13,8],[3,0,3,8],[9,0,9,3],[9,7,9,8],[13,5,13,6],[12,7,12,8],[11,7,11,8],[12,0,12,3],[10,0,10,3],[11,0,11,3],[12,5,12,6],[10,7,10,8],[5,0,5,8],[6,7,6,8],[6,5,6,6],[16,0,16,3],[17,0,17,3],[16,7,16,8],[16,5,16,6],[14,5,14,6],[15,5,15,6],[4,0,4,7],[13,0,13,3],[15,0,15,3],[14,7,14,8],[15,7,15,8],[14,0,14,3],[7,7,7,8],[8,7,8,8],[7,5,7,6],[8,5,8,6],[9,5,9,6],[10,5,10,6],[11,5,11,6],[6,0,6,3],[7,0,7,3],[8,0,8,3]]}
["HOME Program Matching Funds CFD- Skip to Navigation Menu"]
["TAB 7-j. MATCHING FUNDS "]
["CFD"]
["A.      CONTRACT FOR DEED CONVERSION SET-ASIDE – NO MATCH REQUIREMENT"]
["If applicant is providing match, what is Applicant's Match pledge percentage?"]
["B. Match Itemization.  Place required Match support documentation behind this tab.  "]
["TYPE OF MATCH PLEDGED",null,null,null,"Pledged Amount","Funds provided by:",null,"If not provided by Applicant, name Provider."]
["Cash / cash equivalents from non-federal sources"]
["Value of waived taxes, fees or charges associated with HOME projects (ex: debris removal and container fees, tap fees, electrical hook up, building permits)",null,null,null,null,null,null,"     "]
["Value of donated labor (includes volunteer labor)",null,null,null,null,null,null,"     "]
["Value of donated professional services",null,null,null,null,null,null,"     "]
["Donated Site Preparation (limit $1,500/unit)",null,null,null,null,null,null,"     "]
["Donated demolition services (limit $4,000/unit)",null,null,null,null,null,null,"     "]
["Cost of infrastructure improvements associated with HOME projects",null,null,null,null,null,null,"     "]
["Value of donated use of site preparation or construction equipment and materials",null,null,null,null,null,null,"     "]
["Donated Real Property",null,null,null,null,null,null,"     "]
["Direct Cost of Housing Counseling",null,null,null,null,null,null,"     "]
["Total Value of Match Pledged:",null,null,null,{"$f":"SUM(E8:E17)","v":0}]
["List of Links"]

{"sheet":"Service Area-HANC","index":21,"n_rows":8,"n_cols":8,"rows_kept":8,"cut":false,"hidden":true,"merged":[[1,0,1,8],[4,0,4,8],[7,0,7,1],[7,2,7,4],[7,5,7,6],[7,7,7,8],[10,0,10,1],[10,2,10,4],[10,5,10,6],[10,7,10,8],[3,0,3,8],[5,0,5,8],[11,0,11,1],[11,2,11,4],[11,5,11,6],[11,7,11,8],[8,0,8,1],[8,2,8,4],[8,5,8,6],[8,7,8,8],[9,0,9,1],[9,2,9,4],[9,5,9,6],[9,7,9,8],[14,0,14,1],[14,2,14,4],[14,5,14,6],[14,7,14,8],[15,0,15,1],[15,2,15,4],[15,5,15,6],[15,7,15,8],[12,0,12,1],[12,2,12,4],[12,5,12,6],[12,7,12,8],[13,0,13,1],[13,2,13,4],[13,5,13,6],[13,7,13,8],[18,0,18,1],[18,2,18,4],[18,5,18,6],[18,7,18,8],[19,0,19,1],[19,2,19,4],[19,5,19,6],[19,7,19,8],[16,0,16,1],[16,2,16,4],[16,5,16,6],[16,7,16,8],[17,0,17,1],[17,2,17,4],[17,5,17,6],[17,7,17,8],[22,0,22,1],[22,2,22,4],[22,5,22,6],[22,7,22,8],[23,0,23,1],[23,2,23,4],[23,5,23,6],[23,7,23,8],[20,0,20,1],[20,2,20,4],[20,5,20,6],[20,7,20,8],[21,0,21,1],[21,2,21,4],[21,5,21,6],[21,7,21,8],[26,0,26,1],[26,2,26,4],[26,5,26,6],[26,7,26,8],[27,0,27,1],[27,2,27,4],[27,5,27,6],[27,7,27,8],[24,0,24,1],[24,2,24,4],[24,5,24,6],[24,7,24,8],[25,0,25,1],[25,2,25,4],[25,5,25,6],[25,7,25,8],[30,0,30,1],[30,2,30,4],[30,5,30,6],[30,7,30,8],[31,0,31,1],[31,2,31,4],[31,5,31,6],[31,7,31,8],[28,0,28,1],[28,2,28,4],[28,5,28,6],[28,7,28,8],[29,0,29,1],[29,2,29,4],[29,5,29,6],[29,7,29,8],[34,0,34,1],[34,2,34,4],[34,5,34,6],[34,7,34,8],[35,0,35,1],[35,2,35,4],[35,5,35,6],[35,7,35,8],[32,0,32,1],[32,2,32,4],[32,5,32,6],[32,7,32,8],[33,0,33,1],[33,2,33,4],[33,5,33,6],[33,7,33,8],[38,0,38,1],[38,2,38,4],[38,5,38,6],[38,7,38,8],[36,0,36,1],[36,2,36,4],[36,5,36,6],[36,7,36,8],[37,0,37,1],[37,2,37,4],[37,5,37,6],[37,7,37,8]]}
["HOME Application Service Area HRA - Skip to Navigation Menu"]
["TAB 6-k. APPLICANT’S SERVICE AREA "]
["ACTIVITY - HANC"]
["Select each county from the dropdown menu below.  List the targeted city(s) or colonia(s).  "]
["Households located within a Participating Jurisdiction (PJ) are not eligible for assistance. To verify if targeted city or county is located in a PJ copy and paste the following link into your browser: "]
["https://www.tdhca.state.tx.us/home-division/docs/HUD_PJs_Full_List.pdf"]
["Enter each County in Service Area"]
["County ",null,"List specific cities or colonias to be served if not serving the entire county.",null,null,"Is County or City in a PJ or part of a Consortium?  ",null,"If “YES” list PJ or Consortium  "]

{"sheet":"Matching Funds-HANC","index":22,"n_rows":25,"n_cols":8,"rows_kept":25,"cut":false,"hidden":true,"merged":[[11,0,11,8],[1,0,1,8],[2,0,2,8],[3,0,3,8],[4,0,4,8],[10,0,10,7],[5,0,5,8],[6,0,6,8],[7,0,7,8],[8,0,8,8],[12,0,12,8],[13,0,13,3],[13,5,13,6],[13,7,13,8],[14,0,14,3],[14,5,14,6],[14,7,14,8],[15,0,15,3],[15,5,15,6],[15,7,15,8],[16,0,16,3],[16,5,16,6],[16,7,16,8],[17,0,17,3],[17,5,17,6],[17,7,17,8],[18,0,18,3],[18,5,18,6],[18,7,18,8],[19,0,19,3],[19,5,19,6],[19,7,19,8],[20,0,20,3],[20,5,20,6],[20,7,20,8],[27,7,27,8],[21,0,21,3],[21,5,21,6],[21,7,21,8],[22,0,22,3],[22,5,22,6],[22,7,22,8],[23,0,23,3],[23,5,23,6],[23,7,23,8],[24,0,24,3],[26,7,26,8]]}
["HOME Program Matching Funds HRA - Skip to Navigation Menu"]
["TAB 7-k. MATCHING FUNDS "]
["HANC"]
["A. Required Match Contribution Percentage"]
["(1) 0% of Direct Activity Costs (Hard Costs), exclusive of Match, is required as Match: \n    (A) when the Service Area includes the entire unincorporated area of a county and where the population of Administrator's Service Area is less than or equal to 20,000 persons (ACS 5-year estimate); or \n    (B) when the Service Area does not include the entire unincorporated area of a county and the population of the Administrator's Service Area is less than or equal to 3,000 persons (ACD 5-year estimate). \n  (2) 1% of Direct Activity Costs (Hard Costs), exclusive of Match, is required as Match for every 1,000 in population to a maximum of 15 percent."]
["Include a copy of the most recent American Community Survey report with your application."]
["https://www.census.gov/acs/www/data/data-tables-and-tools/data-profiles/"]
["1. Under the Geography Type section, select County for County and Place for City"]
["2. Select Demographic Characteristics"]
[]
["Based on the Activity and Service Area proposed in the Application, what is Applicant's Match percentage requirement?"]
[]
["B. Match Itemization.  Place required Match support documentation behind this tab.  "]
["TYPE OF MATCH PLEDGED",null,null,null,"Pledged Amount","Funds provided by:",null,"If not provided by Applicant, name Provider."]
["Cash / cash equivalents from non-federal sources"]
["Value of waived taxes, fees or charges associated with HOME projects (ex: debris removal and container fees, tap fees, electrical hook up, building permits)",null,null,null,null,null,null,"     "]
["Value of donated labor (includes volunteer labor)",null,null,null,null,null,null,"     "]
["Value of donated professional services",null,null,null,null,null,null,"     "]
["Donated Site Preparation (limit $1,500/unit)",null,null,null,null,null,null,"     "]
["Donated Demolition Services (limit $4,000/unit)",null,null,null,null,null,null,"     "]
["Cost of infrastructure improvements associated with HOME projects",null,null,null,null,null,null,"     "]
["Value of donated use of site preparation or construction equipment and materials",null,null,null,null,null,null,"     "]
["Donated Real Property",null,null,null,null,null,null,"     "]
["Direct Cost of Housing Counseling",null,null,null,null,null,null,"     "]
["Total Value of Match Pledged:",null,null,null,{"$f":"SUM(E15:E24)","v":0}]

{"sheet":"Past Participation","index":23,"n_rows":8,"n_cols":1,"rows_kept":8,"cut":false,"hidden":false,"merged":[[8,1,8,7],[4,0,4,6],[1,0,1,8],[2,0,2,8],[6,0,6,8],[7,0,7,8]]}
[]
["TAB 8. PREVIOUS PARTICIPATION"]
["A previous participation review will be performed prior to allowing access to Department funds through a Reservation Agreement. When applying for a new Reservation Agreement, applicants must include a \"Uniform Previous Participation\" form behind Tab 8 in the PDF file of this application:"]
[]
["http://www.tdhca.state.tx.us/pmcomp/forms.htm"]
[]
["*The form must include each board member, individual with signature authority, executive director or elected official that represents the applicant (as applicable).  "]
["* Include any pending state or federal litigation (including administrative proceedings) against the entity along with any final decrees within the last three years behind Tab 8 in the PDF file of this application"]

{"sheet":"Marketing Plan","index":24,"n_rows":13,"n_cols":3,"rows_kept":13,"cut":false,"hidden":false,"merged":[[0,0,0,1]]}
["TAB 9. AFFIRMATIVE FAIR HOUSING MARKETING PLAN & WAITLIST AND CLIENT SELECTION POLICIES"]
[null,"Applicants must establish an Affirmative Fair Housing Marketing Plan & Waitlist and Client Select Policy in accordance with 10 TAC §20.9(d) and must submit the completed plan behind this tab.  \n"]
[null,"Affirmative Fair Housing Marketing Plan & Waitlist and Client Selection Policies in accordance with 10 TAC 20.9. *Note: Persons with Disabilities must always be selected as a group least \"likely to apply.\" Submit A, B, or C below.   "]
[null,"A. TDHCA form and relevant additional documentation et.al. TDHCA Affirmative Marketing tool. Under the section Titled \"Single Family Affirmative Marketing Tool.\""]
[null,"https://www.tdhca.state.tx.us/pmcomp/forms.htm"," "]
[null,"B. HUD Form 935.2 plus TDHCA form (Answers to Questions #2, #5, #6, #7, #8, and #9) (include correspondence related to HUD Form Question #4c and marketing materials"]
[null,"http://portal.hud.gov/hudportal/documents/huddoc?id=935-2b.pdf","   "]
[null,"C. Equivalent plan that meets all the requirements and documentation as TDHCA form and in accordance with 10 TAC 20.9","   "]
[null,null," "]
["B.","Guidance for completing the AFHMP is located at:"]
[null,"http://www.tdhca.state.tx.us/pmcdocs/17-FH-Affirm-Marketing-Presentation.pptx"]
["C.","Submit TDHCA Single Family Affirmative Marketing Tool or Documentation confirming the demographics of the marketing area which evidences how the groups designated as least likely to apply were selected for targeted marketing efforts. Link to tool:"]
[null,"http://www.tdhca.state.tx.us/pmcomp/sf-amt.htm"]

{"sheet":"Resolution","index":25,"n_rows":13,"n_cols":1,"rows_kept":13,"cut":false,"hidden":false,"merged":[[12,0,12,8],[1,0,1,8],[3,0,3,8],[4,0,4,8],[5,0,5,8],[2,0,2,8],[11,0,11,8],[6,0,6,8],[7,0,7,8],[8,0,8,8],[9,0,9,8],[10,0,10,8]]}
[]
["TAB 10. RESOLUTION"]
["Please submit behind this tab  a Resolution from the Applicant's direct governing body which includes the following threshold items pursuant to HOME Rule §23.25:"]
["A. Authorization of the submission of the Application;"]
[]
["B. Commitment and amount of cash reserves, if applicable, for use during the RSP Agreement term;"]
[]
["C. Source of funds for Match obligation and Match dollar amount, if applicable;"]
[]
["D. Name and title of the person authorized to represent the organization and who also has signature authority to execute a Contract and grant agreement or loan documents, as applicable, unless otherwise stated; and"]
[]
["E. Date that the resolution was passed by the governing body, which must be within six (6) months preceding Application submission for Reservation System Participation Agreement Applications."]
["F.  If you are a nonprofit organization requesting an application fee waiver, please state in the Resolution along with the type of expanded services being provided."]

{"sheet":"Mrtg Prod Hsng Cnslng","index":26,"n_rows":28,"n_cols":9,"rows_kept":28,"cut":false,"hidden":true,"merged":[[17,0,17,7],[18,0,18,7],[12,0,12,7],[28,0,28,1],[28,2,28,4],[28,5,28,6],[19,0,19,7],[27,0,27,1],[25,0,25,8],[24,0,24,8],[26,0,26,8],[1,0,1,8],[2,0,2,8],[14,0,14,8],[15,0,15,7],[27,2,27,4],[27,5,27,6],[3,0,3,7],[4,0,4,7],[5,0,5,7],[9,0,9,7],[7,0,7,8],[22,0,23,8],[20,0,20,7],[21,0,21,7],[6,0,6,7],[16,0,16,7]]}
["HOME Application Lender Products and Homebuyer Counseling - Skip to Navigation Menu"]
["TAB 11.  MORTGAGE PRODUCTION & HOUSING COUNSELING"]
[]
["Assistance provided (Select all that apply)"]
["Reconstruction"]
["New Construction/Acquisition"]
["If New Construction/Acquisition is selected, please fill out parts A and B below."]
["A.  RESIDENTIAL MORTGAGE LOAN ORIGINATION"]
["To comply with the S.A.F.E. Mortgage Licensing Act of 2008:"]
["Does the Applicant have a licensed Residential Mortgage Loan Origination (RMLO) Person on Staff"]
["If no, Applicant must ensure compliance with the S.A.F.E. Act"]
["SAFE Act Information:"]
["http://www.sml.texas.gov/ResidentialMortgageLoanOriginator/rmlo_statutes_rules.html"]
[]
["B. PRE- AND POST-PURCHASE COUNSELING"]
["Is the Applicant a HUD-approved Housing Counseling agency?"]
["Provide information of Applicant’s housing counseling program:"]
["This program will offer: "]
["Pre-purchase counseling"]
["Post-purchase counseling"]
["Pre and post-purchase counseling"]
["Mobility counseling*"]
["*An Administrator offering homeownership or rental assistance that allows the Household to relocate from their current residence must provide the Household access to mobility counseling."]
[]
["Describe in detail the counseling program:"]
[]
["If the HUD-approved Housing Counseling is performed by a contracted third party, please provide the name of company, address, city, zip, and name of instructor(s).  "]
["Company",null,"Address",null,null,"City",null,"Zip","Instructor"]

{"sheet":"Self-Sufficiency Plan","index":27,"n_rows":8,"n_cols":1,"rows_kept":8,"cut":false,"hidden":true,"merged":[]}
["HOME Application Self-Suffiency Plan - Skip to Navigation Menu"]
["TAB 12.  SELF-SUFFICIENCY PLAN"]
[]
["Describe in detail, the components of the self sufficiency plan proposed for the transition of tenants towards self sufficiency and acquiring permanent housing by the end of the 24-month rental assistance. Each component of the plan must be detailed. "]
[]
["List of Links"]
["Self-Suffiency Plan Instructions"]
["Self-Suffiency Plan Fillable Form"]

{"sheet":"Applicant Certification","index":28,"n_rows":57,"n_cols":6,"rows_kept":57,"cut":false,"hidden":false,"merged":[[46,0,46,8],[38,1,38,8],[39,1,39,8],[40,1,40,8],[42,0,42,8],[44,0,44,8],[45,0,45,8],[37,1,37,8],[22,0,22,8],[23,0,23,8],[26,0,26,8],[27,0,27,8],[28,0,28,8],[29,0,29,8],[30,0,30,8],[31,0,31,8],[32,0,32,8],[34,0,34,8],[36,1,36,8],[21,0,21,8],[9,0,9,8],[11,0,11,8],[12,0,12,8],[13,0,13,8],[14,0,14,8],[15,0,15,8],[16,0,16,8],[17,0,17,8],[18,0,18,8],[19,0,19,8],[20,0,20,8],[7,0,7,8],[0,0,0,8],[1,0,1,8],[2,0,2,8],[3,0,3,8],[5,0,5,8]]}
["TAB 13. CERTIFICATION OF APPLICANT"]
["On behalf of the Applicant and all affiliates of the Applicant (hereinafter “Applicant”), I (We) hereby certify that the Applicant is familiar with the provisions of the federal HOME Final Rule, as published in 24 CFR Part 92, the state HOME Rules, as published in 10 TAC Chapter 23, the Single Family Programs Umbrella Rule, and other related administrative rules, and regulations and court rulings issued by the Federal government or State of Texas with respect to the HOME Investment Partnerships Program and will comply with such rules during the application process and in the event of award, for the duration of the executed agreement. "]
["This certification must be signed and filed by a person(s) who is authorized to execute the HOME Contract or a Reservation System Participation Agreement.  Make additional copies of form for each signature authority."]
["The Applicant hereby assures and certifies that they possess legal authority to apply for HOME funds and to execute a funding agreement or contract for the proposed program and that the governing body has duly adopted or passed an official act of a resolution, motion or similar action authorizing the filing of the application, including all understandings and assurances contained therein, and directing and authorizing a signature authority to act in connection with the application and to provide additional information as may be required."]
[]
["I (We) hereby acknowledge that this Application is subject to disclosure under Chapter 552, Texas Government Code, the Texas Public Information Act, unless a valid exception exists. "]
[]
["I (We) certify that no person or entity that would benefit from the award of HOME funds has provided a source of match or has satisfied the Applicant’s cash reserve obligation or made promises in connection therewith."]
[]
["I (We) certify that I (We) will meet TDHCA construction standards, as well as the Fair Housing Accessibility Standards and Section 504 of the Rehabilitation Act of 1973.  I (We) certify that the HOME Activity(ies) applied for in this Application will meet all local building codes or standards that may apply. If the Applicant’s service area is located within a jurisdiction that does not have building codes, I (We) will meet the most current International Building Code."]
[]
["I (We) certify that I (We) will comply with the Uniform Relocation Assistance and Real Property Acquisition Policies Act (Uniform Act or URA) by implementing, when required, the procedures outlined in 49 CFR Part 24;"]
["I certify that all statements made in this Application and related tabs are true, complete, and correct and are made in good faith. I further certify that:"]
["The Participants in the Application Information, Uniform Previous Participation Form, herein after referred to as the “Previous Participation Form” contains a listing of every development activity that received TDHCA funding, which I have been or am now an Applicant. "]
["For the period beginning ten years prior to the date of this certification:"]
["I have not been arrested, indicted, convicted, or imprisoned for a felony, and am not presently the subject of a complaint or indictment charging for a crime of moral turpitude."]
["I have not been suspended, debarred, or been subject to enforcement action under state or federal securities law, or otherwise restricted by any department or agency of federal or state government from doing business with such department or agency."]
["I have not defaulted on an obligation covered by a surety or performance bond and have not been the subject of a claim under an employee fidelity bond."]
["For the period beginning ten years prior to the date of this certification, during my participation in the developments shown by me in the Previous Participation Form, there has not been:"]
["A mortgage in default, assigned or foreclosed, nor has mortgage relief by the lender been given;"]
["to the best of my knowledge, unresolved findings raised as a result of Departmental or HUD audits, management reviews or other governmental investigation concerning me or my developments, or contracts;"]
["any breach by the owner of any agreements relating to the construction or rehabilitation, use, operation, management, or disposition; or"]
["a suspension or termination of payments under any state or federal assistance contract."]
["To the best of my knowledge, the Applicant has demonstrated fiscal, programmatic, and contractual compliance on previously awarded Department contracts or loan agreements and resolution of any previous audit findings and outstanding monetary obligation with the Department."]
[]
[]
["As required by Section 2306.257 of the Texas Government Code, as amended, an Applicant may not receive funds or other assistance from the Department unless the Applicant certifies that it is in compliance with the housing laws described in subparagraph (a) through (d) of this paragraph. To satisfy that requirement, I hereby certify that the developments listed in the Previous Participation Form, in which I am currently participating, are in compliance with: state and federal fair housing laws, including Chapter 301, Property Code, the Texas Fair Housing Act; Title VIII of the Civil Rights Act of 1968 (42 U.S.C. Section 3601 et seq.); and the Fair Housing Amendments of 1988 (42 U.S.C. Section 3601 et seq.), the Civil Rights Act of 1964 (42 U.S.C. Section 2000a et seq.), the Americans with Disabilities Act of 1990 (42 U.S.C. 12101 et seq.), and the Rehabilitation Act of 1973 (29 U.S.C. Section 701 et seq.)."]
["The Applicant also certifies that the Applicant, or a branch, division, or department of said Applicant does not and will not knowingly employ an undocumented worker, where \"undocumented worker\" means an individual who, at the time of employment, is not lawfully admitted for permanent residence to the United States or authorized under law to be employed in that manner in the United States.  If, after receiving a public subsidy, the Applicant, or a branch, division, or department of the Applicant is convicted of a violation under 8 U.S.C Section 1324a(f), the Applicant shall repay the amount of the public subsidy with interest, at the rate and according to the other terms provided by an agreement under Tex. Gov't Code Section 2264.053, not later than the 120th day after the date TDHCA notifies the Applicant of the violation.\""]
["I further certify that I understand that the Department periodically monitors for compliance. The monitoring level for each housing program is based on the amount of risk of noncompliance. The Department shall notify a recipient who has received funds or other assistance from the Department in writing of an apparent violation and shall afford the recipient a reasonable amount of time, as determined by the Department, to correct the identified violation, if possible, prior to the imposition of a sanction. The Department shall notify the Texas Commission on Human Rights at the same time notification is sent to the recipient. I understand that the Department may impose one or more of the following sanctions depending on the severity of the violation of a law by a recipient of housing funds or other assistance from the Department:"]
["A reprimand posted on the Department’s website,"]
["Termination of assistance, or"]
["a bar on future eligibility for assistance through a housing program administered by the Department. A bar shall be in place for at least one calendar year from the date of imposition by the Department and may not last for more than ten calendar years from the date of imposition."]
["I understand that as an applicant, Applicant will enter into an Agreement or Contract with the Texas Department of Housing and Community Affairs if funding is awarded, and will provide additional information as requested by the Department and in accordance with 10 TAC Chapters 20 and 23."]
[]
["I (We) hereby agree to implement the following specific affirmative action steps to increase the utilization of business concerns located within the boundaries of the local municipality in which the Development is located (“Local Opportunity Plan”)."]
[]
[1,"Identify eligible business concerns for HOME assisted contracts through; the Chamber of Commerce, the Urban League, local advertising median including public signage; project area committees, citizen advisory boards; lists available through the local HUD program official; and all other appropriate referral sources."]
[2,"Maintain a list of eligible business concerns for utilization in the HOME funded procurements to insure that all appropriate project area business concerns are notified of pending contractual opportunities, and to make available this list for general city/county procurement needs. "]
[3,"Maintain records, including copies of correspondence, memoranda, etc., which document that all of the above affirmative action steps have been taken."]
[4,"Appoint or recruit a qualified individual as Equal Opportunity Officer to coordinate the implementation of the Local Opportunity Plan. "]
[5,"Applicant will comply with Section 3 in accordance with 24 CFR 135.34 and will make every effort to hire low-income individuals from the community."]
[]
["I (We), have read and fully agree to this plan, and become a party to the full implementation of the Local Opportunity Plan."]
[]
["I (We) understand that the environmental effects of each activity carried out with funds provided under this application must be assessed in accordance with the provisions of the State HOME Rules, National Environmental Policy Act of 1969 (NEPA) (42 U.S.C. § 432 et. Seq.) and the related activities listed in HUD’s implementing regulations at 24 CFR. parts 50, 51, 55 and 58 (NEPA regulations).  Each such activity must have an environmental review completed and support documentation prepared complying with the NEPA and NEPA regulations.  No loan may close or funds be committed to an activity before the completion of the environmental review process, including the requirements of 24 CFR Part 58, and the Department has provided written clearance."]
["Applicant must immediately report to TDHCA any real, potential or perceived conflict of interest as outlined in 24 CFR Part 35 and 24 CFR Part 84 and 85, as applicable, regarding the receipt of, assistance provided with, or expenditure of HOME funds."]
["The undersigned hereby makes application to TDHCA for financial assistance, has read and understands the application instructions, and certifies that all information herein is true and correct to the best of their knowledge and belief. "]
[]
[]
[]
["Applicant’s Signature"]
[]
[]
["Applicant's  Signature Authority Printed Name"]
[]
[]
["Applicant's  Signature Authority Title",null,null,null,null,"Date"]

{"sheet":"Application Checklist","index":29,"n_rows":92,"n_cols":3,"rows_kept":92,"cut":false,"hidden":false,"merged":[[91,0,91,5],[20,0,20,6],[54,0,54,6],[63,1,63,6],[27,0,27,6],[28,0,28,5],[29,0,29,5],[23,0,23,5],[24,0,24,5],[25,0,25,5],[26,0,26,5],[88,0,88,6],[89,0,89,5],[90,0,90,6],[84,0,84,5],[75,0,75,6],[76,0,76,5],[77,0,77,5],[78,0,78,5],[68,1,68,5],[69,1,69,5],[70,1,70,5],[71,1,71,5],[72,1,72,5],[73,1,73,5],[68,0,69,0],[85,0,85,5],[79,0,79,5],[80,0,80,5],[81,0,81,5],[82,0,82,5],[83,0,83,6],[86,0,86,5],[87,0,87,5],[55,0,55,6],[56,0,56,5],[50,0,50,6],[51,0,51,5],[52,0,52,5],[53,0,53,5],[74,1,74,5],[66,1,66,5],[67,1,67,5],[61,0,61,6],[62,0,62,5],[64,1,64,5],[65,1,65,5],[57,1,57,5],[58,1,58,5],[59,1,59,5],[60,1,60,5],[46,0,46,5],[47,0,47,5],[48,0,48,5],[49,0,49,5],[42,1,42,5],[43,1,43,5],[44,0,44,5],[45,0,45,6],[35,0,35,6],[36,0,36,5],[37,0,37,5],[39,0,39,6],[40,0,40,5],[38,0,38,5],[31,0,31,5],[32,0,32,5],[33,0,33,5],[34,0,34,5],[41,1,41,5],[30,0,30,5],[18,1,18,5],[11,1,11,5],[13,1,13,5],[17,1,17,5],[16,1,16,5],[14,1,14,5],[15,1,15,5],[21,0,21,5],[22,0,22,5],[12,0,12,5],[19,0,19,6],[6,0,6,5],[7,0,7,5],[8,0,8,5],[9,0,9,6],[10,0,10,5],[0,0,0,6],[1,0,1,6],[5,0,5,6],[2,0,2,1],[3,0,3,1],[4,0,4,1],[2,2,2,6],[3,2,3,6],[4,2,4,6]]}
["TAB 14. APPLICATION CHECKLIST"]
["This checklist is provided for informational purposes only and is not required to be submitted with the Application for a HOME Reservation System Participation Agreement."]
["Review Completed By:"]
["Applicant:",null,{"$f":"ApplicantInfo!D5","v":0}]
["Signature:"]
["Application submitted in Required Format"]
["Both PDF and Excel Files:"]
["$30 Application Fee submitted or waiver requested in Resolution:"]
["PDF Application Bookmarked:"]
["TAB 1:  APPLICANT INFORMATION"]
["A. Contact Information - All Fields Populated"]
[null,"-Applicant Signature Authority Name and Title matches Resolution (Tab 10)"]
["B. Legal Description matches official Legal Status"]
[null,"-TIN entered and matches IRS Letter"]
[null,"-DUNS matches SAM Documentation"]
[null,"-SAM Registration current and matches documentation submitted"]
[null,"-Other Designations fields completed"]
[null,"Indirect Cost Rate"]
[null,"—If Yes, documentation submitted"]
["TAB 2:  PROJECT OVERSIGHT"]
["A. Consultant or Service Provider Section"]
["-Applicant acquired use of a Consultant to assist with Application"]
["-Self-Administering Home Program"]
["--If Yes, Oversight Staff contact info and responsibilities listed"]
["--If No, Yes is selected for procuring a Consultant and oversight staff listed"]
["-Income Determination Training completed"]
["B. Construction Oversight section completed"]
["TAB 3: ADMINISTRATIVE FORMS"]
["-Payee ID form submitted"]
["-Direct Deposit form submitted"]
["-Administrative Environmental Clearance Form Signed/Dated/Completed"]
["-Completed and signed Compliance Documentation Checklist"]
["-IRS Letter w/applicant name & 9-digit Federal Tax ID Number"]
["-SAM Printout showing current registration"]
["For nonprofits administering HRA/HANC/CFD only, bylaws submitted with affordable housing services provision"]
["TAB 4: PROGRAM ACTIVITIES"]
["A.    All Activities and Set-asides w/ “Yes or No” selected -  Look for additional tab for Yes selections "]
["B. Additional Federal Funds leveraged completed"]
["TBRA only:  Selected either 4% admin w/soft costs or 8% admin w/o soft costs.  Only one option selected. "]
["TAB 5:  LOCAL CASH RESERVES"]
["A. Documentation of Financial Capacity "]
[null,"1. Only answered YES to either Option 1 or 2"]
[null,"If Yes to Option 1, A) Financial Statements AND B) Letter from Bank or Financial Institution submitted and meet minimum criteria"]
[null,"If Yes to Option 2, Evidence of line of credit/equivalent exceeding cash reserve requirement submitted"]
["B. Amount of Cash Reserve matches Activity requirement ($40,000 HRA, CFD, SFD, and HANC. $20,000 HBA.  $15,000 TBRA.)"]
["TAB 6: SERVICE AREAS"]
["Areas listed NOT in a participating jurisdiction (PJ) and verified using TDHCA PJ list (PWD can be in PJ)"]
["If serving an entire county, only the county is listed, not specific cities or colonias"]
["If serving specific cities or colonias, all cities and colonias in the service area are listed"]
["TBRA only: Service area county-wide OR if not county-wide, service area is entire urban or entire rural portions of a county"]
["TAB 7: MATCH"]
["A. Required Match Contribution percentage-0% match or 1% per 1000 in population utilized "]
["Match percentage based on ACS 5-year estimate and support documentation submitted "]
["Match amounts reflect program activity (HRA, TBRA, etc.) level"]
["B. Match amounts based on percentage of construction hard costs"]
["TAB 8: PREVIOUS PARTICIPATION REVIEW"]
["Previous Participation form submitted and is current"]
[null,"1. If Non Profit, board members listed "]
[null,"2. Key Personnel completed"]
[null,"3. TDHCA Multifamily Developments reported OR Initials"]
[null,"4. TDHCA Community Affairs and/or Single Family Development Programs reported OR Initials"]
["TAB 9: AFHMP & WAITLIST AND CLIENT SELECTION POLICY"]
["Submitted Plan A., B. plus TDHCA form (Q #2,5,6,7,8 & 9) or C. equivalent plan"]
[null,"Plan A., B. and C. must include the following: "]
[null,"Q 1. – Details provided on identification of “LLTA.” Submitted the TDHCA Single Family Affirmative Marketing Tool or detailed equivalent methodology"]
[null,"Q 2. - Identified “Least Like to Apply” (“LLTA”) populations.  Must always include People with Disabilities"]
[null,"Q 3. – Listed 3 community contacts for outreach primarily to “LLTA” and explanation provided if 3 contacts not listed."]
[null,"Q 4. – (Optional) Listed 3 media outlets, only if marketing through media outlets"]
[null,"Q 5. – Waitlist Policy "]
[null,"a. Department-approved Preferences included"]
[null,"b. Description of neutral random selection (within first 30 days of accepting applications), application period,  included HOME requirement that 1 in 4 clients will be at or below 30% AMI; and within the first 30 days of accepting applications"]
[null,"Q 6. – If Yes to  New requested preferences, listed preference and justification"]
[null,"Q 7. – Described data collection methods and evaluation process"]
[null,"Q 8. – Described staff fair housing training "]
[null,"Q 9. – Homebuyer Only – described counseling programs and material being offered to clients"]
["TAB 10: RESOLUTION"]
["Signed & Dated (w/in 6 mo. Of app submission) Resolution submitted"]
["Authorization of the submission of Application"]
["Commitment and amount of Cash Reserve in an amount that meets or exceeds the amount required on Tab 5. "]
[" Name and title of person authorized to represent Applicant"]
["Name and title of person designated with signature authority to execute Contract and Loan documents"]
["Source of funds for Match obligation and Match dollar amount"]
["If private non-profit AND offering extended services, requested fee waiver"]
["TAB 11: HRA/HANC ONLY-MORTGAGE PRODUCTION & HOUSING COUNSELING"]
["A. Residential Mortgage Loan Origination section completed"]
["Applicant has a Licensed Mortgage Loan Origination (RMLO) person on staff"]
["If No, will Applicant must ensure compliance with S.A.F.E Act"]
["B. Pre and Post Purchase Counseling "]
["TAB 12: SELF SUFFICIENCY PLAN (TBRA)"]
["Self-sufficiency plan provided and criteria met"]
["TAB 13: Certification of Applicant"]
["Certification of Applicant form signed/dated"]

{"sheet":"Lists","index":30,"n_rows":337,"n_cols":1,"rows_kept":337,"cut":false,"hidden":true,"merged":[]}
["yes"]
["No"]
[]
["Unit of Local Government"]
["Housing Authority"]
["Non-Profit"]
[]
[]
[]
[]
["Applicant is requesting to be a Reservation System Participant only"]
["Applicant is requesting to be a Reservation System Participant and requesting a Contract Award"]
["Applicant is requesting a Contract Award only"]
[]
["An IRS determination letter dated 1986 or later that evidences a current tax exemption under §501(c)(3), as a charitable non profit corporation, or"]
["An IRS determination letter dated 1986 or later that evidences a current tax exemption under §501(c)(3), as a subordinate of a central organization non profit, or"]
["The most recent IRS 990 form."]
[]
["501(c)(3)"]
["501(c)(4)"]
["tax-exempt under 501(a)"]
["other (specify) "]
["PHA"]
[]
["Existing Unit"]
["New Construction"]
["Manufactured housing"]
["All of the above"]
[]
["Applicant"]
["Other"]
[]
[]
["COUNTIES"]
["ANDERSON"]
["ANDREWS"]
["ANGELINA"]
["ARANSAS"]
["ARCHER"]
["ARMSTRONG"]
["ATASCOSA"]
["AUSTIN"]
["BAILEY"]
["BANDERA"]
["BASTROP"]
["BAYLOR"]
["BEE"]
["BELL"]
["BEXAR"]
["BLANCO"]
["BORDEN"]
["BOSQUE"]
["BOWIE"]
["BRAZORIA"]
["BRAZOS"]
["BREWSTER"]
["BRISCOE"]
["BROOKS"]
["BROWN"]
["BURLESON"]
["BURNET"]
["CALDWELL"]
["CALHOUN"]
["CALLAHAN"]
["CAMERON"]
["CAMP"]
["CARSON"]
["CASS"]
["CASTRO"]
["CHAMBERS"]
["CHEROKEE"]
["CHILDRESS"]
["CLAY"]
["COCHRAN"]
["COKE"]
["COLEMAN"]
["COLLIN"]
["COLLINGSWORTH"]
["COLORADO"]
["COMAL"]
["COMANCHE"]
["CONCHO"]
["COOKE"]
["CORYELL"]
["COTTLE"]
["CRANE"]
["CROCKETT"]
["CROSBY"]
["CULBERSON"]
["DALLAM"]
["DALLAS"]
["DAWSON"]
["DEAF SMITH"]
["DELTA"]
["DENTON"]
["DE WITT"]
["DICKENS"]
["DIMMIT"]
["DONLEY"]
["DUVAL"]
["EASTLAND"]
["ECTOR"]
["EDWARDS"]
["ELLIS"]
["EL PASO"]
["ERATH"]
["FALLS"]
["FANNIN"]
["FAYETTE"]
["FISHER"]
["FLOYD"]
["FOARD"]
["FORT BEND"]
["FRANKLIN"]
["FREESTONE"]
["FRIO"]
["GAINES"]
["GALVESTON"]
["GARZA"]
["GILLESPIE"]
["GLASSCOCK"]
["GOLIAD"]
["GONZALES"]
["GRAY"]
["GRAYSON"]
["GREGG"]
["GRIMES"]
["GUADALUPE"]
["HALE"]
["HALL"]
["HAMILTON"]
["HANSFORD"]
["HARDEMAN"]
["HARDIN"]
["HARRIS"]
["HARRISON"]
["HARTLEY"]
["HASKELL"]
["HAYS"]
["HEMPHILL"]
["HENDERSON"]
["HIDALGO"]
["HILL"]
["HOCKLEY"]
["HOOD"]
["HOPKINS"]
["HOUSTON"]
["HOWARD"]
["HUDSPETH"]
["HUNT"]
["HUTCHINSON"]
["IRION"]
["JACK"]
["JACKSON"]
["JASPER"]
["JEFF DAVIS"]
["JEFFERSON"]
["JIM HOGG"]
["JIM WELLS"]
["JOHNSON"]
["JONES"]
["KARNES"]
["KAUFMAN"]
["KENDALL"]
["KENEDY"]
["KENT"]
["KERR"]
["KIMBLE"]
["KING"]
["KINNEY"]
["KLEBERG"]
["KNOX"]
["LAMAR"]
["LAMB"]
["LAMPASAS"]
["LA SALLE"]
["LAVACA"]
["LEE"]
["LEON"]
["LIBERTY"]
["LIMESTONE"]
["LIPSCOMB"]
["LIVE OAK"]
["LLANO"]
["LOVING"]
["LUBBOCK"]
["LYNN"]
["MCCULLOCH"]
["MCLENNAN"]
["MCMULLEN"]
["MADISON"]
["MARION"]
["MARTIN"]
["MASON"]
["MATAGORDA"]
["MAVERICK"]
["MEDINA"]
["MENARD"]
["MIDLAND"]
["MILAM"]
["MILLS"]
["MITCHELL"]
["MONTAGUE"]
["MONTGOMERY"]
["MOORE"]
["MORRIS"]
["MOTLEY"]
["NACOGDOCHES"]
["NAVARRO"]
["NEWTON"]
["NOLAN"]
["NUECES"]
["OCHILTREE"]
["OLDHAM"]
["ORANGE"]
["PALO PINTO"]
["PANOLA"]
["PARKER"]
["PARMER"]
["PECOS"]
["POLK"]
["POTTER"]
["PRESIDIO"]
["RAINS"]
["RANDALL"]
["REAGAN"]
["REAL"]
["RED RIVER"]
["REEVES"]
["REFUGIO"]
["ROBERTS"]
["ROBERTSON"]
["ROCKWALL"]
["RUNNELS"]
["RUSK"]
["SABINE"]
["SAN AUGUSTINE"]
["SAN JACINTO"]
["SAN PATRICIO"]
["SAN SABA"]
["SCHLEICHER"]
["SCURRY"]
["SHACKELFORD"]
["SHELBY"]
["SHERMAN"]
["SMITH"]
["SOMERVELL"]
["STARR"]
["STEPHENS"]
["STERLING"]
["STONEWALL"]
["SUTTON"]
["SWISHER"]
["TARRANT"]
["TAYLOR"]
["TERRELL"]
["TERRY"]
["THROCKMORTON"]
["TITUS"]
["TOM GREEN"]
["TRAVIS"]
["TRINITY"]
["TYLER"]
["UPSHUR"]
["UPTON"]
["UVALDE"]
["VAL VERDE"]
["VAN ZANDT"]
["VICTORIA"]
["WALKER"]
["WALLER"]
["WARD"]
["WASHINGTON"]
["WEBB"]
["WHARTON"]
["WHEELER"]
["WICHITA"]
["WILBARGER"]
["WILLACY"]
["WILLIAMSON"]
["WILSON"]
["WINKLER"]
["WISE"]
["WOOD"]
["YOAKUM"]
["YOUNG"]
["ZAPATA"]
["ZAVALA"]
[]
["months"]
["January"]
["February"]
["March"]
["April"]
["May "]
["June"]
["July"]
["August"]
["September"]
["October"]
["November"]
["December"]
[]
[]
[]
["FYDAYS"]
[1]
[2]
[3]
[4]
[5]
[6]
[7]
[8]
[9]
[10]
[11]
[12]
[13]
[14]
[15]
[16]
[17]
[18]
[19]
[20]
[21]
[22]
[23]
[24]
[25]
[26]
[27]
[28]
[29]
[30]
[31]

{"sheet":"applicationlvldata","index":31,"n_rows":2,"n_cols":125,"rows_kept":2,"cut":false,"hidden":true,"merged":[]}
["OrgName","SigAuthFirstname","SigAuthLastName","SigAuthTitle","OrgPhone","OrgEmail","OrgMailingAddress","OrgMailingCity","OrgMailingState","OrgMailingZip","OrgPHysicalAddress","orgPhysicalCity","OrgPHysicalState","OrgPHysicalZip","ContactFirstName","ContactLastName","ContactTitle","ContactPhone","ContactEmail","COntactWebsite","ApplicantLegalForm","BoardOfDirectors","TINNumber","IsHUB","IsCHDO","IsCOG","IsTaxExempt","FyEndMonth","FyEndDate","DUNSNbr","RegsiterWithCCR","CCREndDate","crntadministerweatherization","crntadministerSection8","crntadministerSelfHelp","crntadministerARRA","crntadministerDisasterRecovery","crntadministerCSBG","crntadministerNSP","crntadministerHOPWA","crntadministerCDBG","crntadministerHOME","WillSelfAdminister","HowManyStaff","ProcureConsultant","OverseeStaffName","OverseeStaffTitle","OverseeStaffPHone","OverseeStaffEmail","OverseeStaffResponsibilities","First_Thurs","delinquentOnTaxes","DtaxExplain","StateOrFedFindings","Findingsexplain","DelinquentOnDebt","debtexplain","Bankrupcty","bankrupctyexplain","Debarred","debarredexplain","TechnicalAssistance","TAPRovider","UsingConsultant","ConsultantOrgName","ConsultantContact","ConsultantAddress","ConsultantCity","ConsultantState","ConsultantZip","ConsultantTIN","ConsultantPHone","ConsultantFax","ConsultantEmail","ConsultantFee","ConsultantHUB","ConsultantInterest","ConsultantRelationship","AdequateCash","LineofCredit","HRA_General","HRA_PWD","HRA_DR","HBA_General","HBA_PWD","HBA_DR","TBRA_General","TBRA_PWD","TBRA_DR","CFD","HANC","OtherFedFunds","StateFunds","LocalGovFunds","IsNonProfit","NPOrgName","NPOrgLegalStatus","OtherDesc","FormationDate","GoodStandingWithSOS","StateFilingNbr","ISAppJointVenture","NPControlApplicant","NonprofitOWnershipPct","WillNPAdminister","DoesNpHAveExp","DescribeEXP","SubsidiaryEntityName","SubsidiaryEntityLegalStatus","ORgFormedtomeetReqs","AreDirectorsVoluntary","AppCertIndirectCost","HRAMatchPct","HRAPWDMatchPct","HRADRMatchPct","HBAMatchPct","HBAPWDMatchPct","HBADRMatchPct","TBRAMatchPCt","TBRAPWDMatchPct","TBRADRMatchPct","CFDMatchPct","HANCMatchPct","TBRA4pct","TBRA8pct"]
[{"$f":"ApplicantInfo!D5","v":0},{"$f":"ApplicantInfo!D21","v":0},{"$f":"ApplicantInfo!D22","v":0},{"$f":"ApplicantInfo!D23","v":0},{"$f":"ApplicantInfo!D24","v":0},{"$f":"ApplicantInfo!D25","v":0},{"$f":"ApplicantInfo!D11","v":0},{"$f":"ApplicantInfo!D12","v":0},{"$f":"ApplicantInfo!D13","v":0},{"$f":"ApplicantInfo!D14","v":0},{"$f":"ApplicantInfo!D15","v":0},{"$f":"ApplicantInfo!D16","v":0},{"$f":"ApplicantInfo!D17","v":0},{"$f":"ApplicantInfo!D18","v":0},{"$f":"ApplicantInfo!D6","v":0},{"$f":"ApplicantInfo!D7","v":0},{"$f":"ApplicantInfo!D8","v":0},{"$f":"ApplicantInfo!D9","v":0},{"$f":"ApplicantInfo!D10","v":0},{"$f":"ApplicantInfo!D19","v":0},{"$f":"ApplicantInfo!D28","v":0},{"$f":"ApplicantInfo!#REF!","v":{"$error":"#REF!"}},{"$f":"ApplicantInfo!D29","v":0},{"$f":"ApplicantInfo!D31","v":0},{"$f":"ApplicantInfo!D32","v":0},{"$f":"ApplicantInfo!D33","v":0},{"$f":"ApplicantInfo!D34","v":0},{"$f":"ApplicantInfo!D35","v":0},{"$f":"ApplicantInfo!D36","v":0},{"$f":"ApplicantInfo!D37","v":0},{"$f":"ApplicantInfo!D38","v":0},{"$f":"ApplicantInfo!D39","v":"00:00:00"},{"$f":"ApplicantInfo!#REF!","v":{"$error":"#REF!"}},{"$f":"ApplicantInfo!#REF!","v":{"$error":"#REF!"}},{"$f":"ApplicantInfo!#REF!","v":{"$error":"#REF!"}},{"$f":"ApplicantInfo!#REF!","v":{"$error":"#REF!"}},{"$f":"ApplicantInfo!#REF!","v":{"$error":"#REF!"}},{"$f":"ApplicantInfo!#REF!","v":{"$error":"#REF!"}},{"$f":"ApplicantInfo!#REF!","v":{"$error":"#REF!"}},{"$f":"ApplicantInfo!#REF!","v":{"$error":"#REF!"}},{"$f":"ApplicantInfo!#REF!","v":{"$error":"#REF!"}},{"$f":"ApplicantInfo!#REF!","v":{"$error":"#REF!"}},{"$f":"ProjectOversight!$I$20","v":0},{"$f":"ProjectOversight!$I$21","v":0},{"$f":"ProjectOversight!$I$30","v":0},{"$f":"ProjectOversight!$B$33","v":0},{"$f":"ProjectOversight!$C$33","v":0},{"$f":"ProjectOversight!$D$33","v":0},{"$f":"ProjectOversight!$E$33","v":0},{"$f":"ProjectOversight!$G$33","v":0},{"$f":"ProjectOversight!$I$34","v":0},{"$f":"#REF!","v":{"$error":"#REF!"}},{"$f":"#REF!","v":{"$error":"#REF!"}},{"$f":"#REF!","v":{"$error":"#REF!"}},{"$f":"#REF!","v":{"$error":"#REF!"}},{"$f":"#REF!","v":{"$error":"#REF!"}},{"$f":"#REF!","v":{"$error":"#REF!"}},{"$f":"#REF!","v":{"$error":"#REF!"}},{"$f":"#REF!","v":{"$error":"#REF!"}},{"$f":"#REF!","v":{"$error":"#REF!"}},{"$f":"#REF!","v":{"$error":"#REF!"}},{"$f":"#REF!","v":{"$error":"#REF!"}},{"$f":"#REF!","v":{"$error":"#REF!"}},{"$f":"ProjectOversight!I4","v":0},{"$f":"ProjectOversight!D5","v":0},{"$f":"ProjectOversight!D6","v":0},{"$f":"ProjectOversight!D7","v":0},{"$f":"ProjectOversight!D8","v":0},{"$f":"ProjectOversight!D9","v":0},{"$f":"ProjectOversight!D10","v":0},{"$f":"ProjectOversight!D11","v":0},{"$f":"ProjectOversight!D12","v":0},{"$f":"ProjectOversight!D13","v":0},{"$f":"ProjectOversight!D14","v":0},{"$f":"ProjectOversight!D15","v":0},{"$f":"ProjectOversight!I16","v":0},{"$f":"ProjectOversight!I17","v":0},{"$f":"ProjectOversight!D18","v":0},{"$f":"'Cash Reserve'!B7","v":0},{"$f":"'Cash Reserve'!B10","v":0},{"$f":"Activities!B7","v":0},{"$f":"Activities!C7","v":0},{"$f":"Activities!D7","v":0},{"$f":"Activities!#REF!","v":{"$error":"#REF!"}},{"$f":"Activities!#REF!","v":{"$error":"#REF!"}},{"$f":"Activities!#REF!","v":{"$error":"#REF!"}},{"$f":"Activities!B8","v":0},{"$f":"Activities!C8","v":0},{"$f":"Activities!D8","v":0},{"$f":"Activities!B9","v":0},{"$f":"Activities!B10","v":0},{"$f":"Activities!D15","v":0},{"$f":"Activities!#REF!","v":{"$error":"#REF!"}},{"$f":"Activities!#REF!","v":{"$error":"#REF!"}},{"$f":"#REF!","v":{"$error":"#REF!"}},{"$f":"#REF!","v":{"$error":"#REF!"}},{"$f":"#REF!","v":{"$error":"#REF!"}},{"$f":"#REF!","v":{"$error":"#REF!"}},{"$f":"#REF!","v":{"$error":"#REF!"}},{"$f":"#REF!","v":{"$error":"#REF!"}},{"$f":"#REF!","v":{"$error":"#REF!"}},{"$f":"#REF!","v":{"$error":"#REF!"}},{"$f":"#REF!","v":{"$error":"#REF!"}},{"$f":"#REF!","v":{"$error":"#REF!"}},{"$f":"#REF!","v":{"$error":"#REF!"}},{"$f":"#REF!","v":{"$error":"#REF!"}},{"$f":"#REF!","v":{"$error":"#REF!"}},{"$f":"#REF!","v":{"$error":"#REF!"}},{"$f":"#REF!","v":{"$error":"#REF!"}},{"$f":"#REF!","v":{"$error":"#REF!"}},{"$f":"#REF!","v":{"$error":"#REF!"}},{"$f":"ApplicantInfo!I43","v":0},{"$f":"'Matching Funds-HRA'!I10","v":0},{"$f":"'Matching Funds-HRA PWD'!I4","v":0},{"$f":"'Matching Funds-HRA DR'!I4","v":0},{"$f":"#REF!","v":{"$error":"#REF!"}},{"$f":"#REF!","v":{"$error":"#REF!"}},{"$f":"#REF!","v":{"$error":"#REF!"}},{"$f":"'Matching Funds-TBRA'!I7","v":0},{"$f":"'Matching Funds-TBRA PWD'!I7","v":0},{"$f":"'Matching Funds-TBRA DR'!I7","v":0},{"$f":"'Matching Funds-CFD'!I5","v":0},{"$f":"'Matching Funds-HANC'!I11","v":0},{"$f":"Activities!D13","v":0},{"$f":"Activities!D14","v":0}]

{"sheet":"MatchData","index":32,"n_rows":114,"n_cols":9,"rows_kept":114,"cut":false,"hidden":true,"merged":[[61,1,61,5],[62,1,62,5],[63,1,63,5],[64,1,64,5],[65,1,65,5],[66,1,66,5],[67,1,67,5],[68,1,68,5],[69,1,69,5],[70,1,70,5],[71,1,71,5],[72,1,72,5],[73,1,73,5],[74,1,74,5],[75,1,75,5],[76,1,76,5],[77,1,77,5],[88,1,88,5],[78,1,78,5],[79,1,79,5],[80,1,80,5],[81,1,81,5],[82,1,82,5],[89,1,89,5],[90,1,90,5],[91,1,91,5],[92,1,92,5],[83,1,83,5],[84,1,84,5],[85,1,85,5],[86,1,86,5],[87,1,87,5],[56,1,56,5],[57,1,57,5],[58,1,58,5],[59,1,59,5],[60,1,60,5],[50,1,50,5],[51,1,51,5],[52,1,52,5],[53,1,53,5],[54,1,54,5],[40,1,40,5],[41,1,41,5],[42,1,42,5],[43,1,43,5],[44,1,44,5],[55,1,55,5],[45,1,45,5],[46,1,46,5],[47,1,47,5],[48,1,48,5],[49,1,49,5],[102,1,102,5],[103,1,103,5],[27,1,27,5],[28,1,28,5],[29,1,29,5],[30,1,30,5],[97,1,97,5],[98,1,98,5],[99,1,99,5],[100,1,100,5],[31,1,31,5],[32,1,32,5],[33,1,33,5],[34,1,34,5],[35,1,35,5],[36,1,36,5],[101,1,101,5],[37,1,37,5],[38,1,38,5],[93,1,93,5],[94,1,94,5],[95,1,95,5],[96,1,96,5],[39,1,39,5],[21,1,21,5],[22,1,22,5],[23,1,23,5],[24,1,24,5],[25,1,25,5],[26,1,26,5],[20,1,20,5],[15,1,15,5],[16,1,16,5],[17,1,17,5],[18,1,18,5],[19,1,19,5],[0,1,0,5],[1,1,1,5],[2,1,2,5],[11,1,11,5],[12,1,12,5],[13,1,13,5],[14,1,14,5],[3,1,3,5],[4,1,4,5],[10,1,10,5],[9,1,9,5],[7,1,7,5],[8,1,8,5],[5,1,5,5],[6,1,6,5],[113,1,113,5],[104,1,104,5],[105,1,105,5],[106,1,106,5],[107,1,107,5],[108,1,108,5],[109,1,109,5],[110,1,110,5],[111,1,111,5],[112,1,112,5]]}
["Matching Funds","Type",null,null,null,null,"PledgeAmt","PRovidedBy","Other"]
["HRA","Cash / cash equivalents from non-federal sources",null,null,null,null,{"$f":"'Matching Funds-HRA'!E14","v":0},{"$f":"'Matching Funds-HRA'!F14","v":0},{"$f":"'Matching Funds-HRA'!H14","v":0}]
["HRA","Value of waived taxes, fees or charges associated with HOME projects (ex: debris removal and container fees, tap fees, electrical hook up, building permits)",null,null,null,null,{"$f":"'Matching Funds-HRA'!E15","v":0},{"$f":"'Matching Funds-HRA'!F15","v":0},{"$f":"'Matching Funds-HRA'!H15","v":"     "}]
["HRA","Value of donated labor (includes volunteer labor)",null,null,null,null,{"$f":"'Matching Funds-HRA'!E16","v":0},{"$f":"'Matching Funds-HRA'!F16","v":0},{"$f":"'Matching Funds-HRA'!H16","v":"     "}]
["HRA","Value of donated professional services",null,null,null,null,{"$f":"'Matching Funds-HRA'!E17","v":0},{"$f":"'Matching Funds-HRA'!F17","v":0},{"$f":"'Matching Funds-HRA'!H17","v":"     "}]
["HRA","Donated Site Preparation (limit $1,500/unit)",null,null,null,null,{"$f":"'Matching Funds-HRA'!E18","v":0},{"$f":"'Matching Funds-HRA'!F18","v":0},{"$f":"'Matching Funds-HRA'!H18","v":"     "}]
["HRA","Donated Demolition Services (limit $3,500/unit)",null,null,null,null,{"$f":"'Matching Funds-HRA'!E19","v":0},{"$f":"'Matching Funds-HRA'!F19","v":0},{"$f":"'Matching Funds-HRA'!H19","v":"     "}]
["HRA","Cost of infrastructure improvements associated with HOME projects",null,null,null,null,{"$f":"'Matching Funds-HRA'!E20","v":0},{"$f":"'Matching Funds-HRA'!F20","v":0},{"$f":"'Matching Funds-HRA'!H20","v":"     "}]
["HRA","Rental Value of Donated Use of Site Preparation or Construction Equipment ",null,null,null,null,{"$f":"'Matching Funds-HRA'!E21","v":0},{"$f":"'Matching Funds-HRA'!F21","v":0},{"$f":"'Matching Funds-HRA'!H21","v":"     "}]
["HRA","Donated Real Property",null,null,null,null,{"$f":"'Matching Funds-HRA'!E22","v":0},{"$f":"'Matching Funds-HRA'!F22","v":0},{"$f":"'Matching Funds-HRA'!H22","v":"     "}]
["HRA","Direct Cost of Homebuyer Counseling",null,null,null,null,{"$f":"'Matching Funds-HRA'!E23","v":0},{"$f":"'Matching Funds-HRA'!F23","v":0},{"$f":"'Matching Funds-HRA'!H23","v":"     "}]
["HRA-PWD","Cash / cash equivalents from non-federal sources",null,null,null,null,{"$f":"'Matching Funds-HRA PWD'!E8","v":0},{"$f":"'Matching Funds-HRA PWD'!F8","v":0},{"$f":"'Matching Funds-HRA PWD'!H8","v":0}]
["HRA-PWD","Value of waived taxes, fees or charges associated with HOME projects (ex: debris removal and container fees, tap fees, electrical hook up, building permits)",null,null,null,null,{"$f":"'Matching Funds-HRA PWD'!E9","v":0},{"$f":"'Matching Funds-HRA PWD'!F9","v":0},{"$f":"'Matching Funds-HRA PWD'!H9","v":"     "}]
["HRA-PWD","Value of donated labor (includes volunteer labor)",null,null,null,null,{"$f":"'Matching Funds-HRA PWD'!E10","v":0},{"$f":"'Matching Funds-HRA PWD'!F10","v":0},{"$f":"'Matching Funds-HRA PWD'!H10","v":"     "}]
["HRA-PWD","Value of donated professional services",null,null,null,null,{"$f":"'Matching Funds-HRA PWD'!E11","v":0},{"$f":"'Matching Funds-HRA PWD'!F11","v":0},{"$f":"'Matching Funds-HRA PWD'!H11","v":"     "}]
["HRA-PWD","Donated Site Preparation (limit $1,500/unit)",null,null,null,null,{"$f":"'Matching Funds-HRA PWD'!E12","v":0},{"$f":"'Matching Funds-HRA PWD'!F12","v":0},{"$f":"'Matching Funds-HRA PWD'!H12","v":"     "}]
["HRA-PWD","Donated Demolition Services (limit $3,500/unit)",null,null,null,null,{"$f":"'Matching Funds-HRA PWD'!E13","v":0},{"$f":"'Matching Funds-HRA PWD'!F13","v":0},{"$f":"'Matching Funds-HRA PWD'!H13","v":"     "}]
["HRA-PWD","Cost of infrastructure improvements associated with HOME projects",null,null,null,null,{"$f":"'Matching Funds-HRA PWD'!E14","v":0},{"$f":"'Matching Funds-HRA PWD'!F14","v":0},{"$f":"'Matching Funds-HRA PWD'!H14","v":"     "}]
["HRA-PWD","Rental Value of Donated Use of Site Preparation or Construction Equipment ",null,null,null,null,{"$f":"'Matching Funds-HRA PWD'!E15","v":0},{"$f":"'Matching Funds-HRA PWD'!F15","v":0},{"$f":"'Matching Funds-HRA PWD'!H15","v":"     "}]
["HRA-PWD","Donated Real Property",null,null,null,null,{"$f":"'Matching Funds-HRA PWD'!E16","v":0},{"$f":"'Matching Funds-HRA PWD'!F16","v":0},{"$f":"'Matching Funds-HRA PWD'!H16","v":"     "}]
["HRA-PWD","Direct Cost of Homebuyer Counseling",null,null,null,null,{"$f":"'Matching Funds-HRA PWD'!E17","v":0},{"$f":"'Matching Funds-HRA PWD'!F17","v":0},{"$f":"'Matching Funds-HRA PWD'!H17","v":"     "}]
["HRA-DR","Cash / cash equivalents from non-federal sources",null,null,null,null,{"$f":"'Matching Funds-HRA DR'!E8","v":0},{"$f":"'Matching Funds-HRA DR'!F8","v":0},{"$f":"'Matching Funds-HRA DR'!H8","v":0}]
["HRA-DR","Value of waived taxes, fees or charges associated with HOME projects (ex: debris removal and container fees, tap fees, electrical hook up, building permits)",null,null,null,null,{"$f":"'Matching Funds-HRA DR'!E9","v":0},{"$f":"'Matching Funds-HRA DR'!F9","v":0},{"$f":"'Matching Funds-HRA DR'!H9","v":"     "}]
["HRA-DR","Value of donated labor (includes volunteer labor)",null,null,null,null,{"$f":"'Matching Funds-HRA DR'!E10","v":0},{"$f":"'Matching Funds-HRA DR'!F10","v":0},{"$f":"'Matching Funds-HRA DR'!H10","v":"     "}]
["HRA-DR","Value of donated professional services",null,null,null,null,{"$f":"'Matching Funds-HRA DR'!E11","v":0},{"$f":"'Matching Funds-HRA DR'!F11","v":0},{"$f":"'Matching Funds-HRA DR'!H11","v":"     "}]
["HRA-DR","Donated Site Preparation (limit $1,500/unit)",null,null,null,null,{"$f":"'Matching Funds-HRA DR'!E12","v":0},{"$f":"'Matching Funds-HRA DR'!F12","v":0},{"$f":"'Matching Funds-HRA DR'!H12","v":"     "}]
["HRA-DR","Donated Demolition Services (limit $3,500/unit)",null,null,null,null,{"$f":"'Matching Funds-HRA DR'!E13","v":0},{"$f":"'Matching Funds-HRA DR'!F13","v":0},{"$f":"'Matching Funds-HRA DR'!H13","v":"     "}]
["HRA-DR","Cost of infrastructure improvements associated with HOME projects",null,null,null,null,{"$f":"'Matching Funds-HRA DR'!E14","v":0},{"$f":"'Matching Funds-HRA DR'!F14","v":0},{"$f":"'Matching Funds-HRA DR'!H14","v":"     "}]
["HRA-DR","Rental Value of Donated Use of Site Preparation or Construction Equipment ",null,null,null,null,{"$f":"'Matching Funds-HRA DR'!E15","v":0},{"$f":"'Matching Funds-HRA DR'!F15","v":0},{"$f":"'Matching Funds-HRA DR'!H15","v":"     "}]
["HRA-DR","Donated Real Property",null,null,null,null,{"$f":"'Matching Funds-HRA DR'!E16","v":0},{"$f":"'Matching Funds-HRA DR'!F16","v":0},{"$f":"'Matching Funds-HRA DR'!H16","v":"     "}]
["HRA-DR","Direct Cost of Homebuyer Counseling",null,null,null,null,{"$f":"'Matching Funds-HRA DR'!E17","v":0},{"$f":"'Matching Funds-HRA DR'!F17","v":0},{"$f":"'Matching Funds-HRA DR'!H17","v":"     "}]
["HBA","Cash / cash equivalents from non-federal sources",null,null,null,null,{"$f":"#REF!","v":{"$error":"#REF!"}},{"$f":"#REF!","v":{"$error":"#REF!"}},{"$f":"#REF!","v":{"$error":"#REF!"}}]
["HBA","Value of waived taxes, fees or charges associated with HOME projects (ex: debris removal and container fees, tap fees, electrical hook up, building permits)",null,null,null,null,{"$f":"#REF!","v":{"$error":"#REF!"}},{"$f":"#REF!","v":{"$error":"#REF!"}},{"$f":"#REF!","v":{"$error":"#REF!"}}]
["HBA","Value of donated labor (includes volunteer labor)",null,null,null,null,{"$f":"#REF!","v":{"$error":"#REF!"}},{"$f":"#REF!","v":{"$error":"#REF!"}},{"$f":"#REF!","v":{"$error":"#REF!"}}]
["HBA","Value of donated professional services",null,null,null,null,{"$f":"#REF!","v":{"$error":"#REF!"}},{"$f":"#REF!","v":{"$error":"#REF!"}},{"$f":"#REF!","v":{"$error":"#REF!"}}]
["HBA","Donated Site Preparation (limit $1,500/unit)",null,null,null,null,{"$f":"#REF!","v":{"$error":"#REF!"}},{"$f":"#REF!","v":{"$error":"#REF!"}},{"$f":"#REF!","v":{"$error":"#REF!"}}]
["HBA","Donated Demolition Services (limit $3,500/unit)",null,null,null,null,{"$f":"#REF!","v":{"$error":"#REF!"}},{"$f":"#REF!","v":{"$error":"#REF!"}},{"$f":"#REF!","v":{"$error":"#REF!"}}]
["HBA","Cost of infrastructure improvements associated with HOME projects",null,null,null,null,{"$f":"#REF!","v":{"$error":"#REF!"}},{"$f":"#REF!","v":{"$error":"#REF!"}},{"$f":"#REF!","v":{"$error":"#REF!"}}]
["HBA","Rental Value of Donated Use of Site Preparation or Construction Equipment ",null,null,null,null,{"$f":"#REF!","v":{"$error":"#REF!"}},{"$f":"#REF!","v":{"$error":"#REF!"}},{"$f":"#REF!","v":{"$error":"#REF!"}}]
["HBA","Donated Real Property",null,null,null,null,{"$f":"#REF!","v":{"$error":"#REF!"}},{"$f":"#REF!","v":{"$error":"#REF!"}},{"$f":"#REF!","v":{"$error":"#REF!"}}]
["HBA","Direct Cost of Homebuyer Counseling",null,null,null,null,{"$f":"#REF!","v":{"$error":"#REF!"}},{"$f":"#REF!","v":{"$error":"#REF!"}},{"$f":"#REF!","v":{"$error":"#REF!"}}]
["HBA-PWD","Cash / cash equivalents from non-federal sources",null,null,null,null,{"$f":"#REF!","v":{"$error":"#REF!"}},{"$f":"#REF!","v":{"$error":"#REF!"}},{"$f":"#REF!","v":{"$error":"#REF!"}}]
["HBA-PWD","Value of waived taxes, fees or charges associated with HOME projects (ex: debris removal and container fees, tap fees, electrical hook up, building permits)",null,null,null,null,{"$f":"#REF!","v":{"$error":"#REF!"}},{"$f":"#REF!","v":{"$error":"#REF!"}},{"$f":"#REF!","v":{"$error":"#REF!"}}]
["HBA-PWD","Value of donated labor (includes volunteer labor)",null,null,null,null,{"$f":"#REF!","v":{"$error":"#REF!"}},{"$f":"#REF!","v":{"$error":"#REF!"}},{"$f":"#REF!","v":{"$error":"#REF!"}}]
["HBA-PWD","Value of donated professional services",null,null,null,null,{"$f":"#REF!","v":{"$error":"#REF!"}},{"$f":"#REF!","v":{"$error":"#REF!"}},{"$f":"#REF!","v":{"$error":"#REF!"}}]
["HBA-PWD","Donated Site Preparation (limit $1,500/unit)",null,null,null,null,{"$f":"#REF!","v":{"$error":"#REF!"}},{"$f":"#REF!","v":{"$error":"#REF!"}},{"$f":"#REF!","v":{"$error":"#REF!"}}]
["HBA-PWD","Donated Demolition Services (limit $3,500/unit)",null,null,null,null,{"$f":"#REF!","v":{"$error":"#REF!"}},{"$f":"#REF!","v":{"$error":"#REF!"}},{"$f":"#REF!","v":{"$error":"#REF!"}}]
["HBA-PWD","Cost of infrastructure improvements associated with HOME projects",null,null,null,null,{"$f":"#REF!","v":{"$error":"#REF!"}},{"$f":"#REF!","v":{"$error":"#REF!"}},{"$f":"#REF!","v":{"$error":"#REF!"}}]
["HBA-PWD","Rental Value of Donated Use of Site Preparation or Construction Equipment ",null,null,null,null,{"$f":"#REF!","v":{"$error":"#REF!"}},{"$f":"#REF!","v":{"$error":"#REF!"}},{"$f":"#REF!","v":{"$error":"#REF!"}}]
["HBA-PWD","Donated Real Property",null,null,null,null,{"$f":"#REF!","v":{"$error":"#REF!"}},{"$f":"#REF!","v":{"$error":"#REF!"}},{"$f":"#REF!","v":{"$error":"#REF!"}}]
["HBA-PWD","Direct Cost of Homebuyer Counseling",null,null,null,null,{"$f":"#REF!","v":{"$error":"#REF!"}},{"$f":"#REF!","v":{"$error":"#REF!"}},{"$f":"#REF!","v":{"$error":"#REF!"}}]
["HBA-DR","Cash / cash equivalents from non-federal sources",null,null,null,null,{"$f":"#REF!","v":{"$error":"#REF!"}},{"$f":"#REF!","v":{"$error":"#REF!"}},{"$f":"#REF!","v":{"$error":"#REF!"}}]
["HBA-DR","Value of waived taxes, fees or charges associated with HOME projects (ex: debris removal and container fees, tap fees, electrical hook up, building permits)",null,null,null,null,{"$f":"#REF!","v":{"$error":"#REF!"}},{"$f":"#REF!","v":{"$error":"#REF!"}},{"$f":"#REF!","v":{"$error":"#REF!"}}]
["HBA-DR","Value of donated labor (includes volunteer labor)",null,null,null,null,{"$f":"#REF!","v":{"$error":"#REF!"}},{"$f":"#REF!","v":{"$error":"#REF!"}},{"$f":"#REF!","v":{"$error":"#REF!"}}]
["HBA-DR","Value of donated professional services",null,null,null,null,{"$f":"#REF!","v":{"$error":"#REF!"}},{"$f":"#REF!","v":{"$error":"#REF!"}},{"$f":"#REF!","v":{"$error":"#REF!"}}]
["HBA-DR","Donated Site Preparation (limit $1,500/unit)",null,null,null,null,{"$f":"#REF!","v":{"$error":"#REF!"}},{"$f":"#REF!","v":{"$error":"#REF!"}},{"$f":"#REF!","v":{"$error":"#REF!"}}]
["HBA-DR","Donated Demolition Services (limit $3,500/unit)",null,null,null,null,{"$f":"#REF!","v":{"$error":"#REF!"}},{"$f":"#REF!","v":{"$error":"#REF!"}},{"$f":"#REF!","v":{"$error":"#REF!"}}]
["HBA-DR","Cost of infrastructure improvements associated with HOME projects",null,null,null,null,{"$f":"#REF!","v":{"$error":"#REF!"}},{"$f":"#REF!","v":{"$error":"#REF!"}},{"$f":"#REF!","v":{"$error":"#REF!"}}]
["HBA-DR","Rental Value of Donated Use of Site Preparation or Construction Equipment ",null,null,null,null,{"$f":"#REF!","v":{"$error":"#REF!"}},{"$f":"#REF!","v":{"$error":"#REF!"}},{"$f":"#REF!","v":{"$error":"#REF!"}}]
["HBA-DR","Donated Real Property",null,null,null,null,{"$f":"#REF!","v":{"$error":"#REF!"}},{"$f":"#REF!","v":{"$error":"#REF!"}},{"$f":"#REF!","v":{"$error":"#REF!"}}]
["HBA-DR","Direct Cost of Homebuyer Counseling",null,null,null,null,{"$f":"#REF!","v":{"$error":"#REF!"}},{"$f":"#REF!","v":{"$error":"#REF!"}},{"$f":"#REF!","v":{"$error":"#REF!"}}]
["TBRA","Cash / cash equivalents from non-federal sources",null,null,null,null,{"$f":"'Matching Funds-TBRA'!E11","v":0},{"$f":"'Matching Funds-TBRA'!F11","v":0},{"$f":"'Matching Funds-TBRA'!H11","v":0}]
["TBRA","Value of waived taxes, fees or charges associated with HOME projects (ex: debris removal and container fees, tap fees, electrical hook up, building permits)",null,null,null,null,{"$f":"'Matching Funds-TBRA'!#REF!","v":{"$error":"#REF!"}},{"$f":"'Matching Funds-TBRA'!#REF!","v":{"$error":"#REF!"}},{"$f":"'Matching Funds-TBRA'!#REF!","v":{"$error":"#REF!"}}]
["TBRA","Value of donated labor (includes volunteer labor)",null,null,null,null,{"$f":"'Matching Funds-TBRA'!#REF!","v":{"$error":"#REF!"}},{"$f":"'Matching Funds-TBRA'!#REF!","v":{"$error":"#REF!"}},{"$f":"'Matching Funds-TBRA'!#REF!","v":{"$error":"#REF!"}}]
["TBRA","Value of donated professional services",null,null,null,null,{"$f":"'Matching Funds-TBRA'!E12","v":0},{"$f":"'Matching Funds-TBRA'!F12","v":0},{"$f":"'Matching Funds-TBRA'!H12","v":"     "}]
["TBRA","Donated Site Preparation (limit $1,500/unit)",null,null,null,null,{"$f":"'Matching Funds-TBRA'!#REF!","v":{"$error":"#REF!"}},{"$f":"'Matching Funds-TBRA'!#REF!","v":{"$error":"#REF!"}},{"$f":"'Matching Funds-TBRA'!#REF!","v":{"$error":"#REF!"}}]
["TBRA","Donated Demolition Services (limit $3,500/unit)",null,null,null,null,{"$f":"'Matching Funds-TBRA'!#REF!","v":{"$error":"#REF!"}},{"$f":"'Matching Funds-TBRA'!#REF!","v":{"$error":"#REF!"}},{"$f":"'Matching Funds-TBRA'!#REF!","v":{"$error":"#REF!"}}]
["TBRA","Cost of infrastructure improvements associated with HOME projects",null,null,null,null,{"$f":"'Matching Funds-TBRA'!#REF!","v":{"$error":"#REF!"}},{"$f":"'Matching Funds-TBRA'!#REF!","v":{"$error":"#REF!"}},{"$f":"'Matching Funds-TBRA'!#REF!","v":{"$error":"#REF!"}}]
["TBRA","Rental Value of Donated Use of Site Preparation or Construction Equipment ",null,null,null,null,{"$f":"'Matching Funds-TBRA'!#REF!","v":{"$error":"#REF!"}},{"$f":"'Matching Funds-TBRA'!#REF!","v":{"$error":"#REF!"}},{"$f":"'Matching Funds-TBRA'!#REF!","v":{"$error":"#REF!"}}]
["TBRA","Donated Real Property",null,null,null,null,{"$f":"'Matching Funds-TBRA'!#REF!","v":{"$error":"#REF!"}},{"$f":"'Matching Funds-TBRA'!#REF!","v":{"$error":"#REF!"}},{"$f":"'Matching Funds-TBRA'!#REF!","v":{"$error":"#REF!"}}]
["TBRA","Direct Cost of Homebuyer Counseling",null,null,null,null,{"$f":"'Matching Funds-TBRA'!E13","v":0},{"$f":"'Matching Funds-TBRA'!F13","v":0},{"$f":"'Matching Funds-TBRA'!H13","v":"     "}]
["TBRA","Direct Costs of Supportive Services for TBRA",null,null,null,null,{"$f":"'Matching Funds-TBRA'!E14","v":0},{"$f":"'Matching Funds-TBRA'!F14","v":0},{"$f":"'Matching Funds-TBRA'!H14","v":"     "}]
["TBRA-PWD","Cash / cash equivalents from non-federal sources",null,null,null,null,{"$f":"'Matching Funds-TBRA PWD'!E11","v":0},{"$f":"'Matching Funds-TBRA PWD'!F11","v":0},{"$f":"'Matching Funds-TBRA PWD'!H11","v":0}]
["TBRA-PWD","Value of waived taxes, fees or charges associated with HOME projects (ex: debris removal and container fees, tap fees, electrical hook up, building permits)",null,null,null,null,{"$f":"'Matching Funds-TBRA PWD'!#REF!","v":{"$error":"#REF!"}},{"$f":"'Matching Funds-TBRA PWD'!#REF!","v":{"$error":"#REF!"}},{"$f":"'Matching Funds-TBRA PWD'!#REF!","v":{"$error":"#REF!"}}]
["TBRA-PWD","Value of donated labor (includes volunteer labor)",null,null,null,null,{"$f":"'Matching Funds-TBRA PWD'!#REF!","v":{"$error":"#REF!"}},{"$f":"'Matching Funds-TBRA PWD'!#REF!","v":{"$error":"#REF!"}},{"$f":"'Matching Funds-TBRA PWD'!#REF!","v":{"$error":"#REF!"}}]
["TBRA-PWD","Value of donated professional services",null,null,null,null,{"$f":"'Matching Funds-TBRA PWD'!E12","v":0},{"$f":"'Matching Funds-TBRA PWD'!F12","v":0},{"$f":"'Matching Funds-TBRA PWD'!H12","v":"     "}]
["TBRA-PWD","Donated Site Preparation (limit $1,500/unit)",null,null,null,null,{"$f":"'Matching Funds-TBRA PWD'!#REF!","v":{"$error":"#REF!"}},{"$f":"'Matching Funds-TBRA PWD'!#REF!","v":{"$error":"#REF!"}},{"$f":"'Matching Funds-TBRA PWD'!#REF!","v":{"$error":"#REF!"}}]
["TBRA-PWD","Donated Demolition Services (limit $3,500/unit)",null,null,null,null,{"$f":"'Matching Funds-TBRA PWD'!#REF!","v":{"$error":"#REF!"}},{"$f":"'Matching Funds-TBRA PWD'!#REF!","v":{"$error":"#REF!"}},{"$f":"'Matching Funds-TBRA PWD'!#REF!","v":{"$error":"#REF!"}}]
["TBRA-PWD","Cost of infrastructure improvements associated with HOME projects",null,null,null,null,{"$f":"'Matching Funds-TBRA PWD'!#REF!","v":{"$error":"#REF!"}},{"$f":"'Matching Funds-TBRA PWD'!#REF!","v":{"$error":"#REF!"}},{"$f":"'Matching Funds-TBRA PWD'!#REF!","v":{"$error":"#REF!"}}]
["TBRA-PWD","Rental Value of Donated Use of Site Preparation or Construction Equipment ",null,null,null,null,{"$f":"'Matching Funds-TBRA PWD'!#REF!","v":{"$error":"#REF!"}},{"$f":"'Matching Funds-TBRA PWD'!#REF!","v":{"$error":"#REF!"}},{"$f":"'Matching Funds-TBRA PWD'!#REF!","v":{"$error":"#REF!"}}]
["TBRA-PWD","Donated Real Property",null,null,null,null,{"$f":"'Matching Funds-TBRA PWD'!#REF!","v":{"$error":"#REF!"}},{"$f":"'Matching Funds-TBRA PWD'!#REF!","v":{"$error":"#REF!"}},{"$f":"'Matching Funds-TBRA PWD'!#REF!","v":{"$error":"#REF!"}}]
["TBRA-PWD","Direct Cost of Homebuyer Counseling",null,null,null,null,{"$f":"'Matching Funds-TBRA PWD'!E13","v":0},{"$f":"'Matching Funds-TBRA PWD'!F13","v":0},{"$f":"'Matching Funds-TBRA PWD'!H13","v":"     "}]
["TBRA-PWD","Direct Costs of Supportive Services for TBRA",null,null,null,null,{"$f":"'Matching Funds-TBRA PWD'!E14","v":0},{"$f":"'Matching Funds-TBRA PWD'!F14","v":0},{"$f":"'Matching Funds-TBRA PWD'!H14","v":"     "}]
["TBRA-DR","Cash / cash equivalents from non-federal sources",null,null,null,null,{"$f":"'Matching Funds-TBRA DR'!E11","v":0},{"$f":"'Matching Funds-TBRA DR'!F11","v":0},{"$f":"'Matching Funds-TBRA DR'!H11","v":0}]
["TBRA-DR","Value of waived taxes, fees or charges associated with HOME projects (ex: debris removal and container fees, tap fees, electrical hook up, building permits)",null,null,null,null,{"$f":"'Matching Funds-TBRA DR'!#REF!","v":{"$error":"#REF!"}},{"$f":"'Matching Funds-TBRA DR'!#REF!","v":{"$error":"#REF!"}},{"$f":"'Matching Funds-TBRA DR'!#REF!","v":{"$error":"#REF!"}}]
["TBRA-DR","Value of donated labor (includes volunteer labor)",null,null,null,null,{"$f":"'Matching Funds-TBRA DR'!#REF!","v":{"$error":"#REF!"}},{"$f":"'Matching Funds-TBRA DR'!#REF!","v":{"$error":"#REF!"}},{"$f":"'Matching Funds-TBRA DR'!#REF!","v":{"$error":"#REF!"}}]
["TBRA-DR","Value of donated professional services",null,null,null,null,{"$f":"'Matching Funds-TBRA DR'!E12","v":0},{"$f":"'Matching Funds-TBRA DR'!F12","v":0},{"$f":"'Matching Funds-TBRA DR'!H12","v":"     "}]
["TBRA-DR","Donated Site Preparation (limit $1,500/unit)",null,null,null,null,{"$f":"'Matching Funds-TBRA DR'!#REF!","v":{"$error":"#REF!"}},{"$f":"'Matching Funds-TBRA DR'!#REF!","v":{"$error":"#REF!"}},{"$f":"'Matching Funds-TBRA DR'!#REF!","v":{"$error":"#REF!"}}]
["TBRA-DR","Donated Demolition Services (limit $3,500/unit)",null,null,null,null,{"$f":"'Matching Funds-TBRA DR'!#REF!","v":{"$error":"#REF!"}},{"$f":"'Matching Funds-TBRA DR'!#REF!","v":{"$error":"#REF!"}},{"$f":"'Matching Funds-TBRA DR'!#REF!","v":{"$error":"#REF!"}}]
["TBRA-DR","Cost of infrastructure improvements associated with HOME projects",null,null,null,null,{"$f":"'Matching Funds-TBRA DR'!#REF!","v":{"$error":"#REF!"}},{"$f":"'Matching Funds-TBRA DR'!#REF!","v":{"$error":"#REF!"}},{"$f":"'Matching Funds-TBRA DR'!#REF!","v":{"$error":"#REF!"}}]
["TBRA-DR","Rental Value of Donated Use of Site Preparation or Construction Equipment ",null,null,null,null,{"$f":"'Matching Funds-TBRA DR'!#REF!","v":{"$error":"#REF!"}},{"$f":"'Matching Funds-TBRA DR'!#REF!","v":{"$error":"#REF!"}},{"$f":"'Matching Funds-TBRA DR'!#REF!","v":{"$error":"#REF!"}}]
["TBRA-DR","Donated Real Property",null,null,null,null,{"$f":"'Matching Funds-TBRA DR'!#REF!","v":{"$error":"#REF!"}},{"$f":"'Matching Funds-TBRA DR'!#REF!","v":{"$error":"#REF!"}},{"$f":"'Matching Funds-TBRA DR'!#REF!","v":{"$error":"#REF!"}}]
["TBRA-DR","Direct Cost of Homebuyer Counseling",null,null,null,null,{"$f":"'Matching Funds-TBRA DR'!E13","v":0},{"$f":"'Matching Funds-TBRA DR'!F13","v":0},{"$f":"'Matching Funds-TBRA DR'!H13","v":"     "}]
["TBRA-DR","Direct Costs of Supportive Services for TBRA",null,null,null,null,{"$f":"'Matching Funds-TBRA DR'!E14","v":0},{"$f":"'Matching Funds-TBRA DR'!F14","v":0},{"$f":"'Matching Funds-TBRA DR'!H14","v":"     "}]
["CFD","Cash / cash equivalents from non-federal sources",null,null,null,null,{"$f":"'Matching Funds-CFD'!E8","v":0},{"$f":"'Matching Funds-CFD'!F8","v":0},{"$f":"'Matching Funds-CFD'!H8","v":0}]
["CFD","Value of waived taxes, fees or charges associated with HOME projects (ex: debris removal and container fees, tap fees, electrical hook up, building permits)",null,null,null,null,{"$f":"'Matching Funds-CFD'!E9","v":0},{"$f":"'Matching Funds-CFD'!F9","v":0},{"$f":"'Matching Funds-CFD'!H9","v":"     "}]
["CFD","Value of donated labor (includes volunteer labor)",null,null,null,null,{"$f":"'Matching Funds-CFD'!E10","v":0},{"$f":"'Matching Funds-CFD'!F10","v":0},{"$f":"'Matching Funds-CFD'!H10","v":"     "}]
["CFD","Value of donated professional services",null,null,null,null,{"$f":"'Matching Funds-CFD'!E11","v":0},{"$f":"'Matching Funds-CFD'!F11","v":0},{"$f":"'Matching Funds-CFD'!H11","v":"     "}]
["CFD","Donated Site Preparation (limit $1,500/unit)",null,null,null,null,{"$f":"'Matching Funds-CFD'!E12","v":0},{"$f":"'Matching Funds-CFD'!F12","v":0},{"$f":"'Matching Funds-CFD'!H12","v":"     "}]
["CFD","Donated Demolition Services (limit $3,500/unit)",null,null,null,null,{"$f":"'Matching Funds-CFD'!E13","v":0},{"$f":"'Matching Funds-CFD'!F13","v":0},{"$f":"'Matching Funds-CFD'!H13","v":"     "}]
["CFD","Cost of infrastructure improvements associated with HOME projects",null,null,null,null,{"$f":"'Matching Funds-CFD'!E14","v":0},{"$f":"'Matching Funds-CFD'!F14","v":0},{"$f":"'Matching Funds-CFD'!H14","v":"     "}]
["CFD","Rental Value of Donated Use of Site Preparation or Construction Equipment ",null,null,null,null,{"$f":"'Matching Funds-CFD'!E15","v":0},{"$f":"'Matching Funds-CFD'!F15","v":0},{"$f":"'Matching Funds-CFD'!H15","v":"     "}]
["CFD","Donated Real Property",null,null,null,null,{"$f":"'Matching Funds-CFD'!E16","v":0},{"$f":"'Matching Funds-CFD'!F16","v":0},{"$f":"'Matching Funds-CFD'!H16","v":"     "}]
["CFD","Direct Cost of Homebuyer Counseling",null,null,null,null,{"$f":"'Matching Funds-CFD'!E17","v":0},{"$f":"'Matching Funds-CFD'!F17","v":0},{"$f":"'Matching Funds-CFD'!H17","v":"     "}]
["HANC","Cash / cash equivalents from non-federal sources",null,null,null,null,{"$f":"'Matching Funds-HANC'!E15","v":0},{"$f":"'Matching Funds-HANC'!F15","v":0},{"$f":"'Matching Funds-HANC'!H15","v":0}]
["HANC","Value of waived taxes, fees or charges associated with HOME projects (ex: debris removal and container fees, tap fees, electrical hook up, building permits)",null,null,null,null,{"$f":"'Matching Funds-HANC'!E16","v":0},{"$f":"'Matching Funds-HANC'!F16","v":0},{"$f":"'Matching Funds-HANC'!H16","v":"     "}]
["HANC","Value of donated labor (includes volunteer labor)",null,null,null,null,{"$f":"'Matching Funds-HANC'!E17","v":0},{"$f":"'Matching Funds-HANC'!F17","v":0},{"$f":"'Matching Funds-HANC'!H17","v":"     "}]
["HANC","Value of donated professional services",null,null,null,null,{"$f":"'Matching Funds-HANC'!E18","v":0},{"$f":"'Matching Funds-HANC'!F18","v":0},{"$f":"'Matching Funds-HANC'!H18","v":"     "}]
["HANC","Donated Site Preparation (limit $1,500/unit)",null,null,null,null,{"$f":"'Matching Funds-HANC'!E19","v":0},{"$f":"'Matching Funds-HANC'!F19","v":0},{"$f":"'Matching Funds-HANC'!H19","v":"     "}]
["HANC","Donated Demolition Services (limit $3,500/unit)",null,null,null,null,{"$f":"'Matching Funds-HANC'!E20","v":0},{"$f":"'Matching Funds-HANC'!F20","v":0},{"$f":"'Matching Funds-HANC'!H20","v":"     "}]
["HANC","Cost of infrastructure improvements associated with HOME projects",null,null,null,null,{"$f":"'Matching Funds-HANC'!E21","v":0},{"$f":"'Matching Funds-HANC'!F21","v":0},{"$f":"'Matching Funds-HANC'!H21","v":"     "}]
["HANC","Rental Value of Donated Use of Site Preparation or Construction Equipment ",null,null,null,null,{"$f":"'Matching Funds-HANC'!E22","v":0},{"$f":"'Matching Funds-HANC'!F22","v":0},{"$f":"'Matching Funds-HANC'!H22","v":"     "}]
["HANC","Donated Real Property",null,null,null,null,{"$f":"'Matching Funds-HANC'!E23","v":0},{"$f":"'Matching Funds-HANC'!F23","v":0},{"$f":"'Matching Funds-HANC'!H23","v":"     "}]
["HANC","Direct Cost of Homebuyer Counseling",null,null,null,null,{"$f":"'Matching Funds-HANC'!E24","v":0},{"$f":"'Matching Funds-HANC'!F24","v":0},{"$f":"'Matching Funds-HANC'!H24","v":"     "}]

{"sheet":"AreaSrvd","index":33,"n_rows":343,"n_cols":5,"rows_kept":343,"cut":false,"hidden":true,"merged":[]}
["Activity","County ","List specific cities or colonias served","Is County or City located within a PJ or part of a Consortium?  ","If “YES” list PJ or Consortium  "]
["Dummy","Dummy","Dummy","no","Dummy"]
["HRA",{"$f":"'Service Area-HRA'!A9","v":0},{"$f":"'Service Area-HRA'!C9","v":0},{"$f":"IF('Service Area-HRA'!F9=0,\"no\",'Service Area-HRA'!F9)","v":"no"},{"$f":"'Service Area-HRA'!H9","v":0}]
["HRA",{"$f":"'Service Area-HRA'!A10","v":0},{"$f":"'Service Area-HRA'!C10","v":0},{"$f":"'Service Area-HRA'!F10","v":0},{"$f":"'Service Area-HRA'!H10","v":0}]
["HRA",{"$f":"'Service Area-HRA'!A11","v":0},{"$f":"'Service Area-HRA'!C11","v":0},{"$f":"'Service Area-HRA'!F11","v":0},{"$f":"'Service Area-HRA'!H11","v":0}]
["HRA",{"$f":"'Service Area-HRA'!A12","v":0},{"$f":"'Service Area-HRA'!C12","v":0},{"$f":"'Service Area-HRA'!F12","v":0},{"$f":"'Service Area-HRA'!H12","v":0}]
["HRA",{"$f":"'Service Area-HRA'!A13","v":0},{"$f":"'Service Area-HRA'!C13","v":0},{"$f":"'Service Area-HRA'!F13","v":0},{"$f":"'Service Area-HRA'!H13","v":0}]
["HRA",{"$f":"'Service Area-HRA'!A14","v":0},{"$f":"'Service Area-HRA'!C14","v":0},{"$f":"'Service Area-HRA'!F14","v":0},{"$f":"'Service Area-HRA'!H14","v":0}]
["HRA",{"$f":"'Service Area-HRA'!A15","v":0},{"$f":"'Service Area-HRA'!C15","v":0},{"$f":"'Service Area-HRA'!F15","v":0},{"$f":"'Service Area-HRA'!H15","v":0}]
["HRA",{"$f":"'Service Area-HRA'!A16","v":0},{"$f":"'Service Area-HRA'!C16","v":0},{"$f":"'Service Area-HRA'!F16","v":0},{"$f":"'Service Area-HRA'!H16","v":0}]
["HRA",{"$f":"'Service Area-HRA'!A17","v":0},{"$f":"'Service Area-HRA'!C17","v":0},{"$f":"'Service Area-HRA'!F17","v":0},{"$f":"'Service Area-HRA'!H17","v":0}]
["HRA",{"$f":"'Service Area-HRA'!A18","v":0},{"$f":"'Service Area-HRA'!C18","v":0},{"$f":"'Service Area-HRA'!F18","v":0},{"$f":"'Service Area-HRA'!H18","v":0}]
["HRA",{"$f":"'Service Area-HRA'!A19","v":0},{"$f":"'Service Area-HRA'!C19","v":0},{"$f":"'Service Area-HRA'!F19","v":0},{"$f":"'Service Area-HRA'!H19","v":0}]
["HRA",{"$f":"'Service Area-HRA'!A20","v":0},{"$f":"'Service Area-HRA'!C20","v":0},{"$f":"'Service Area-HRA'!F20","v":0},{"$f":"'Service Area-HRA'!H20","v":0}]
["HRA",{"$f":"'Service Area-HRA'!A21","v":0},{"$f":"'Service Area-HRA'!C21","v":0},{"$f":"'Service Area-HRA'!F21","v":0},{"$f":"'Service Area-HRA'!H21","v":0}]
["HRA",{"$f":"'Service Area-HRA'!A22","v":0},{"$f":"'Service Area-HRA'!C22","v":0},{"$f":"'Service Area-HRA'!F22","v":0},{"$f":"'Service Area-HRA'!H22","v":0}]
["HRA",{"$f":"'Service Area-HRA'!A23","v":0},{"$f":"'Service Area-HRA'!C23","v":0},{"$f":"'Service Area-HRA'!F23","v":0},{"$f":"'Service Area-HRA'!H23","v":0}]
["HRA",{"$f":"'Service Area-HRA'!A24","v":0},{"$f":"'Service Area-HRA'!C24","v":0},{"$f":"'Service Area-HRA'!F24","v":0},{"$f":"'Service Area-HRA'!H24","v":0}]
["HRA",{"$f":"'Service Area-HRA'!A25","v":0},{"$f":"'Service Area-HRA'!C25","v":0},{"$f":"'Service Area-HRA'!F25","v":0},{"$f":"'Service Area-HRA'!H25","v":0}]
["HRA",{"$f":"'Service Area-HRA'!A26","v":0},{"$f":"'Service Area-HRA'!C26","v":0},{"$f":"'Service Area-HRA'!F26","v":0},{"$f":"'Service Area-HRA'!H26","v":0}]
["HRA",{"$f":"'Service Area-HRA'!A27","v":0},{"$f":"'Service Area-HRA'!C27","v":0},{"$f":"'Service Area-HRA'!F27","v":0},{"$f":"'Service Area-HRA'!H27","v":0}]
["HRA",{"$f":"'Service Area-HRA'!A28","v":0},{"$f":"'Service Area-HRA'!C28","v":0},{"$f":"'Service Area-HRA'!F28","v":0},{"$f":"'Service Area-HRA'!H28","v":0}]
["HRA",{"$f":"'Service Area-HRA'!A29","v":0},{"$f":"'Service Area-HRA'!C29","v":0},{"$f":"'Service Area-HRA'!F29","v":0},{"$f":"'Service Area-HRA'!H29","v":0}]
["HRA",{"$f":"'Service Area-HRA'!A30","v":0},{"$f":"'Service Area-HRA'!C30","v":0},{"$f":"'Service Area-HRA'!F30","v":0},{"$f":"'Service Area-HRA'!H30","v":0}]
["HRA",{"$f":"'Service Area-HRA'!A31","v":0},{"$f":"'Service Area-HRA'!C31","v":0},{"$f":"'Service Area-HRA'!F31","v":0},{"$f":"'Service Area-HRA'!H31","v":0}]
["HRA",{"$f":"'Service Area-HRA'!A32","v":0},{"$f":"'Service Area-HRA'!C32","v":0},{"$f":"'Service Area-HRA'!F32","v":0},{"$f":"'Service Area-HRA'!H32","v":0}]
["HRA",{"$f":"'Service Area-HRA'!A33","v":0},{"$f":"'Service Area-HRA'!C33","v":0},{"$f":"'Service Area-HRA'!F33","v":0},{"$f":"'Service Area-HRA'!H33","v":0}]
["HRA",{"$f":"'Service Area-HRA'!A34","v":0},{"$f":"'Service Area-HRA'!C34","v":0},{"$f":"'Service Area-HRA'!F34","v":0},{"$f":"'Service Area-HRA'!H34","v":0}]
["HRA",{"$f":"'Service Area-HRA'!A35","v":0},{"$f":"'Service Area-HRA'!C35","v":0},{"$f":"'Service Area-HRA'!F35","v":0},{"$f":"'Service Area-HRA'!H35","v":0}]
["HRA",{"$f":"'Service Area-HRA'!A36","v":0},{"$f":"'Service Area-HRA'!C36","v":0},{"$f":"'Service Area-HRA'!F36","v":0},{"$f":"'Service Area-HRA'!H36","v":0}]
["HRA",{"$f":"'Service Area-HRA'!A37","v":0},{"$f":"'Service Area-HRA'!C37","v":0},{"$f":"'Service Area-HRA'!F37","v":0},{"$f":"'Service Area-HRA'!H37","v":0}]
["HRA",{"$f":"'Service Area-HRA'!A38","v":0},{"$f":"'Service Area-HRA'!C38","v":0},{"$f":"'Service Area-HRA'!F38","v":0},{"$f":"'Service Area-HRA'!H38","v":0}]
["HRA",{"$f":"'Service Area-HRA'!A39","v":0},{"$f":"'Service Area-HRA'!C39","v":0},{"$f":"'Service Area-HRA'!F39","v":0},{"$f":"'Service Area-HRA'!H39","v":0}]
["HRA-PWD",{"$f":"'Service Area-HRA PWD'!A7","v":0},{"$f":"'Service Area-HRA PWD'!C7","v":0},{"$f":"'Service Area-HRA PWD'!F7","v":0},{"$f":"'Service Area-HRA PWD'!H7","v":0}]
["HRA-PWD",{"$f":"'Service Area-HRA PWD'!A8","v":0},{"$f":"'Service Area-HRA PWD'!C8","v":0},{"$f":"'Service Area-HRA PWD'!F8","v":0},{"$f":"'Service Area-HRA PWD'!H8","v":0}]
["HRA-PWD",{"$f":"'Service Area-HRA PWD'!A9","v":0},{"$f":"'Service Area-HRA PWD'!C9","v":0},{"$f":"'Service Area-HRA PWD'!F9","v":0},{"$f":"'Service Area-HRA PWD'!H9","v":0}]
["HRA-PWD",{"$f":"'Service Area-HRA PWD'!A10","v":0},{"$f":"'Service Area-HRA PWD'!C10","v":0},{"$f":"'Service Area-HRA PWD'!F10","v":0},{"$f":"'Service Area-HRA PWD'!H10","v":0}]
["HRA-PWD",{"$f":"'Service Area-HRA PWD'!A11","v":0},{"$f":"'Service Area-HRA PWD'!C11","v":0},{"$f":"'Service Area-HRA PWD'!F11","v":0},{"$f":"'Service Area-HRA PWD'!H11","v":0}]
["HRA-PWD",{"$f":"'Service Area-HRA PWD'!A12","v":0},{"$f":"'Service Area-HRA PWD'!C12","v":0},{"$f":"'Service Area-HRA PWD'!F12","v":0},{"$f":"'Service Area-HRA PWD'!H12","v":0}]
["HRA-PWD",{"$f":"'Service Area-HRA PWD'!A13","v":0},{"$f":"'Service Area-HRA PWD'!C13","v":0},{"$f":"'Service Area-HRA PWD'!F13","v":0},{"$f":"'Service Area-HRA PWD'!H13","v":0}]
["HRA-PWD",{"$f":"'Service Area-HRA PWD'!A14","v":0},{"$f":"'Service Area-HRA PWD'!C14","v":0},{"$f":"'Service Area-HRA PWD'!F14","v":0},{"$f":"'Service Area-HRA PWD'!H14","v":0}]
["HRA-PWD",{"$f":"'Service Area-HRA PWD'!A15","v":0},{"$f":"'Service Area-HRA PWD'!C15","v":0},{"$f":"'Service Area-HRA PWD'!F15","v":0},{"$f":"'Service Area-HRA PWD'!H15","v":0}]
["HRA-PWD",{"$f":"'Service Area-HRA PWD'!A16","v":0},{"$f":"'Service Area-HRA PWD'!C16","v":0},{"$f":"'Service Area-HRA PWD'!F16","v":0},{"$f":"'Service Area-HRA PWD'!H16","v":0}]
["HRA-PWD",{"$f":"'Service Area-HRA PWD'!A17","v":0},{"$f":"'Service Area-HRA PWD'!C17","v":0},{"$f":"'Service Area-HRA PWD'!F17","v":0},{"$f":"'Service Area-HRA PWD'!H17","v":0}]
["HRA-PWD",{"$f":"'Service Area-HRA PWD'!A18","v":0},{"$f":"'Service Area-HRA PWD'!C18","v":0},{"$f":"'Service Area-HRA PWD'!F18","v":0},{"$f":"'Service Area-HRA PWD'!H18","v":0}]
["HRA-PWD",{"$f":"'Service Area-HRA PWD'!A19","v":0},{"$f":"'Service Area-HRA PWD'!C19","v":0},{"$f":"'Service Area-HRA PWD'!F19","v":0},{"$f":"'Service Area-HRA PWD'!H19","v":0}]
["HRA-PWD",{"$f":"'Service Area-HRA PWD'!A20","v":0},{"$f":"'Service Area-HRA PWD'!C20","v":0},{"$f":"'Service Area-HRA PWD'!F20","v":0},{"$f":"'Service Area-HRA PWD'!H20","v":0}]
["HRA-PWD",{"$f":"'Service Area-HRA PWD'!A21","v":0},{"$f":"'Service Area-HRA PWD'!C21","v":0},{"$f":"'Service Area-HRA PWD'!F21","v":0},{"$f":"'Service Area-HRA PWD'!H21","v":0}]
["HRA-PWD",{"$f":"'Service Area-HRA PWD'!A22","v":0},{"$f":"'Service Area-HRA PWD'!C22","v":0},{"$f":"'Service Area-HRA PWD'!F22","v":0},{"$f":"'Service Area-HRA PWD'!H22","v":0}]
["HRA-PWD",{"$f":"'Service Area-HRA PWD'!A23","v":0},{"$f":"'Service Area-HRA PWD'!C23","v":0},{"$f":"'Service Area-HRA PWD'!F23","v":0},{"$f":"'Service Area-HRA PWD'!H23","v":0}]
["HRA-PWD",{"$f":"'Service Area-HRA PWD'!A24","v":0},{"$f":"'Service Area-HRA PWD'!C24","v":0},{"$f":"'Service Area-HRA PWD'!F24","v":0},{"$f":"'Service Area-HRA PWD'!H24","v":0}]
["HRA-PWD",{"$f":"'Service Area-HRA PWD'!A25","v":0},{"$f":"'Service Area-HRA PWD'!C25","v":0},{"$f":"'Service Area-HRA PWD'!F25","v":0},{"$f":"'Service Area-HRA PWD'!H25","v":0}]
["HRA-PWD",{"$f":"'Service Area-HRA PWD'!A26","v":0},{"$f":"'Service Area-HRA PWD'!C26","v":0},{"$f":"'Service Area-HRA PWD'!F26","v":0},{"$f":"'Service Area-HRA PWD'!H26","v":0}]
["HRA-PWD",{"$f":"'Service Area-HRA PWD'!A27","v":0},{"$f":"'Service Area-HRA PWD'!C27","v":0},{"$f":"'Service Area-HRA PWD'!F27","v":0},{"$f":"'Service Area-HRA PWD'!H27","v":0}]
["HRA-PWD",{"$f":"'Service Area-HRA PWD'!A28","v":0},{"$f":"'Service Area-HRA PWD'!C28","v":0},{"$f":"'Service Area-HRA PWD'!F28","v":0},{"$f":"'Service Area-HRA PWD'!H28","v":0}]
["HRA-PWD",{"$f":"'Service Area-HRA PWD'!A29","v":0},{"$f":"'Service Area-HRA PWD'!C29","v":0},{"$f":"'Service Area-HRA PWD'!F29","v":0},{"$f":"'Service Area-HRA PWD'!H29","v":0}]
["HRA-PWD",{"$f":"'Service Area-HRA PWD'!A30","v":0},{"$f":"'Service Area-HRA PWD'!C30","v":0},{"$f":"'Service Area-HRA PWD'!F30","v":0},{"$f":"'Service Area-HRA PWD'!H30","v":0}]
["HRA-PWD",{"$f":"'Service Area-HRA PWD'!A31","v":0},{"$f":"'Service Area-HRA PWD'!C31","v":0},{"$f":"'Service Area-HRA PWD'!F31","v":0},{"$f":"'Service Area-HRA PWD'!H31","v":0}]
["HRA-PWD",{"$f":"'Service Area-HRA PWD'!A32","v":0},{"$f":"'Service Area-HRA PWD'!C32","v":0},{"$f":"'Service Area-HRA PWD'!F32","v":0},{"$f":"'Service Area-HRA PWD'!H32","v":0}]
["HRA-PWD",{"$f":"'Service Area-HRA PWD'!A33","v":0},{"$f":"'Service Area-HRA PWD'!C33","v":0},{"$f":"'Service Area-HRA PWD'!F33","v":0},{"$f":"'Service Area-HRA PWD'!H33","v":0}]
["HRA-PWD",{"$f":"'Service Area-HRA PWD'!A34","v":0},{"$f":"'Service Area-HRA PWD'!C34","v":0},{"$f":"'Service Area-HRA PWD'!F34","v":0},{"$f":"'Service Area-HRA PWD'!H34","v":0}]
["HRA-PWD",{"$f":"'Service Area-HRA PWD'!A35","v":0},{"$f":"'Service Area-HRA PWD'!C35","v":0},{"$f":"'Service Area-HRA PWD'!F35","v":0},{"$f":"'Service Area-HRA PWD'!H35","v":0}]
["HRA-PWD",{"$f":"'Service Area-HRA PWD'!A36","v":0},{"$f":"'Service Area-HRA PWD'!C36","v":0},{"$f":"'Service Area-HRA PWD'!F36","v":0},{"$f":"'Service Area-HRA PWD'!H36","v":0}]
["HRA-PWD",{"$f":"'Service Area-HRA PWD'!A37","v":0},{"$f":"'Service Area-HRA PWD'!C37","v":0},{"$f":"'Service Area-HRA PWD'!F37","v":0},{"$f":"'Service Area-HRA PWD'!H37","v":0}]
["HRA-DR",{"$f":"'Service Area-HRA DR'!A9","v":0},{"$f":"'Service Area-HRA DR'!C9","v":0},{"$f":"'Service Area-HRA DR'!F9","v":0},{"$f":"'Service Area-HRA DR'!H9","v":0}]
["HRA-DR",{"$f":"'Service Area-HRA DR'!A10","v":0},{"$f":"'Service Area-HRA DR'!C10","v":0},{"$f":"'Service Area-HRA DR'!F10","v":0},{"$f":"'Service Area-HRA DR'!H10","v":0}]
["HRA-DR",{"$f":"'Service Area-HRA DR'!A11","v":0},{"$f":"'Service Area-HRA DR'!C11","v":0},{"$f":"'Service Area-HRA DR'!F11","v":0},{"$f":"'Service Area-HRA DR'!H11","v":0}]
["HRA-DR",{"$f":"'Service Area-HRA DR'!A12","v":0},{"$f":"'Service Area-HRA DR'!C12","v":0},{"$f":"'Service Area-HRA DR'!F12","v":0},{"$f":"'Service Area-HRA DR'!H12","v":0}]
["HRA-DR",{"$f":"'Service Area-HRA DR'!A13","v":0},{"$f":"'Service Area-HRA DR'!C13","v":0},{"$f":"'Service Area-HRA DR'!F13","v":0},{"$f":"'Service Area-HRA DR'!H13","v":0}]
["HRA-DR",{"$f":"'Service Area-HRA DR'!A14","v":0},{"$f":"'Service Area-HRA DR'!C14","v":0},{"$f":"'Service Area-HRA DR'!F14","v":0},{"$f":"'Service Area-HRA DR'!H14","v":0}]
["HRA-DR",{"$f":"'Service Area-HRA DR'!A15","v":0},{"$f":"'Service Area-HRA DR'!C15","v":0},{"$f":"'Service Area-HRA DR'!F15","v":0},{"$f":"'Service Area-HRA DR'!H15","v":0}]
["HRA-DR",{"$f":"'Service Area-HRA DR'!A16","v":0},{"$f":"'Service Area-HRA DR'!C16","v":0},{"$f":"'Service Area-HRA DR'!F16","v":0},{"$f":"'Service Area-HRA DR'!H16","v":0}]
["HRA-DR",{"$f":"'Service Area-HRA DR'!A17","v":0},{"$f":"'Service Area-HRA DR'!C17","v":0},{"$f":"'Service Area-HRA DR'!F17","v":0},{"$f":"'Service Area-HRA DR'!H17","v":0}]
["HRA-DR",{"$f":"'Service Area-HRA DR'!A18","v":0},{"$f":"'Service Area-HRA DR'!C18","v":0},{"$f":"'Service Area-HRA DR'!F18","v":0},{"$f":"'Service Area-HRA DR'!H18","v":0}]
["HRA-DR",{"$f":"'Service Area-HRA DR'!A19","v":0},{"$f":"'Service Area-HRA DR'!C19","v":0},{"$f":"'Service Area-HRA DR'!F19","v":0},{"$f":"'Service Area-HRA DR'!H19","v":0}]
["HRA-DR",{"$f":"'Service Area-HRA DR'!A20","v":0},{"$f":"'Service Area-HRA DR'!C20","v":0},{"$f":"'Service Area-HRA DR'!F20","v":0},{"$f":"'Service Area-HRA DR'!H20","v":0}]
["HRA-DR",{"$f":"'Service Area-HRA DR'!A21","v":0},{"$f":"'Service Area-HRA DR'!C21","v":0},{"$f":"'Service Area-HRA DR'!F21","v":0},{"$f":"'Service Area-HRA DR'!H21","v":0}]
["HRA-DR",{"$f":"'Service Area-HRA DR'!A22","v":0},{"$f":"'Service Area-HRA DR'!C22","v":0},{"$f":"'Service Area-HRA DR'!F22","v":0},{"$f":"'Service Area-HRA DR'!H22","v":0}]
["HRA-DR",{"$f":"'Service Area-HRA DR'!A23","v":0},{"$f":"'Service Area-HRA DR'!C23","v":0},{"$f":"'Service Area-HRA DR'!F23","v":0},{"$f":"'Service Area-HRA DR'!H23","v":0}]
["HRA-DR",{"$f":"'Service Area-HRA DR'!A24","v":0},{"$f":"'Service Area-HRA DR'!C24","v":0},{"$f":"'Service Area-HRA DR'!F24","v":0},{"$f":"'Service Area-HRA DR'!H24","v":0}]
["HRA-DR",{"$f":"'Service Area-HRA DR'!A25","v":0},{"$f":"'Service Area-HRA DR'!C25","v":0},{"$f":"'Service Area-HRA DR'!F25","v":0},{"$f":"'Service Area-HRA DR'!H25","v":0}]
["HRA-DR",{"$f":"'Service Area-HRA DR'!A26","v":0},{"$f":"'Service Area-HRA DR'!C26","v":0},{"$f":"'Service Area-HRA DR'!F26","v":0},{"$f":"'Service Area-HRA DR'!H26","v":0}]
["HRA-DR",{"$f":"'Service Area-HRA DR'!A27","v":0},{"$f":"'Service Area-HRA DR'!C27","v":0},{"$f":"'Service Area-HRA DR'!F27","v":0},{"$f":"'Service Area-HRA DR'!H27","v":0}]
["HRA-DR",{"$f":"'Service Area-HRA DR'!A28","v":0},{"$f":"'Service Area-HRA DR'!C28","v":0},{"$f":"'Service Area-HRA DR'!F28","v":0},{"$f":"'Service Area-HRA DR'!H28","v":0}]
["HRA-DR",{"$f":"'Service Area-HRA DR'!A29","v":0},{"$f":"'Service Area-HRA DR'!C29","v":0},{"$f":"'Service Area-HRA DR'!F29","v":0},{"$f":"'Service Area-HRA DR'!H29","v":0}]
["HRA-DR",{"$f":"'Service Area-HRA DR'!A30","v":0},{"$f":"'Service Area-HRA DR'!C30","v":0},{"$f":"'Service Area-HRA DR'!F30","v":0},{"$f":"'Service Area-HRA DR'!H30","v":0}]
["HRA-DR",{"$f":"'Service Area-HRA DR'!A31","v":0},{"$f":"'Service Area-HRA DR'!C31","v":0},{"$f":"'Service Area-HRA DR'!F31","v":0},{"$f":"'Service Area-HRA DR'!H31","v":0}]
["HRA-DR",{"$f":"'Service Area-HRA DR'!A32","v":0},{"$f":"'Service Area-HRA DR'!C32","v":0},{"$f":"'Service Area-HRA DR'!F32","v":0},{"$f":"'Service Area-HRA DR'!H32","v":0}]
["HRA-DR",{"$f":"'Service Area-HRA DR'!A33","v":0},{"$f":"'Service Area-HRA DR'!C33","v":0},{"$f":"'Service Area-HRA DR'!F33","v":0},{"$f":"'Service Area-HRA DR'!H33","v":0}]
["HRA-DR",{"$f":"'Service Area-HRA DR'!A34","v":0},{"$f":"'Service Area-HRA DR'!C34","v":0},{"$f":"'Service Area-HRA DR'!F34","v":0},{"$f":"'Service Area-HRA DR'!H34","v":0}]
["HRA-DR",{"$f":"'Service Area-HRA DR'!A35","v":0},{"$f":"'Service Area-HRA DR'!C35","v":0},{"$f":"'Service Area-HRA DR'!F35","v":0},{"$f":"'Service Area-HRA DR'!H35","v":0}]
["HRA-DR",{"$f":"'Service Area-HRA DR'!A36","v":0},{"$f":"'Service Area-HRA DR'!C36","v":0},{"$f":"'Service Area-HRA DR'!F36","v":0},{"$f":"'Service Area-HRA DR'!H36","v":0}]
["HRA-DR",{"$f":"'Service Area-HRA DR'!A37","v":0},{"$f":"'Service Area-HRA DR'!C37","v":0},{"$f":"'Service Area-HRA DR'!F37","v":0},{"$f":"'Service Area-HRA DR'!H37","v":0}]
["HRA-DR",{"$f":"'Service Area-HRA DR'!A38","v":0},{"$f":"'Service Area-HRA DR'!C38","v":0},{"$f":"'Service Area-HRA DR'!F38","v":0},{"$f":"'Service Area-HRA DR'!H38","v":0}]
["HRA-DR",{"$f":"'Service Area-HRA DR'!A39","v":0},{"$f":"'Service Area-HRA DR'!C39","v":0},{"$f":"'Service Area-HRA DR'!F39","v":0},{"$f":"'Service Area-HRA DR'!H39","v":0}]
["HBA",{"$f":"#REF!","v":{"$error":"#REF!"}},{"$f":"#REF!","v":{"$error":"#REF!"}},{"$f":"#REF!","v":{"$error":"#REF!"}},{"$f":"#REF!","v":{"$error":"#REF!"}}]
["HBA",{"$f":"#REF!","v":{"$error":"#REF!"}},{"$f":"#REF!","v":{"$error":"#REF!"}},{"$f":"#REF!","v":{"$error":"#REF!"}},{"$f":"#REF!","v":{"$error":"#REF!"}}]
["HBA",{"$f":"#REF!","v":{"$error":"#REF!"}},{"$f":"#REF!","v":{"$error":"#REF!"}},{"$f":"#REF!","v":{"$error":"#REF!"}},{"$f":"#REF!","v":{"$error":"#REF!"}}]
["HBA",{"$f":"#REF!","v":{"$error":"#REF!"}},{"$f":"#REF!","v":{"$error":"#REF!"}},{"$f":"#REF!","v":{"$error":"#REF!"}},{"$f":"#REF!","v":{"$error":"#REF!"}}]
["HBA",{"$f":"#REF!","v":{"$error":"#REF!"}},{"$f":"#REF!","v":{"$error":"#REF!"}},{"$f":"#REF!","v":{"$error":"#REF!"}},{"$f":"#REF!","v":{"$error":"#REF!"}}]
["HBA",{"$f":"#REF!","v":{"$error":"#REF!"}},{"$f":"#REF!","v":{"$error":"#REF!"}},{"$f":"#REF!","v":{"$error":"#REF!"}},{"$f":"#REF!","v":{"$error":"#REF!"}}]
["HBA",{"$f":"#REF!","v":{"$error":"#REF!"}},{"$f":"#REF!","v":{"$error":"#REF!"}},{"$f":"#REF!","v":{"$error":"#REF!"}},{"$f":"#REF!","v":{"$error":"#REF!"}}]
["HBA",{"$f":"#REF!","v":{"$error":"#REF!"}},{"$f":"#REF!","v":{"$error":"#REF!"}},{"$f":"#REF!","v":{"$error":"#REF!"}},{"$f":"#REF!","v":{"$error":"#REF!"}}]
["HBA",{"$f":"#REF!","v":{"$error":"#REF!"}},{"$f":"#REF!","v":{"$error":"#REF!"}},{"$f":"#REF!","v":{"$error":"#REF!"}},{"$f":"#REF!","v":{"$error":"#REF!"}}]
["HBA",{"$f":"#REF!","v":{"$error":"#REF!"}},{"$f":"#REF!","v":{"$error":"#REF!"}},{"$f":"#REF!","v":{"$error":"#REF!"}},{"$f":"#REF!","v":{"$error":"#REF!"}}]
["HBA",{"$f":"#REF!","v":{"$error":"#REF!"}},{"$f":"#REF!","v":{"$error":"#REF!"}},{"$f":"#REF!","v":{"$error":"#REF!"}},{"$f":"#REF!","v":{"$error":"#REF!"}}]
["HBA",{"$f":"#REF!","v":{"$error":"#REF!"}},{"$f":"#REF!","v":{"$error":"#REF!"}},{"$f":"#REF!","v":{"$error":"#REF!"}},{"$f":"#REF!","v":{"$error":"#REF!"}}]
["HBA",{"$f":"#REF!","v":{"$error":"#REF!"}},{"$f":"#REF!","v":{"$error":"#REF!"}},{"$f":"#REF!","v":{"$error":"#REF!"}},{"$f":"#REF!","v":{"$error":"#REF!"}}]
["HBA",{"$f":"#REF!","v":{"$error":"#REF!"}},{"$f":"#REF!","v":{"$error":"#REF!"}},{"$f":"#REF!","v":{"$error":"#REF!"}},{"$f":"#REF!","v":{"$error":"#REF!"}}]
["HBA",{"$f":"#REF!","v":{"$error":"#REF!"}},{"$f":"#REF!","v":{"$error":"#REF!"}},{"$f":"#REF!","v":{"$error":"#REF!"}},{"$f":"#REF!","v":{"$error":"#REF!"}}]
["HBA",{"$f":"#REF!","v":{"$error":"#REF!"}},{"$f":"#REF!","v":{"$error":"#REF!"}},{"$f":"#REF!","v":{"$error":"#REF!"}},{"$f":"#REF!","v":{"$error":"#REF!"}}]
["HBA",{"$f":"#REF!","v":{"$error":"#REF!"}},{"$f":"#REF!","v":{"$error":"#REF!"}},{"$f":"#REF!","v":{"$error":"#REF!"}},{"$f":"#REF!","v":{"$error":"#REF!"}}]
["HBA",{"$f":"#REF!","v":{"$error":"#REF!"}},{"$f":"#REF!","v":{"$error":"#REF!"}},{"$f":"#REF!","v":{"$error":"#REF!"}},{"$f":"#REF!","v":{"$error":"#REF!"}}]
["HBA",{"$f":"#REF!","v":{"$error":"#REF!"}},{"$f":"#REF!","v":{"$error":"#REF!"}},{"$f":"#REF!","v":{"$error":"#REF!"}},{"$f":"#REF!","v":{"$error":"#REF!"}}]
["HBA",{"$f":"#REF!","v":{"$error":"#REF!"}},{"$f":"#REF!","v":{"$error":"#REF!"}},{"$f":"#REF!","v":{"$error":"#REF!"}},{"$f":"#REF!","v":{"$error":"#REF!"}}]
["HBA",{"$f":"#REF!","v":{"$error":"#REF!"}},{"$f":"#REF!","v":{"$error":"#REF!"}},{"$f":"#REF!","v":{"$error":"#REF!"}},{"$f":"#REF!","v":{"$error":"#REF!"}}]
["HBA",{"$f":"#REF!","v":{"$error":"#REF!"}},{"$f":"#REF!","v":{"$error":"#REF!"}},{"$f":"#REF!","v":{"$error":"#REF!"}},{"$f":"#REF!","v":{"$error":"#REF!"}}]
["HBA",{"$f":"#REF!","v":{"$error":"#REF!"}},{"$f":"#REF!","v":{"$error":"#REF!"}},{"$f":"#REF!","v":{"$error":"#REF!"}},{"$f":"#REF!","v":{"$error":"#REF!"}}]
["HBA",{"$f":"#REF!","v":{"$error":"#REF!"}},{"$f":"#REF!","v":{"$error":"#REF!"}},{"$f":"#REF!","v":{"$error":"#REF!"}},{"$f":"#REF!","v":{"$error":"#REF!"}}]
["HBA",{"$f":"#REF!","v":{"$error":"#REF!"}},{"$f":"#REF!","v":{"$error":"#REF!"}},{"$f":"#REF!","v":{"$error":"#REF!"}},{"$f":"#REF!","v":{"$error":"#REF!"}}]
["HBA",{"$f":"#REF!","v":{"$error":"#REF!"}},{"$f":"#REF!","v":{"$error":"#REF!"}},{"$f":"#REF!","v":{"$error":"#REF!"}},{"$f":"#REF!","v":{"$error":"#REF!"}}]
["HBA",{"$f":"#REF!","v":{"$error":"#REF!"}},{"$f":"#REF!","v":{"$error":"#REF!"}},{"$f":"#REF!","v":{"$error":"#REF!"}},{"$f":"#REF!","v":{"$error":"#REF!"}}]
["HBA",{"$f":"#REF!","v":{"$error":"#REF!"}},{"$f":"#REF!","v":{"$error":"#REF!"}},{"$f":"#REF!","v":{"$error":"#REF!"}},{"$f":"#REF!","v":{"$error":"#REF!"}}]
["HBA",{"$f":"#REF!","v":{"$error":"#REF!"}},{"$f":"#REF!","v":{"$error":"#REF!"}},{"$f":"#REF!","v":{"$error":"#REF!"}},{"$f":"#REF!","v":{"$error":"#REF!"}}]
["HBA",{"$f":"#REF!","v":{"$error":"#REF!"}},{"$f":"#REF!","v":{"$error":"#REF!"}},{"$f":"#REF!","v":{"$error":"#REF!"}},{"$f":"#REF!","v":{"$error":"#REF!"}}]
["HBA",{"$f":"#REF!","v":{"$error":"#REF!"}},{"$f":"#REF!","v":{"$error":"#REF!"}},{"$f":"#REF!","v":{"$error":"#REF!"}},{"$f":"#REF!","v":{"$error":"#REF!"}}]
["HBA-PWD",{"$f":"#REF!","v":{"$error":"#REF!"}},{"$f":"#REF!","v":{"$error":"#REF!"}},{"$f":"#REF!","v":{"$error":"#REF!"}},{"$f":"#REF!","v":{"$error":"#REF!"}}]
["HBA-PWD",{"$f":"#REF!","v":{"$error":"#REF!"}},{"$f":"#REF!","v":{"$error":"#REF!"}},{"$f":"#REF!","v":{"$error":"#REF!"}},{"$f":"#REF!","v":{"$error":"#REF!"}}]
["HBA-PWD",{"$f":"#REF!","v":{"$error":"#REF!"}},{"$f":"#REF!","v":{"$error":"#REF!"}},{"$f":"#REF!","v":{"$error":"#REF!"}},{"$f":"#REF!","v":{"$error":"#REF!"}}]
["HBA-PWD",{"$f":"#REF!","v":{"$error":"#REF!"}},{"$f":"#REF!","v":{"$error":"#REF!"}},{"$f":"#REF!","v":{"$error":"#REF!"}},{"$f":"#REF!","v":{"$error":"#REF!"}}]
["HBA-PWD",{"$f":"#REF!","v":{"$error":"#REF!"}},{"$f":"#REF!","v":{"$error":"#REF!"}},{"$f":"#REF!","v":{"$error":"#REF!"}},{"$f":"#REF!","v":{"$error":"#REF!"}}]
["HBA-PWD",{"$f":"#REF!","v":{"$error":"#REF!"}},{"$f":"#REF!","v":{"$error":"#REF!"}},{"$f":"#REF!","v":{"$error":"#REF!"}},{"$f":"#REF!","v":{"$error":"#REF!"}}]
["HBA-PWD",{"$f":"#REF!","v":{"$error":"#REF!"}},{"$f":"#REF!","v":{"$error":"#REF!"}},{"$f":"#REF!","v":{"$error":"#REF!"}},{"$f":"#REF!","v":{"$error":"#REF!"}}]
["HBA-PWD",{"$f":"#REF!","v":{"$error":"#REF!"}},{"$f":"#REF!","v":{"$error":"#REF!"}},{"$f":"#REF!","v":{"$error":"#REF!"}},{"$f":"#REF!","v":{"$error":"#REF!"}}]
["HBA-PWD",{"$f":"#REF!","v":{"$error":"#REF!"}},{"$f":"#REF!","v":{"$error":"#REF!"}},{"$f":"#REF!","v":{"$error":"#REF!"}},{"$f":"#REF!","v":{"$error":"#REF!"}}]
["HBA-PWD",{"$f":"#REF!","v":{"$error":"#REF!"}},{"$f":"#REF!","v":{"$error":"#REF!"}},{"$f":"#REF!","v":{"$error":"#REF!"}},{"$f":"#REF!","v":{"$error":"#REF!"}}]
["HBA-PWD",{"$f":"#REF!","v":{"$error":"#REF!"}},{"$f":"#REF!","v":{"$error":"#REF!"}},{"$f":"#REF!","v":{"$error":"#REF!"}},{"$f":"#REF!","v":{"$error":"#REF!"}}]
["HBA-PWD",{"$f":"#REF!","v":{"$error":"#REF!"}},{"$f":"#REF!","v":{"$error":"#REF!"}},{"$f":"#REF!","v":{"$error":"#REF!"}},{"$f":"#REF!","v":{"$error":"#REF!"}}]
["HBA-PWD",{"$f":"#REF!","v":{"$error":"#REF!"}},{"$f":"#REF!","v":{"$error":"#REF!"}},{"$f":"#REF!","v":{"$error":"#REF!"}},{"$f":"#REF!","v":{"$error":"#REF!"}}]
["HBA-PWD",{"$f":"#REF!","v":{"$error":"#REF!"}},{"$f":"#REF!","v":{"$error":"#REF!"}},{"$f":"#REF!","v":{"$error":"#REF!"}},{"$f":"#REF!","v":{"$error":"#REF!"}}]
["HBA-PWD",{"$f":"#REF!","v":{"$error":"#REF!"}},{"$f":"#REF!","v":{"$error":"#REF!"}},{"$f":"#REF!","v":{"$error":"#REF!"}},{"$f":"#REF!","v":{"$error":"#REF!"}}]
["HBA-PWD",{"$f":"#REF!","v":{"$error":"#REF!"}},{"$f":"#REF!","v":{"$error":"#REF!"}},{"$f":"#REF!","v":{"$error":"#REF!"}},{"$f":"#REF!","v":{"$error":"#REF!"}}]
["HBA-PWD",{"$f":"#REF!","v":{"$error":"#REF!"}},{"$f":"#REF!","v":{"$error":"#REF!"}},{"$f":"#REF!","v":{"$error":"#REF!"}},{"$f":"#REF!","v":{"$error":"#REF!"}}]
["HBA-PWD",{"$f":"#REF!","v":{"$error":"#REF!"}},{"$f":"#REF!","v":{"$error":"#REF!"}},{"$f":"#REF!","v":{"$error":"#REF!"}},{"$f":"#REF!","v":{"$error":"#REF!"}}]
["HBA-PWD",{"$f":"#REF!","v":{"$error":"#REF!"}},{"$f":"#REF!","v":{"$error":"#REF!"}},{"$f":"#REF!","v":{"$error":"#REF!"}},{"$f":"#REF!","v":{"$error":"#REF!"}}]
["HBA-PWD",{"$f":"#REF!","v":{"$error":"#REF!"}},{"$f":"#REF!","v":{"$error":"#REF!"}},{"$f":"#REF!","v":{"$error":"#REF!"}},{"$f":"#REF!","v":{"$error":"#REF!"}}]
["HBA-PWD",{"$f":"#REF!","v":{"$error":"#REF!"}},{"$f":"#REF!","v":{"$error":"#REF!"}},{"$f":"#REF!","v":{"$error":"#REF!"}},{"$f":"#REF!","v":{"$error":"#REF!"}}]
["HBA-PWD",{"$f":"#REF!","v":{"$error":"#REF!"}},{"$f":"#REF!","v":{"$error":"#REF!"}},{"$f":"#REF!","v":{"$error":"#REF!"}},{"$f":"#REF!","v":{"$error":"#REF!"}}]
["HBA-PWD",{"$f":"#REF!","v":{"$error":"#REF!"}},{"$f":"#REF!","v":{"$error":"#REF!"}},{"$f":"#REF!","v":{"$error":"#REF!"}},{"$f":"#REF!","v":{"$error":"#REF!"}}]
["HBA-PWD",{"$f":"#REF!","v":{"$error":"#REF!"}},{"$f":"#REF!","v":{"$error":"#REF!"}},{"$f":"#REF!","v":{"$error":"#REF!"}},{"$f":"#REF!","v":{"$error":"#REF!"}}]
["HBA-PWD",{"$f":"#REF!","v":{"$error":"#REF!"}},{"$f":"#REF!","v":{"$error":"#REF!"}},{"$f":"#REF!","v":{"$error":"#REF!"}},{"$f":"#REF!","v":{"$error":"#REF!"}}]
["HBA-PWD",{"$f":"#REF!","v":{"$error":"#REF!"}},{"$f":"#REF!","v":{"$error":"#REF!"}},{"$f":"#REF!","v":{"$error":"#REF!"}},{"$f":"#REF!","v":{"$error":"#REF!"}}]
["HBA-PWD",{"$f":"#REF!","v":{"$error":"#REF!"}},{"$f":"#REF!","v":{"$error":"#REF!"}},{"$f":"#REF!","v":{"$error":"#REF!"}},{"$f":"#REF!","v":{"$error":"#REF!"}}]
["HBA-PWD",{"$f":"#REF!","v":{"$error":"#REF!"}},{"$f":"#REF!","v":{"$error":"#REF!"}},{"$f":"#REF!","v":{"$error":"#REF!"}},{"$f":"#REF!","v":{"$error":"#REF!"}}]
["HBA-PWD",{"$f":"#REF!","v":{"$error":"#REF!"}},{"$f":"#REF!","v":{"$error":"#REF!"}},{"$f":"#REF!","v":{"$error":"#REF!"}},{"$f":"#REF!","v":{"$error":"#REF!"}}]
["HBA-PWD",{"$f":"#REF!","v":{"$error":"#REF!"}},{"$f":"#REF!","v":{"$error":"#REF!"}},{"$f":"#REF!","v":{"$error":"#REF!"}},{"$f":"#REF!","v":{"$error":"#REF!"}}]
["HBA-PWD",{"$f":"#REF!","v":{"$error":"#REF!"}},{"$f":"#REF!","v":{"$error":"#REF!"}},{"$f":"#REF!","v":{"$error":"#REF!"}},{"$f":"#REF!","v":{"$error":"#REF!"}}]
["HBA-DR",{"$f":"#REF!","v":{"$error":"#REF!"}},{"$f":"#REF!","v":{"$error":"#REF!"}},{"$f":"#REF!","v":{"$error":"#REF!"}},{"$f":"#REF!","v":{"$error":"#REF!"}}]
["HBA-DR",{"$f":"#REF!","v":{"$error":"#REF!"}},{"$f":"#REF!","v":{"$error":"#REF!"}},{"$f":"#REF!","v":{"$error":"#REF!"}},{"$f":"#REF!","v":{"$error":"#REF!"}}]
["HBA-DR",{"$f":"#REF!","v":{"$error":"#REF!"}},{"$f":"#REF!","v":{"$error":"#REF!"}},{"$f":"#REF!","v":{"$error":"#REF!"}},{"$f":"#REF!","v":{"$error":"#REF!"}}]
["HBA-DR",{"$f":"#REF!","v":{"$error":"#REF!"}},{"$f":"#REF!","v":{"$error":"#REF!"}},{"$f":"#REF!","v":{"$error":"#REF!"}},{"$f":"#REF!","v":{"$error":"#REF!"}}]
["HBA-DR",{"$f":"#REF!","v":{"$error":"#REF!"}},{"$f":"#REF!","v":{"$error":"#REF!"}},{"$f":"#REF!","v":{"$error":"#REF!"}},{"$f":"#REF!","v":{"$error":"#REF!"}}]
["HBA-DR",{"$f":"#REF!","v":{"$error":"#REF!"}},{"$f":"#REF!","v":{"$error":"#REF!"}},{"$f":"#REF!","v":{"$error":"#REF!"}},{"$f":"#REF!","v":{"$error":"#REF!"}}]
["HBA-DR",{"$f":"#REF!","v":{"$error":"#REF!"}},{"$f":"#REF!","v":{"$error":"#REF!"}},{"$f":"#REF!","v":{"$error":"#REF!"}},{"$f":"#REF!","v":{"$error":"#REF!"}}]
["HBA-DR",{"$f":"#REF!","v":{"$error":"#REF!"}},{"$f":"#REF!","v":{"$error":"#REF!"}},{"$f":"#REF!","v":{"$error":"#REF!"}},{"$f":"#REF!","v":{"$error":"#REF!"}}]
["HBA-DR",{"$f":"#REF!","v":{"$error":"#REF!"}},{"$f":"#REF!","v":{"$error":"#REF!"}},{"$f":"#REF!","v":{"$error":"#REF!"}},{"$f":"#REF!","v":{"$error":"#REF!"}}]
["HBA-DR",{"$f":"#REF!","v":{"$error":"#REF!"}},{"$f":"#REF!","v":{"$error":"#REF!"}},{"$f":"#REF!","v":{"$error":"#REF!"}},{"$f":"#REF!","v":{"$error":"#REF!"}}]
["HBA-DR",{"$f":"#REF!","v":{"$error":"#REF!"}},{"$f":"#REF!","v":{"$error":"#REF!"}},{"$f":"#REF!","v":{"$error":"#REF!"}},{"$f":"#REF!","v":{"$error":"#REF!"}}]
["HBA-DR",{"$f":"#REF!","v":{"$error":"#REF!"}},{"$f":"#REF!","v":{"$error":"#REF!"}},{"$f":"#REF!","v":{"$error":"#REF!"}},{"$f":"#REF!","v":{"$error":"#REF!"}}]
["HBA-DR",{"$f":"#REF!","v":{"$error":"#REF!"}},{"$f":"#REF!","v":{"$error":"#REF!"}},{"$f":"#REF!","v":{"$error":"#REF!"}},{"$f":"#REF!","v":{"$error":"#REF!"}}]
["HBA-DR",{"$f":"#REF!","v":{"$error":"#REF!"}},{"$f":"#REF!","v":{"$error":"#REF!"}},{"$f":"#REF!","v":{"$error":"#REF!"}},{"$f":"#REF!","v":{"$error":"#REF!"}}]
["HBA-DR",{"$f":"#REF!","v":{"$error":"#REF!"}},{"$f":"#REF!","v":{"$error":"#REF!"}},{"$f":"#REF!","v":{"$error":"#REF!"}},{"$f":"#REF!","v":{"$error":"#REF!"}}]
["HBA-DR",{"$f":"#REF!","v":{"$error":"#REF!"}},{"$f":"#REF!","v":{"$error":"#REF!"}},{"$f":"#REF!","v":{"$error":"#REF!"}},{"$f":"#REF!","v":{"$error":"#REF!"}}]
["HBA-DR",{"$f":"#REF!","v":{"$error":"#REF!"}},{"$f":"#REF!","v":{"$error":"#REF!"}},{"$f":"#REF!","v":{"$error":"#REF!"}},{"$f":"#REF!","v":{"$error":"#REF!"}}]
["HBA-DR",{"$f":"#REF!","v":{"$error":"#REF!"}},{"$f":"#REF!","v":{"$error":"#REF!"}},{"$f":"#REF!","v":{"$error":"#REF!"}},{"$f":"#REF!","v":{"$error":"#REF!"}}]
["HBA-DR",{"$f":"#REF!","v":{"$error":"#REF!"}},{"$f":"#REF!","v":{"$error":"#REF!"}},{"$f":"#REF!","v":{"$error":"#REF!"}},{"$f":"#REF!","v":{"$error":"#REF!"}}]
["HBA-DR",{"$f":"#REF!","v":{"$error":"#REF!"}},{"$f":"#REF!","v":{"$error":"#REF!"}},{"$f":"#REF!","v":{"$error":"#REF!"}},{"$f":"#REF!","v":{"$error":"#REF!"}}]
["HBA-DR",{"$f":"#REF!","v":{"$error":"#REF!"}},{"$f":"#REF!","v":{"$error":"#REF!"}},{"$f":"#REF!","v":{"$error":"#REF!"}},{"$f":"#REF!","v":{"$error":"#REF!"}}]
["HBA-DR",{"$f":"#REF!","v":{"$error":"#REF!"}},{"$f":"#REF!","v":{"$error":"#REF!"}},{"$f":"#REF!","v":{"$error":"#REF!"}},{"$f":"#REF!","v":{"$error":"#REF!"}}]
["HBA-DR",{"$f":"#REF!","v":{"$error":"#REF!"}},{"$f":"#REF!","v":{"$error":"#REF!"}},{"$f":"#REF!","v":{"$error":"#REF!"}},{"$f":"#REF!","v":{"$error":"#REF!"}}]
["HBA-DR",{"$f":"#REF!","v":{"$error":"#REF!"}},{"$f":"#REF!","v":{"$error":"#REF!"}},{"$f":"#REF!","v":{"$error":"#REF!"}},{"$f":"#REF!","v":{"$error":"#REF!"}}]
["HBA-DR",{"$f":"#REF!","v":{"$error":"#REF!"}},{"$f":"#REF!","v":{"$error":"#REF!"}},{"$f":"#REF!","v":{"$error":"#REF!"}},{"$f":"#REF!","v":{"$error":"#REF!"}}]
["HBA-DR",{"$f":"#REF!","v":{"$error":"#REF!"}},{"$f":"#REF!","v":{"$error":"#REF!"}},{"$f":"#REF!","v":{"$error":"#REF!"}},{"$f":"#REF!","v":{"$error":"#REF!"}}]
["HBA-DR",{"$f":"#REF!","v":{"$error":"#REF!"}},{"$f":"#REF!","v":{"$error":"#REF!"}},{"$f":"#REF!","v":{"$error":"#REF!"}},{"$f":"#REF!","v":{"$error":"#REF!"}}]
["HBA-DR",{"$f":"#REF!","v":{"$error":"#REF!"}},{"$f":"#REF!","v":{"$error":"#REF!"}},{"$f":"#REF!","v":{"$error":"#REF!"}},{"$f":"#REF!","v":{"$error":"#REF!"}}]
["HBA-DR",{"$f":"#REF!","v":{"$error":"#REF!"}},{"$f":"#REF!","v":{"$error":"#REF!"}},{"$f":"#REF!","v":{"$error":"#REF!"}},{"$f":"#REF!","v":{"$error":"#REF!"}}]
["HBA-DR",{"$f":"#REF!","v":{"$error":"#REF!"}},{"$f":"#REF!","v":{"$error":"#REF!"}},{"$f":"#REF!","v":{"$error":"#REF!"}},{"$f":"#REF!","v":{"$error":"#REF!"}}]
["HBA-DR",{"$f":"#REF!","v":{"$error":"#REF!"}},{"$f":"#REF!","v":{"$error":"#REF!"}},{"$f":"#REF!","v":{"$error":"#REF!"}},{"$f":"#REF!","v":{"$error":"#REF!"}}]
["TBRA",{"$f":"'Service Area-TBRA'!A9","v":0},{"$f":"'Service Area-TBRA'!C9","v":0},{"$f":"'Service Area-TBRA'!F9","v":0},{"$f":"'Service Area-TBRA'!H9","v":0}]
["TBRA",{"$f":"'Service Area-TBRA'!A10","v":0},{"$f":"'Service Area-TBRA'!C10","v":0},{"$f":"'Service Area-TBRA'!F10","v":0},{"$f":"'Service Area-TBRA'!H10","v":0}]
["TBRA",{"$f":"'Service Area-TBRA'!A11","v":0},{"$f":"'Service Area-TBRA'!C11","v":0},{"$f":"'Service Area-TBRA'!F11","v":0},{"$f":"'Service Area-TBRA'!H11","v":0}]
["TBRA",{"$f":"'Service Area-TBRA'!A12","v":0},{"$f":"'Service Area-TBRA'!C12","v":0},{"$f":"'Service Area-TBRA'!F12","v":0},{"$f":"'Service Area-TBRA'!H12","v":0}]
["TBRA",{"$f":"'Service Area-TBRA'!A13","v":0},{"$f":"'Service Area-TBRA'!C13","v":0},{"$f":"'Service Area-TBRA'!F13","v":0},{"$f":"'Service Area-TBRA'!H13","v":0}]
["TBRA",{"$f":"'Service Area-TBRA'!A14","v":0},{"$f":"'Service Area-TBRA'!C14","v":0},{"$f":"'Service Area-TBRA'!F14","v":0},{"$f":"'Service Area-TBRA'!H14","v":0}]
["TBRA",{"$f":"'Service Area-TBRA'!A15","v":0},{"$f":"'Service Area-TBRA'!C15","v":0},{"$f":"'Service Area-TBRA'!F15","v":0},{"$f":"'Service Area-TBRA'!H15","v":0}]
["TBRA",{"$f":"'Service Area-TBRA'!A16","v":0},{"$f":"'Service Area-TBRA'!C16","v":0},{"$f":"'Service Area-TBRA'!F16","v":0},{"$f":"'Service Area-TBRA'!H16","v":0}]
["TBRA",{"$f":"'Service Area-TBRA'!A17","v":0},{"$f":"'Service Area-TBRA'!C17","v":0},{"$f":"'Service Area-TBRA'!F17","v":0},{"$f":"'Service Area-TBRA'!H17","v":0}]
["TBRA",{"$f":"'Service Area-TBRA'!A18","v":0},{"$f":"'Service Area-TBRA'!C18","v":0},{"$f":"'Service Area-TBRA'!F18","v":0},{"$f":"'Service Area-TBRA'!H18","v":0}]
["TBRA",{"$f":"'Service Area-TBRA'!A19","v":0},{"$f":"'Service Area-TBRA'!C19","v":0},{"$f":"'Service Area-TBRA'!F19","v":0},{"$f":"'Service Area-TBRA'!H19","v":0}]
["TBRA",{"$f":"'Service Area-TBRA'!A20","v":0},{"$f":"'Service Area-TBRA'!C20","v":0},{"$f":"'Service Area-TBRA'!F20","v":0},{"$f":"'Service Area-TBRA'!H20","v":0}]
["TBRA",{"$f":"'Service Area-TBRA'!A21","v":0},{"$f":"'Service Area-TBRA'!C21","v":0},{"$f":"'Service Area-TBRA'!F21","v":0},{"$f":"'Service Area-TBRA'!H21","v":0}]
["TBRA",{"$f":"'Service Area-TBRA'!A22","v":0},{"$f":"'Service Area-TBRA'!C22","v":0},{"$f":"'Service Area-TBRA'!F22","v":0},{"$f":"'Service Area-TBRA'!H22","v":0}]
["TBRA",{"$f":"'Service Area-TBRA'!A23","v":0},{"$f":"'Service Area-TBRA'!C23","v":0},{"$f":"'Service Area-TBRA'!F23","v":0},{"$f":"'Service Area-TBRA'!H23","v":0}]
["TBRA",{"$f":"'Service Area-TBRA'!A24","v":0},{"$f":"'Service Area-TBRA'!C24","v":0},{"$f":"'Service Area-TBRA'!F24","v":0},{"$f":"'Service Area-TBRA'!H24","v":0}]
["TBRA",{"$f":"'Service Area-TBRA'!A25","v":0},{"$f":"'Service Area-TBRA'!C25","v":0},{"$f":"'Service Area-TBRA'!F25","v":0},{"$f":"'Service Area-TBRA'!H25","v":0}]
["TBRA",{"$f":"'Service Area-TBRA'!A26","v":0},{"$f":"'Service Area-TBRA'!C26","v":0},{"$f":"'Service Area-TBRA'!F26","v":0},{"$f":"'Service Area-TBRA'!H26","v":0}]
["TBRA",{"$f":"'Service Area-TBRA'!A27","v":0},{"$f":"'Service Area-TBRA'!C27","v":0},{"$f":"'Service Area-TBRA'!F27","v":0},{"$f":"'Service Area-TBRA'!H27","v":0}]
["TBRA",{"$f":"'Service Area-TBRA'!A28","v":0},{"$f":"'Service Area-TBRA'!C28","v":0},{"$f":"'Service Area-TBRA'!F28","v":0},{"$f":"'Service Area-TBRA'!H28","v":0}]
["TBRA",{"$f":"'Service Area-TBRA'!A29","v":0},{"$f":"'Service Area-TBRA'!C29","v":0},{"$f":"'Service Area-TBRA'!F29","v":0},{"$f":"'Service Area-TBRA'!H29","v":0}]
["TBRA",{"$f":"'Service Area-TBRA'!A30","v":0},{"$f":"'Service Area-TBRA'!C30","v":0},{"$f":"'Service Area-TBRA'!F30","v":0},{"$f":"'Service Area-TBRA'!H30","v":0}]
["TBRA",{"$f":"'Service Area-TBRA'!A31","v":0},{"$f":"'Service Area-TBRA'!C31","v":0},{"$f":"'Service Area-TBRA'!F31","v":0},{"$f":"'Service Area-TBRA'!H31","v":0}]
["TBRA",{"$f":"'Service Area-TBRA'!A32","v":0},{"$f":"'Service Area-TBRA'!C32","v":0},{"$f":"'Service Area-TBRA'!F32","v":0},{"$f":"'Service Area-TBRA'!H32","v":0}]
["TBRA",{"$f":"'Service Area-TBRA'!A33","v":0},{"$f":"'Service Area-TBRA'!C33","v":0},{"$f":"'Service Area-TBRA'!F33","v":0},{"$f":"'Service Area-TBRA'!H33","v":0}]
["TBRA",{"$f":"'Service Area-TBRA'!A34","v":0},{"$f":"'Service Area-TBRA'!C34","v":0},{"$f":"'Service Area-TBRA'!F34","v":0},{"$f":"'Service Area-TBRA'!H34","v":0}]
["TBRA",{"$f":"'Service Area-TBRA'!A35","v":0},{"$f":"'Service Area-TBRA'!C35","v":0},{"$f":"'Service Area-TBRA'!F35","v":0},{"$f":"'Service Area-TBRA'!H35","v":0}]
["TBRA",{"$f":"'Service Area-TBRA'!A36","v":0},{"$f":"'Service Area-TBRA'!C36","v":0},{"$f":"'Service Area-TBRA'!F36","v":0},{"$f":"'Service Area-TBRA'!H36","v":0}]
["TBRA",{"$f":"'Service Area-TBRA'!A37","v":0},{"$f":"'Service Area-TBRA'!C37","v":0},{"$f":"'Service Area-TBRA'!F37","v":0},{"$f":"'Service Area-TBRA'!H37","v":0}]
["TBRA",{"$f":"'Service Area-TBRA'!A38","v":0},{"$f":"'Service Area-TBRA'!C38","v":0},{"$f":"'Service Area-TBRA'!F38","v":0},{"$f":"'Service Area-TBRA'!H38","v":0}]
["TBRA",{"$f":"'Service Area-TBRA'!A39","v":0},{"$f":"'Service Area-TBRA'!C39","v":0},{"$f":"'Service Area-TBRA'!F39","v":0},{"$f":"'Service Area-TBRA'!H39","v":0}]
["TBRA-PWD",{"$f":"'Service Area-TBRA PWD'!A7","v":0},{"$f":"'Service Area-TBRA PWD'!C7","v":0},{"$f":"'Service Area-TBRA PWD'!F7","v":0},{"$f":"'Service Area-TBRA PWD'!H7","v":0}]
["TBRA-PWD",{"$f":"'Service Area-TBRA PWD'!A8","v":0},{"$f":"'Service Area-TBRA PWD'!C8","v":0},{"$f":"'Service Area-TBRA PWD'!F8","v":0},{"$f":"'Service Area-TBRA PWD'!H8","v":0}]
["TBRA-PWD",{"$f":"'Service Area-TBRA PWD'!A9","v":0},{"$f":"'Service Area-TBRA PWD'!C9","v":0},{"$f":"'Service Area-TBRA PWD'!F9","v":0},{"$f":"'Service Area-TBRA PWD'!H9","v":0}]
["TBRA-PWD",{"$f":"'Service Area-TBRA PWD'!A10","v":0},{"$f":"'Service Area-TBRA PWD'!C10","v":0},{"$f":"'Service Area-TBRA PWD'!F10","v":0},{"$f":"'Service Area-TBRA PWD'!H10","v":0}]
["TBRA-PWD",{"$f":"'Service Area-TBRA PWD'!A11","v":0},{"$f":"'Service Area-TBRA PWD'!C11","v":0},{"$f":"'Service Area-TBRA PWD'!F11","v":0},{"$f":"'Service Area-TBRA PWD'!H11","v":0}]
["TBRA-PWD",{"$f":"'Service Area-TBRA PWD'!A12","v":0},{"$f":"'Service Area-TBRA PWD'!C12","v":0},{"$f":"'Service Area-TBRA PWD'!F12","v":0},{"$f":"'Service Area-TBRA PWD'!H12","v":0}]
["TBRA-PWD",{"$f":"'Service Area-TBRA PWD'!A13","v":0},{"$f":"'Service Area-TBRA PWD'!C13","v":0},{"$f":"'Service Area-TBRA PWD'!F13","v":0},{"$f":"'Service Area-TBRA PWD'!H13","v":0}]
["TBRA-PWD",{"$f":"'Service Area-TBRA PWD'!A14","v":0},{"$f":"'Service Area-TBRA PWD'!C14","v":0},{"$f":"'Service Area-TBRA PWD'!F14","v":0},{"$f":"'Service Area-TBRA PWD'!H14","v":0}]
["TBRA-PWD",{"$f":"'Service Area-TBRA PWD'!A15","v":0},{"$f":"'Service Area-TBRA PWD'!C15","v":0},{"$f":"'Service Area-TBRA PWD'!F15","v":0},{"$f":"'Service Area-TBRA PWD'!H15","v":0}]
["TBRA-PWD",{"$f":"'Service Area-TBRA PWD'!A16","v":0},{"$f":"'Service Area-TBRA PWD'!C16","v":0},{"$f":"'Service Area-TBRA PWD'!F16","v":0},{"$f":"'Service Area-TBRA PWD'!H16","v":0}]
["TBRA-PWD",{"$f":"'Service Area-TBRA PWD'!A17","v":0},{"$f":"'Service Area-TBRA PWD'!C17","v":0},{"$f":"'Service Area-TBRA PWD'!F17","v":0},{"$f":"'Service Area-TBRA PWD'!H17","v":0}]
["TBRA-PWD",{"$f":"'Service Area-TBRA PWD'!A18","v":0},{"$f":"'Service Area-TBRA PWD'!C18","v":0},{"$f":"'Service Area-TBRA PWD'!F18","v":0},{"$f":"'Service Area-TBRA PWD'!H18","v":0}]
["TBRA-PWD",{"$f":"'Service Area-TBRA PWD'!A19","v":0},{"$f":"'Service Area-TBRA PWD'!C19","v":0},{"$f":"'Service Area-TBRA PWD'!F19","v":0},{"$f":"'Service Area-TBRA PWD'!H19","v":0}]
["TBRA-PWD",{"$f":"'Service Area-TBRA PWD'!A20","v":0},{"$f":"'Service Area-TBRA PWD'!C20","v":0},{"$f":"'Service Area-TBRA PWD'!F20","v":0},{"$f":"'Service Area-TBRA PWD'!H20","v":0}]
["TBRA-PWD",{"$f":"'Service Area-TBRA PWD'!A21","v":0},{"$f":"'Service Area-TBRA PWD'!C21","v":0},{"$f":"'Service Area-TBRA PWD'!F21","v":0},{"$f":"'Service Area-TBRA PWD'!H21","v":0}]
["TBRA-PWD",{"$f":"'Service Area-TBRA PWD'!A22","v":0},{"$f":"'Service Area-TBRA PWD'!C22","v":0},{"$f":"'Service Area-TBRA PWD'!F22","v":0},{"$f":"'Service Area-TBRA PWD'!H22","v":0}]
["TBRA-PWD",{"$f":"'Service Area-TBRA PWD'!A23","v":0},{"$f":"'Service Area-TBRA PWD'!C23","v":0},{"$f":"'Service Area-TBRA PWD'!F23","v":0},{"$f":"'Service Area-TBRA PWD'!H23","v":0}]
["TBRA-PWD",{"$f":"'Service Area-TBRA PWD'!A24","v":0},{"$f":"'Service Area-TBRA PWD'!C24","v":0},{"$f":"'Service Area-TBRA PWD'!F24","v":0},{"$f":"'Service Area-TBRA PWD'!H24","v":0}]
["TBRA-PWD",{"$f":"'Service Area-TBRA PWD'!A25","v":0},{"$f":"'Service Area-TBRA PWD'!C25","v":0},{"$f":"'Service Area-TBRA PWD'!F25","v":0},{"$f":"'Service Area-TBRA PWD'!H25","v":0}]
["TBRA-PWD",{"$f":"'Service Area-TBRA PWD'!A26","v":0},{"$f":"'Service Area-TBRA PWD'!C26","v":0},{"$f":"'Service Area-TBRA PWD'!F26","v":0},{"$f":"'Service Area-TBRA PWD'!H26","v":0}]
["TBRA-PWD",{"$f":"'Service Area-TBRA PWD'!A27","v":0},{"$f":"'Service Area-TBRA PWD'!C27","v":0},{"$f":"'Service Area-TBRA PWD'!F27","v":0},{"$f":"'Service Area-TBRA PWD'!H27","v":0}]
["TBRA-PWD",{"$f":"'Service Area-TBRA PWD'!A28","v":0},{"$f":"'Service Area-TBRA PWD'!C28","v":0},{"$f":"'Service Area-TBRA PWD'!F28","v":0},{"$f":"'Service Area-TBRA PWD'!H28","v":0}]
["TBRA-PWD",{"$f":"'Service Area-TBRA PWD'!A29","v":0},{"$f":"'Service Area-TBRA PWD'!C29","v":0},{"$f":"'Service Area-TBRA PWD'!F29","v":0},{"$f":"'Service Area-TBRA PWD'!H29","v":0}]
["TBRA-PWD",{"$f":"'Service Area-TBRA PWD'!A30","v":0},{"$f":"'Service Area-TBRA PWD'!C30","v":0},{"$f":"'Service Area-TBRA PWD'!F30","v":0},{"$f":"'Service Area-TBRA PWD'!H30","v":0}]
["TBRA-PWD",{"$f":"'Service Area-TBRA PWD'!A31","v":0},{"$f":"'Service Area-TBRA PWD'!C31","v":0},{"$f":"'Service Area-TBRA PWD'!F31","v":0},{"$f":"'Service Area-TBRA PWD'!H31","v":0}]
["TBRA-PWD",{"$f":"'Service Area-TBRA PWD'!A32","v":0},{"$f":"'Service Area-TBRA PWD'!C32","v":0},{"$f":"'Service Area-TBRA PWD'!F32","v":0},{"$f":"'Service Area-TBRA PWD'!H32","v":0}]
["TBRA-PWD",{"$f":"'Service Area-TBRA PWD'!A33","v":0},{"$f":"'Service Area-TBRA PWD'!C33","v":0},{"$f":"'Service Area-TBRA PWD'!F33","v":0},{"$f":"'Service Area-TBRA PWD'!H33","v":0}]
["TBRA-PWD",{"$f":"'Service Area-TBRA PWD'!A34","v":0},{"$f":"'Service Area-TBRA PWD'!C34","v":0},{"$f":"'Service Area-TBRA PWD'!F34","v":0},{"$f":"'Service Area-TBRA PWD'!H34","v":0}]
["TBRA-PWD",{"$f":"'Service Area-TBRA PWD'!A35","v":0},{"$f":"'Service Area-TBRA PWD'!C35","v":0},{"$f":"'Service Area-TBRA PWD'!F35","v":0},{"$f":"'Service Area-TBRA PWD'!H35","v":0}]
["TBRA-PWD",{"$f":"'Service Area-TBRA PWD'!A36","v":0},{"$f":"'Service Area-TBRA PWD'!C36","v":0},{"$f":"'Service Area-TBRA PWD'!F36","v":0},{"$f":"'Service Area-TBRA PWD'!H36","v":0}]
["TBRA-PWD",{"$f":"'Service Area-TBRA PWD'!A37","v":0},{"$f":"'Service Area-TBRA PWD'!C37","v":0},{"$f":"'Service Area-TBRA PWD'!F37","v":0},{"$f":"'Service Area-TBRA PWD'!H37","v":0}]
["TBRA-DR",{"$f":"'Service Area-TBRA DR'!A9","v":0},{"$f":"'Service Area-TBRA DR'!C9","v":0},{"$f":"'Service Area-TBRA DR'!F9","v":0},{"$f":"'Service Area-TBRA DR'!H9","v":0}]
["TBRA-DR",{"$f":"'Service Area-TBRA DR'!A10","v":0},{"$f":"'Service Area-TBRA DR'!C10","v":0},{"$f":"'Service Area-TBRA DR'!F10","v":0},{"$f":"'Service Area-TBRA DR'!H10","v":0}]
["TBRA-DR",{"$f":"'Service Area-TBRA DR'!A11","v":0},{"$f":"'Service Area-TBRA DR'!C11","v":0},{"$f":"'Service Area-TBRA DR'!F11","v":0},{"$f":"'Service Area-TBRA DR'!H11","v":0}]
["TBRA-DR",{"$f":"'Service Area-TBRA DR'!A12","v":0},{"$f":"'Service Area-TBRA DR'!C12","v":0},{"$f":"'Service Area-TBRA DR'!F12","v":0},{"$f":"'Service Area-TBRA DR'!H12","v":0}]
["TBRA-DR",{"$f":"'Service Area-TBRA DR'!A13","v":0},{"$f":"'Service Area-TBRA DR'!C13","v":0},{"$f":"'Service Area-TBRA DR'!F13","v":0},{"$f":"'Service Area-TBRA DR'!H13","v":0}]
["TBRA-DR",{"$f":"'Service Area-TBRA DR'!A14","v":0},{"$f":"'Service Area-TBRA DR'!C14","v":0},{"$f":"'Service Area-TBRA DR'!F14","v":0},{"$f":"'Service Area-TBRA DR'!H14","v":0}]
["TBRA-DR",{"$f":"'Service Area-TBRA DR'!A15","v":0},{"$f":"'Service Area-TBRA DR'!C15","v":0},{"$f":"'Service Area-TBRA DR'!F15","v":0},{"$f":"'Service Area-TBRA DR'!H15","v":0}]
["TBRA-DR",{"$f":"'Service Area-TBRA DR'!A16","v":0},{"$f":"'Service Area-TBRA DR'!C16","v":0},{"$f":"'Service Area-TBRA DR'!F16","v":0},{"$f":"'Service Area-TBRA DR'!H16","v":0}]
["TBRA-DR",{"$f":"'Service Area-TBRA DR'!A17","v":0},{"$f":"'Service Area-TBRA DR'!C17","v":0},{"$f":"'Service Area-TBRA DR'!F17","v":0},{"$f":"'Service Area-TBRA DR'!H17","v":0}]
["TBRA-DR",{"$f":"'Service Area-TBRA DR'!A18","v":0},{"$f":"'Service Area-TBRA DR'!C18","v":0},{"$f":"'Service Area-TBRA DR'!F18","v":0},{"$f":"'Service Area-TBRA DR'!H18","v":0}]
["TBRA-DR",{"$f":"'Service Area-TBRA DR'!A19","v":0},{"$f":"'Service Area-TBRA DR'!C19","v":0},{"$f":"'Service Area-TBRA DR'!F19","v":0},{"$f":"'Service Area-TBRA DR'!H19","v":0}]
["TBRA-DR",{"$f":"'Service Area-TBRA DR'!A20","v":0},{"$f":"'Service Area-TBRA DR'!C20","v":0},{"$f":"'Service Area-TBRA DR'!F20","v":0},{"$f":"'Service Area-TBRA DR'!H20","v":0}]
["TBRA-DR",{"$f":"'Service Area-TBRA DR'!A21","v":0},{"$f":"'Service Area-TBRA DR'!C21","v":0},{"$f":"'Service Area-TBRA DR'!F21","v":0},{"$f":"'Service Area-TBRA DR'!H21","v":0}]
["TBRA-DR",{"$f":"'Service Area-TBRA DR'!A22","v":0},{"$f":"'Service Area-TBRA DR'!C22","v":0},{"$f":"'Service Area-TBRA DR'!F22","v":0},{"$f":"'Service Area-TBRA DR'!H22","v":0}]
["TBRA-DR",{"$f":"'Service Area-TBRA DR'!A23","v":0},{"$f":"'Service Area-TBRA DR'!C23","v":0},{"$f":"'Service Area-TBRA DR'!F23","v":0},{"$f":"'Service Area-TBRA DR'!H23","v":0}]
["TBRA-DR",{"$f":"'Service Area-TBRA DR'!A24","v":0},{"$f":"'Service Area-TBRA DR'!C24","v":0},{"$f":"'Service Area-TBRA DR'!F24","v":0},{"$f":"'Service Area-TBRA DR'!H24","v":0}]
["TBRA-DR",{"$f":"'Service Area-TBRA DR'!A25","v":0},{"$f":"'Service Area-TBRA DR'!C25","v":0},{"$f":"'Service Area-TBRA DR'!F25","v":0},{"$f":"'Service Area-TBRA DR'!H25","v":0}]
["TBRA-DR",{"$f":"'Service Area-TBRA DR'!A26","v":0},{"$f":"'Service Area-TBRA DR'!C26","v":0},{"$f":"'Service Area-TBRA DR'!F26","v":0},{"$f":"'Service Area-TBRA DR'!H26","v":0}]
["TBRA-DR",{"$f":"'Service Area-TBRA DR'!A27","v":0},{"$f":"'Service Area-TBRA DR'!C27","v":0},{"$f":"'Service Area-TBRA DR'!F27","v":0},{"$f":"'Service Area-TBRA DR'!H27","v":0}]
["TBRA-DR",{"$f":"'Service Area-TBRA DR'!A28","v":0},{"$f":"'Service Area-TBRA DR'!C28","v":0},{"$f":"'Service Area-TBRA DR'!F28","v":0},{"$f":"'Service Area-TBRA DR'!H28","v":0}]
["TBRA-DR",{"$f":"'Service Area-TBRA DR'!A29","v":0},{"$f":"'Service Area-TBRA DR'!C29","v":0},{"$f":"'Service Area-TBRA DR'!F29","v":0},{"$f":"'Service Area-TBRA DR'!H29","v":0}]
["TBRA-DR",{"$f":"'Service Area-TBRA DR'!A30","v":0},{"$f":"'Service Area-TBRA DR'!C30","v":0},{"$f":"'Service Area-TBRA DR'!F30","v":0},{"$f":"'Service Area-TBRA DR'!H30","v":0}]
["TBRA-DR",{"$f":"'Service Area-TBRA DR'!A31","v":0},{"$f":"'Service Area-TBRA DR'!C31","v":0},{"$f":"'Service Area-TBRA DR'!F31","v":0},{"$f":"'Service Area-TBRA DR'!H31","v":0}]
["TBRA-DR",{"$f":"'Service Area-TBRA DR'!A32","v":0},{"$f":"'Service Area-TBRA DR'!C32","v":0},{"$f":"'Service Area-TBRA DR'!F32","v":0},{"$f":"'Service Area-TBRA DR'!H32","v":0}]
["TBRA-DR",{"$f":"'Service Area-TBRA DR'!A33","v":0},{"$f":"'Service Area-TBRA DR'!C33","v":0},{"$f":"'Service Area-TBRA DR'!F33","v":0},{"$f":"'Service Area-TBRA DR'!H33","v":0}]
["TBRA-DR",{"$f":"'Service Area-TBRA DR'!A34","v":0},{"$f":"'Service Area-TBRA DR'!C34","v":0},{"$f":"'Service Area-TBRA DR'!F34","v":0},{"$f":"'Service Area-TBRA DR'!H34","v":0}]
["TBRA-DR",{"$f":"'Service Area-TBRA DR'!A35","v":0},{"$f":"'Service Area-TBRA DR'!C35","v":0},{"$f":"'Service Area-TBRA DR'!F35","v":0},{"$f":"'Service Area-TBRA DR'!H35","v":0}]
["TBRA-DR",{"$f":"'Service Area-TBRA DR'!A36","v":0},{"$f":"'Service Area-TBRA DR'!C36","v":0},{"$f":"'Service Area-TBRA DR'!F36","v":0},{"$f":"'Service Area-TBRA DR'!H36","v":0}]
["TBRA-DR",{"$f":"'Service Area-TBRA DR'!A37","v":0},{"$f":"'Service Area-TBRA DR'!C37","v":0},{"$f":"'Service Area-TBRA DR'!F37","v":0},{"$f":"'Service Area-TBRA DR'!H37","v":0}]
["TBRA-DR",{"$f":"'Service Area-TBRA DR'!A38","v":0},{"$f":"'Service Area-TBRA DR'!C38","v":0},{"$f":"'Service Area-TBRA DR'!F38","v":0},{"$f":"'Service Area-TBRA DR'!H38","v":0}]
["TBRA-DR",{"$f":"'Service Area-TBRA DR'!A39","v":0},{"$f":"'Service Area-TBRA DR'!C39","v":0},{"$f":"'Service Area-TBRA DR'!F39","v":0},{"$f":"'Service Area-TBRA DR'!H39","v":0}]
["CFD",{"$f":"'Service Area-CFD'!A9","v":0},{"$f":"'Service Area-CFD'!C9","v":0},{"$f":"'Service Area-CFD'!F9","v":0},{"$f":"'Service Area-CFD'!H9","v":0}]
["CFD",{"$f":"'Service Area-CFD'!A10","v":0},{"$f":"'Service Area-CFD'!C10","v":0},{"$f":"'Service Area-CFD'!F10","v":0},{"$f":"'Service Area-CFD'!H10","v":0}]
["CFD",{"$f":"'Service Area-CFD'!A11","v":0},{"$f":"'Service Area-CFD'!C11","v":0},{"$f":"'Service Area-CFD'!F11","v":0},{"$f":"'Service Area-CFD'!H11","v":0}]
["CFD",{"$f":"'Service Area-CFD'!A12","v":0},{"$f":"'Service Area-CFD'!C12","v":0},{"$f":"'Service Area-CFD'!F12","v":0},{"$f":"'Service Area-CFD'!H12","v":0}]
["CFD",{"$f":"'Service Area-CFD'!A13","v":0},{"$f":"'Service Area-CFD'!C13","v":0},{"$f":"'Service Area-CFD'!F13","v":0},{"$f":"'Service Area-CFD'!H13","v":0}]
["CFD",{"$f":"'Service Area-CFD'!A14","v":0},{"$f":"'Service Area-CFD'!C14","v":0},{"$f":"'Service Area-CFD'!F14","v":0},{"$f":"'Service Area-CFD'!H14","v":0}]
["CFD",{"$f":"'Service Area-CFD'!A15","v":0},{"$f":"'Service Area-CFD'!C15","v":0},{"$f":"'Service Area-CFD'!F15","v":0},{"$f":"'Service Area-CFD'!H15","v":0}]
["CFD",{"$f":"'Service Area-CFD'!A16","v":0},{"$f":"'Service Area-CFD'!C16","v":0},{"$f":"'Service Area-CFD'!F16","v":0},{"$f":"'Service Area-CFD'!H16","v":0}]
["CFD",{"$f":"'Service Area-CFD'!A17","v":0},{"$f":"'Service Area-CFD'!C17","v":0},{"$f":"'Service Area-CFD'!F17","v":0},{"$f":"'Service Area-CFD'!H17","v":0}]
["CFD",{"$f":"'Service Area-CFD'!A18","v":0},{"$f":"'Service Area-CFD'!C18","v":0},{"$f":"'Service Area-CFD'!F18","v":0},{"$f":"'Service Area-CFD'!H18","v":0}]
["CFD",{"$f":"'Service Area-CFD'!A19","v":0},{"$f":"'Service Area-CFD'!C19","v":0},{"$f":"'Service Area-CFD'!F19","v":0},{"$f":"'Service Area-CFD'!H19","v":0}]
["CFD",{"$f":"'Service Area-CFD'!A20","v":0},{"$f":"'Service Area-CFD'!C20","v":0},{"$f":"'Service Area-CFD'!F20","v":0},{"$f":"'Service Area-CFD'!H20","v":0}]
["CFD",{"$f":"'Service Area-CFD'!A21","v":0},{"$f":"'Service Area-CFD'!C21","v":0},{"$f":"'Service Area-CFD'!F21","v":0},{"$f":"'Service Area-CFD'!H21","v":0}]
["CFD",{"$f":"'Service Area-CFD'!A22","v":0},{"$f":"'Service Area-CFD'!C22","v":0},{"$f":"'Service Area-CFD'!F22","v":0},{"$f":"'Service Area-CFD'!H22","v":0}]
["CFD",{"$f":"'Service Area-CFD'!A23","v":0},{"$f":"'Service Area-CFD'!C23","v":0},{"$f":"'Service Area-CFD'!F23","v":0},{"$f":"'Service Area-CFD'!H23","v":0}]
["CFD",{"$f":"'Service Area-CFD'!A24","v":0},{"$f":"'Service Area-CFD'!C24","v":0},{"$f":"'Service Area-CFD'!F24","v":0},{"$f":"'Service Area-CFD'!H24","v":0}]
["CFD",{"$f":"'Service Area-CFD'!A25","v":0},{"$f":"'Service Area-CFD'!C25","v":0},{"$f":"'Service Area-CFD'!F25","v":0},{"$f":"'Service Area-CFD'!H25","v":0}]
["CFD",{"$f":"'Service Area-CFD'!A26","v":0},{"$f":"'Service Area-CFD'!C26","v":0},{"$f":"'Service Area-CFD'!F26","v":0},{"$f":"'Service Area-CFD'!H26","v":0}]
["CFD",{"$f":"'Service Area-CFD'!A27","v":0},{"$f":"'Service Area-CFD'!C27","v":0},{"$f":"'Service Area-CFD'!F27","v":0},{"$f":"'Service Area-CFD'!H27","v":0}]
["CFD",{"$f":"'Service Area-CFD'!A28","v":0},{"$f":"'Service Area-CFD'!C28","v":0},{"$f":"'Service Area-CFD'!F28","v":0},{"$f":"'Service Area-CFD'!H28","v":0}]
["CFD",{"$f":"'Service Area-CFD'!A29","v":0},{"$f":"'Service Area-CFD'!C29","v":0},{"$f":"'Service Area-CFD'!F29","v":0},{"$f":"'Service Area-CFD'!H29","v":0}]
["CFD",{"$f":"'Service Area-CFD'!A30","v":0},{"$f":"'Service Area-CFD'!C30","v":0},{"$f":"'Service Area-CFD'!F30","v":0},{"$f":"'Service Area-CFD'!H30","v":0}]
["CFD",{"$f":"'Service Area-CFD'!A31","v":0},{"$f":"'Service Area-CFD'!C31","v":0},{"$f":"'Service Area-CFD'!F31","v":0},{"$f":"'Service Area-CFD'!H31","v":0}]
["CFD",{"$f":"'Service Area-CFD'!A32","v":0},{"$f":"'Service Area-CFD'!C32","v":0},{"$f":"'Service Area-CFD'!F32","v":0},{"$f":"'Service Area-CFD'!H32","v":0}]
["CFD",{"$f":"'Service Area-CFD'!A33","v":0},{"$f":"'Service Area-CFD'!C33","v":0},{"$f":"'Service Area-CFD'!F33","v":0},{"$f":"'Service Area-CFD'!H33","v":0}]
["CFD",{"$f":"'Service Area-CFD'!A34","v":0},{"$f":"'Service Area-CFD'!C34","v":0},{"$f":"'Service Area-CFD'!F34","v":0},{"$f":"'Service Area-CFD'!H34","v":0}]
["CFD",{"$f":"'Service Area-CFD'!A35","v":0},{"$f":"'Service Area-CFD'!C35","v":0},{"$f":"'Service Area-CFD'!F35","v":0},{"$f":"'Service Area-CFD'!H35","v":0}]
["CFD",{"$f":"'Service Area-CFD'!A36","v":0},{"$f":"'Service Area-CFD'!C36","v":0},{"$f":"'Service Area-CFD'!F36","v":0},{"$f":"'Service Area-CFD'!H36","v":0}]
["CFD",{"$f":"'Service Area-CFD'!A37","v":0},{"$f":"'Service Area-CFD'!C37","v":0},{"$f":"'Service Area-CFD'!F37","v":0},{"$f":"'Service Area-CFD'!H37","v":0}]
["CFD",{"$f":"'Service Area-CFD'!A38","v":0},{"$f":"'Service Area-CFD'!C38","v":0},{"$f":"'Service Area-CFD'!F38","v":0},{"$f":"'Service Area-CFD'!H38","v":0}]
["CFD",{"$f":"'Service Area-CFD'!A39","v":0},{"$f":"'Service Area-CFD'!C39","v":0},{"$f":"'Service Area-CFD'!F39","v":0},{"$f":"'Service Area-CFD'!H39","v":0}]
["HANC",{"$f":"'Service Area-HANC'!A9","v":0},{"$f":"'Service Area-HANC'!C9","v":0},{"$f":"'Service Area-HANC'!F9","v":0},{"$f":"'Service Area-HANC'!H9","v":0}]
["HANC",{"$f":"'Service Area-HANC'!A10","v":0},{"$f":"'Service Area-HANC'!C10","v":0},{"$f":"'Service Area-HANC'!F10","v":0},{"$f":"'Service Area-HANC'!H10","v":0}]
["HANC",{"$f":"'Service Area-HANC'!A11","v":0},{"$f":"'Service Area-HANC'!C11","v":0},{"$f":"'Service Area-HANC'!F11","v":0},{"$f":"'Service Area-HANC'!H11","v":0}]
["HANC",{"$f":"'Service Area-HANC'!A12","v":0},{"$f":"'Service Area-HANC'!C12","v":0},{"$f":"'Service Area-HANC'!F12","v":0},{"$f":"'Service Area-HANC'!H12","v":0}]
["HANC",{"$f":"'Service Area-HANC'!A13","v":0},{"$f":"'Service Area-HANC'!C13","v":0},{"$f":"'Service Area-HANC'!F13","v":0},{"$f":"'Service Area-HANC'!H13","v":0}]
["HANC",{"$f":"'Service Area-HANC'!A14","v":0},{"$f":"'Service Area-HANC'!C14","v":0},{"$f":"'Service Area-HANC'!F14","v":0},{"$f":"'Service Area-HANC'!H14","v":0}]
["HANC",{"$f":"'Service Area-HANC'!A15","v":0},{"$f":"'Service Area-HANC'!C15","v":0},{"$f":"'Service Area-HANC'!F15","v":0},{"$f":"'Service Area-HANC'!H15","v":0}]
["HANC",{"$f":"'Service Area-HANC'!A16","v":0},{"$f":"'Service Area-HANC'!C16","v":0},{"$f":"'Service Area-HANC'!F16","v":0},{"$f":"'Service Area-HANC'!H16","v":0}]
["HANC",{"$f":"'Service Area-HANC'!A17","v":0},{"$f":"'Service Area-HANC'!C17","v":0},{"$f":"'Service Area-HANC'!F17","v":0},{"$f":"'Service Area-HANC'!H17","v":0}]
["HANC",{"$f":"'Service Area-HANC'!A18","v":0},{"$f":"'Service Area-HANC'!C18","v":0},{"$f":"'Service Area-HANC'!F18","v":0},{"$f":"'Service Area-HANC'!H18","v":0}]
["HANC",{"$f":"'Service Area-HANC'!A19","v":0},{"$f":"'Service Area-HANC'!C19","v":0},{"$f":"'Service Area-HANC'!F19","v":0},{"$f":"'Service Area-HANC'!H19","v":0}]
["HANC",{"$f":"'Service Area-HANC'!A20","v":0},{"$f":"'Service Area-HANC'!C20","v":0},{"$f":"'Service Area-HANC'!F20","v":0},{"$f":"'Service Area-HANC'!H20","v":0}]
["HANC",{"$f":"'Service Area-HANC'!A21","v":0},{"$f":"'Service Area-HANC'!C21","v":0},{"$f":"'Service Area-HANC'!F21","v":0},{"$f":"'Service Area-HANC'!H21","v":0}]
["HANC",{"$f":"'Service Area-HANC'!A22","v":0},{"$f":"'Service Area-HANC'!C22","v":0},{"$f":"'Service Area-HANC'!F22","v":0},{"$f":"'Service Area-HANC'!H22","v":0}]
["HANC",{"$f":"'Service Area-HANC'!A23","v":0},{"$f":"'Service Area-HANC'!C23","v":0},{"$f":"'Service Area-HANC'!F23","v":0},{"$f":"'Service Area-HANC'!H23","v":0}]
["HANC",{"$f":"'Service Area-HANC'!A24","v":0},{"$f":"'Service Area-HANC'!C24","v":0},{"$f":"'Service Area-HANC'!F24","v":0},{"$f":"'Service Area-HANC'!H24","v":0}]
["HANC",{"$f":"'Service Area-HANC'!A25","v":0},{"$f":"'Service Area-HANC'!C25","v":0},{"$f":"'Service Area-HANC'!F25","v":0},{"$f":"'Service Area-HANC'!H25","v":0}]
["HANC",{"$f":"'Service Area-HANC'!A26","v":0},{"$f":"'Service Area-HANC'!C26","v":0},{"$f":"'Service Area-HANC'!F26","v":0},{"$f":"'Service Area-HANC'!H26","v":0}]
["HANC",{"$f":"'Service Area-HANC'!A27","v":0},{"$f":"'Service Area-HANC'!C27","v":0},{"$f":"'Service Area-HANC'!F27","v":0},{"$f":"'Service Area-HANC'!H27","v":0}]
["HANC",{"$f":"'Service Area-HANC'!A28","v":0},{"$f":"'Service Area-HANC'!C28","v":0},{"$f":"'Service Area-HANC'!F28","v":0},{"$f":"'Service Area-HANC'!H28","v":0}]
["HANC",{"$f":"'Service Area-HANC'!A29","v":0},{"$f":"'Service Area-HANC'!C29","v":0},{"$f":"'Service Area-HANC'!F29","v":0},{"$f":"'Service Area-HANC'!H29","v":0}]
["HANC",{"$f":"'Service Area-HANC'!A30","v":0},{"$f":"'Service Area-HANC'!C30","v":0},{"$f":"'Service Area-HANC'!F30","v":0},{"$f":"'Service Area-HANC'!H30","v":0}]
["HANC",{"$f":"'Service Area-HANC'!A31","v":0},{"$f":"'Service Area-HANC'!C31","v":0},{"$f":"'Service Area-HANC'!F31","v":0},{"$f":"'Service Area-HANC'!H31","v":0}]
["HANC",{"$f":"'Service Area-HANC'!A32","v":0},{"$f":"'Service Area-HANC'!C32","v":0},{"$f":"'Service Area-HANC'!F32","v":0},{"$f":"'Service Area-HANC'!H32","v":0}]
["HANC",{"$f":"'Service Area-HANC'!A33","v":0},{"$f":"'Service Area-HANC'!C33","v":0},{"$f":"'Service Area-HANC'!F33","v":0},{"$f":"'Service Area-HANC'!H33","v":0}]
["HANC",{"$f":"'Service Area-HANC'!A34","v":0},{"$f":"'Service Area-HANC'!C34","v":0},{"$f":"'Service Area-HANC'!F34","v":0},{"$f":"'Service Area-HANC'!H34","v":0}]
["HANC",{"$f":"'Service Area-HANC'!A35","v":0},{"$f":"'Service Area-HANC'!C35","v":0},{"$f":"'Service Area-HANC'!F35","v":0},{"$f":"'Service Area-HANC'!H35","v":0}]
["HANC",{"$f":"'Service Area-HANC'!A36","v":0},{"$f":"'Service Area-HANC'!C36","v":0},{"$f":"'Service Area-HANC'!F36","v":0},{"$f":"'Service Area-HANC'!H36","v":0}]
["HANC",{"$f":"'Service Area-HANC'!A37","v":0},{"$f":"'Service Area-HANC'!C37","v":0},{"$f":"'Service Area-HANC'!F37","v":0},{"$f":"'Service Area-HANC'!H37","v":0}]
["HANC",{"$f":"'Service Area-HANC'!A38","v":0},{"$f":"'Service Area-HANC'!C38","v":0},{"$f":"'Service Area-HANC'!F38","v":0},{"$f":"'Service Area-HANC'!H38","v":0}]
["HANC",{"$f":"'Service Area-HANC'!A39","v":0},{"$f":"'Service Area-HANC'!C39","v":0},{"$f":"'Service Area-HANC'!F39","v":0},{"$f":"'Service Area-HANC'!H39","v":0}]

{"sheet":"Extras","index":34,"n_rows":2,"n_cols":59,"rows_kept":2,"cut":false,"hidden":true,"merged":[]}
["consOversightName","ConsOversightTitle","ConsOversightPhone","ConsoversightEmail","DetailConstructionConduct","DetailConstructionDocumentation","Haveonstaffinspector","DescribeExp","InspectorDoingOversight","Whowillberesponsible","ExplainCounselingMarketing","HaveCounselingPRogram","HowManyCompletein24mos","InstructorsCertified","3rdParty","3rdpartyaddress","3rdPartyCity","3rdpartyzip","3rdpartyinstructor","OfferPrepurchaseCounseling","OfferPostpurchaseCounseling","OfferPreandPostpurchaseCounseling","FindingAHOMEsessions","TaxingandInsuranceSessions","PersonalBudgetingSessions","PRedatoryLendingSessions","CreditReportSessions","HOMEMaintenanceSessions","LoanApplicatinSessions","ForeclosurePReventionSessions","DescribeProgram","DescribeCounselingPRocess","DescribeSSPlan","PrevHRA","ContractorsProcured","ListUpdated12mos","OnstaffInspector","HaveORdinances","DescribeOrdinances","HRASAFEAct","HelpHomebuyersWith","1stLienPRoceduresInPlace","PrevHBA","HBAHQS","HBASAFEAct","PrevTBRA","TBRAWaitLIst","AvailableRentUnits","HaveSupportiveServices","OnStaffHQSInspector","PrevCFD","CFDWaitList","CFDContractorsProcured","CFDContractorListUpdated12mos","CFDOnStaffHQSInspector","ColoniasRegistered","CFDHaveORdinances","CFDDescribeORdinances","CFDSAFEAct"]
[{"$f":"ProjectOversight!C39","v":0},{"$f":"ProjectOversight!C40","v":0},{"$f":"ProjectOversight!C41","v":0},{"$f":"ProjectOversight!C42","v":0},{"$f":"ProjectOversight!A44","v":0},{"$f":"ProjectOversight!A46","v":0},{"$f":"ProjectOversight!H47","v":0},{"$f":"ProjectOversight!A49","v":0},{"$f":"ProjectOversight!H50","v":0},{"$f":"ProjectOversight!A52","v":0},{"$f":"'Mrtg Prod Hsng Cnslng'!#REF!","v":{"$error":"#REF!"}},{"$f":"'Mrtg Prod Hsng Cnslng'!$I$16","v":0},{"$f":"'Mrtg Prod Hsng Cnslng'!#REF!","v":{"$error":"#REF!"}},{"$f":"'Mrtg Prod Hsng Cnslng'!#REF!","v":{"$error":"#REF!"}},{"$f":"'Mrtg Prod Hsng Cnslng'!$A$29","v":0},{"$f":"'Mrtg Prod Hsng Cnslng'!$C$29","v":0},{"$f":"'Mrtg Prod Hsng Cnslng'!$F$29","v":0},{"$f":"'Mrtg Prod Hsng Cnslng'!$H$29","v":0},{"$f":"'Mrtg Prod Hsng Cnslng'!$I$29","v":0},{"$f":"'Mrtg Prod Hsng Cnslng'!$I$19","v":0},{"$f":"'Mrtg Prod Hsng Cnslng'!$I$20","v":0},{"$f":"'Mrtg Prod Hsng Cnslng'!$I$21","v":0},{"$f":"'Mrtg Prod Hsng Cnslng'!#REF!","v":{"$error":"#REF!"}},{"$f":"'Mrtg Prod Hsng Cnslng'!#REF!","v":{"$error":"#REF!"}},{"$f":"'Mrtg Prod Hsng Cnslng'!#REF!","v":{"$error":"#REF!"}},{"$f":"'Mrtg Prod Hsng Cnslng'!#REF!","v":{"$error":"#REF!"}},{"$f":"'Mrtg Prod Hsng Cnslng'!#REF!","v":{"$error":"#REF!"}},{"$f":"'Mrtg Prod Hsng Cnslng'!#REF!","v":{"$error":"#REF!"}},{"$f":"'Mrtg Prod Hsng Cnslng'!#REF!","v":{"$error":"#REF!"}},{"$f":"'Mrtg Prod Hsng Cnslng'!#REF!","v":{"$error":"#REF!"}},{"$f":"'Mrtg Prod Hsng Cnslng'!$A$26","v":0},{"$f":"'Mrtg Prod Hsng Cnslng'!#REF!","v":{"$error":"#REF!"}},{"$f":"'Self-Sufficiency Plan'!$A$5","v":0},{"$f":"#REF!","v":{"$error":"#REF!"}},{"$f":"#REF!","v":{"$error":"#REF!"}},{"$f":"#REF!","v":{"$error":"#REF!"}},{"$f":"#REF!","v":{"$error":"#REF!"}},{"$f":"#REF!","v":{"$error":"#REF!"}},{"$f":"#REF!","v":{"$error":"#REF!"}},{"$f":"#REF!","v":{"$error":"#REF!"}},{"$f":"#REF!","v":{"$error":"#REF!"}},{"$f":"#REF!","v":{"$error":"#REF!"}},{"$f":"#REF!","v":{"$error":"#REF!"}},{"$f":"#REF!","v":{"$error":"#REF!"}},{"$f":"#REF!","v":{"$error":"#REF!"}},{"$f":"#REF!","v":{"$error":"#REF!"}},{"$f":"#REF!","v":{"$error":"#REF!"}},{"$f":"#REF!","v":{"$error":"#REF!"}},{"$f":"#REF!","v":{"$error":"#REF!"}},{"$f":"#REF!","v":{"$error":"#REF!"}},{"$f":"#REF!","v":{"$error":"#REF!"}},{"$f":"#REF!","v":{"$error":"#REF!"}},{"$f":"#REF!","v":{"$error":"#REF!"}},{"$f":"#REF!","v":{"$error":"#REF!"}},{"$f":"#REF!","v":{"$error":"#REF!"}},{"$f":"#REF!","v":{"$error":"#REF!"}},{"$f":"#REF!","v":{"$error":"#REF!"}},{"$f":"#REF!","v":{"$error":"#REF!"}},{"$f":"'Mrtg Prod Hsng Cnslng'!I10","v":0}]

{"sheet":"ApplicantStaff","index":35,"n_rows":7,"n_cols":5,"rows_kept":7,"cut":false,"hidden":true,"merged":[]}
["StaffName","StaffJobTitle","StaffPhone","StafffEmail","StaffResponsibilities"]
[{"$f":"ProjectOversight!B24","v":0},{"$f":"ProjectOversight!C24","v":0},{"$f":"ProjectOversight!D24","v":0},{"$f":"ProjectOversight!E24","v":0},{"$f":"ProjectOversight!G24","v":0}]
[{"$f":"ProjectOversight!B25","v":0},{"$f":"ProjectOversight!C25","v":0},{"$f":"ProjectOversight!D25","v":0},{"$f":"ProjectOversight!E25","v":0},{"$f":"ProjectOversight!G25","v":0}]
[{"$f":"ProjectOversight!B26","v":0},{"$f":"ProjectOversight!C26","v":0},{"$f":"ProjectOversight!D26","v":0},{"$f":"ProjectOversight!E26","v":0},{"$f":"ProjectOversight!G26","v":0}]
[{"$f":"ProjectOversight!B27","v":0},{"$f":"ProjectOversight!C27","v":0},{"$f":"ProjectOversight!D27","v":0},{"$f":"ProjectOversight!E27","v":0},{"$f":"ProjectOversight!G27","v":0}]
[{"$f":"ProjectOversight!B28","v":0},{"$f":"ProjectOversight!C28","v":0},{"$f":"ProjectOversight!D28","v":0},{"$f":"ProjectOversight!E28","v":0},{"$f":"ProjectOversight!G28","v":0}]
[{"$f":"ProjectOversight!B29","v":0},{"$f":"ProjectOversight!C29","v":0},{"$f":"ProjectOversight!D29","v":0},{"$f":"ProjectOversight!E29","v":0},{"$f":"ProjectOversight!G29","v":0}]

{"sheet":"ActivityList","index":36,"n_rows":9,"n_cols":2,"rows_kept":9,"cut":false,"hidden":true,"merged":[]}
["Activity_Type"]
[{"$f":"IF(Activities!B7=\"yes\",\"HRA\",\"\")","v":""},"HRA"]
[{"$f":"IF(Activities!C7=\"yes\",\"HRA-PWD\",\"\")","v":""},"HRA-PWD"]
[{"$f":"IF(Activities!D7=\"yes\",\"HRA-DR\",\"\")","v":""},"HRA-DR"]
[{"$f":"IF(Activities!B8=\"yes\",\"TBRA\",\"\")","v":""},"TBRA"]
[{"$f":"IF(Activities!C8=\"yes\",\"TBRA-PWD\",\"\")","v":""},"TBRA-PWD"]
[{"$f":"IF(Activities!D8=\"yes\",\"TBRA-DR\",\"\")","v":""},"TBRA-DR"]
[{"$f":"IF(Activities!B9=\"yes\",\"CFD\",\"\")","v":""},"CFD"]
[{"$f":"IF(Activities!B10=\"yes\",\"HANC\",\"\")","v":""},"HANC"]

{"sheet":"Reference Materials","index":37,"n_rows":36,"n_cols":3,"rows_kept":36,"cut":false,"hidden":false,"merged":[[35,1,35,9],[23,0,23,8],[33,2,33,8],[34,1,34,9],[14,0,14,8],[15,1,15,10],[17,0,17,8],[21,1,21,10],[20,1,20,10],[18,1,18,10],[24,1,24,7],[12,1,12,10],[0,0,0,11],[11,0,11,8],[2,0,2,8],[5,0,5,8],[3,1,3,10],[6,1,6,10],[8,0,8,11],[9,1,9,10]]}
["TAB 15. APPLICATION REFERENCE MATERIAL"]
[]
["1.                  Federal HOME Final Rule, 24 CFR Part 92 (HUD website)"]
[null,"http://www.ecfr.gov/cgi-bin/text-idx?c=ecfr&tpl=/ecfrbrowse/Title24/24cfr92_main_02.tpl"]
[]
["2.                  State HOME Rule, 10 TAC Chapter 20 and 10 TAC Chapter 23 (Secretary of the State website)"]
[null,"http://texreg.sos.state.tx.us/public/readtac$ext.ViewTAC?tac_view=3&ti=10&pt=1"]
[]
["3.                  HUD HOME Income Limits (Maximum income limit for HOME is 80% AMFI)"]
[null,"https://www.hudexchange.info/programs/home/home-income-limits/"]
[]
["4.                  Fair Market Rents – HOME TBRA"]
[null,"https://www.huduser.gov/portal/datasets/fmr.html"]
[]
["7.                  Participating Jurisdiction List"]
[null,"http://www.tdhca.state.tx.us/multifamily/home/index.htm"]
[]
["5.             Single Family Match Guide for HOME Program"]
[null,"http://www.tdhca.state.tx.us/home-division/docs/16-MatchGuide.pdf"]
[]
["8.                 ","US Census Bureau website: "]
[null,"https://www.census.gov/acs/www/data/data-tables-and-tools/data-profiles/"]
[]
["9.                  Verification of Colonia Status:  The Office of the Attorney General "]
[null,"https://coloniadata.oag.state.tx.us/"]
[]
[]
["(HOME RSP application version 1/24/2021)"]
[]
[]
[]
[]
[]
[null,null,"Texas Department of Housing and Community Affairs"]
[null,"Street Address: 221 East 11th Street, Austin, TX 78701  Mailing Address: PO Box 13941, Austin, TX 78711"]
[null,"Main Number: 512-475-3800  Toll Free: 1-800-525-0657  Email: info@tdhca.state.tx.us  Web: www.tdhca.state.tx.us"]